﻿"organisation_name","service_responsible","supplier_name","supplier_code","payment_date","transaction_ref","net_amount_by_line_item","irrecoverable_vat","purpose_of_spend","procurement_category_name","transaction_type","payment_type","card_transaction","invoice_date","financial_year","financial_period","supplier_invoice_reference","cost_centre_code","cost_centre_desc","account_code","account_desc"
"GUILDFORD BOROUGH COUNCIL","Fleet Management","Premier Panel Skills Ltd","671800","15/10/2020",30000398,453.45,0,"Transport Insurance","Car And Van Servicing And Maintenance Providers","II","BACS","None",2020-07-22 00:00:00,"2020","07","16104","V1013","Fleet Vans","C5001","Transport Insurance"
"GUILDFORD BOROUGH COUNCIL","Fleet Management","Premier Panel Skills Ltd","671800","15/10/2020",30000398,-453.45,0,"Transport Insurance","Car And Van Servicing And Maintenance Providers","II","BACS","None",2020-07-22 00:00:00,"2020","07","16104","V1013","Fleet Vans","C5001","Transport Insurance"
"GUILDFORD BOROUGH COUNCIL","Fleet Management","Premier Panel Skills Ltd","671800","15/10/2020",30000398,250,0,"Transport Insurance","Car And Van Servicing And Maintenance Providers","II","BACS","None",2020-07-22 00:00:00,"2020","07","16104","V1013","Fleet Vans","C5001","Transport Insurance"
"GUILDFORD BOROUGH COUNCIL","Vehicle Maintenance","Premier Panel Skills Ltd","671800","20/10/2020",30000436,250,0,"Materials","Car And Van Servicing And Maintenance Providers","II","BACS","None",2020-07-22 00:00:00,"2020","07","16105","K5551","Fleet Workshops","D2003","Materials"
"GUILDFORD BOROUGH COUNCIL","Vehicle Maintenance","Premier Panel Skills Ltd","671800","20/10/2020",30000436,1770.13,0,"Materials","Car And Van Servicing And Maintenance Providers","II","BACS","None",2020-07-22 00:00:00,"2020","07","16105","K5551","Fleet Workshops","D2003","Materials"
"GUILDFORD BOROUGH COUNCIL","Vehicle Maintenance","Premier Panel Skills Ltd","671800","20/10/2020",30000436,-1770.13,0,"Materials","Car And Van Servicing And Maintenance Providers","II","BACS","None",2020-07-22 00:00:00,"2020","07","16105","K5551","Fleet Workshops","D2003","Materials"
"GUILDFORD BOROUGH COUNCIL","Lead Specialist - Information Governance","NTA Monitor Limited","769790","08/10/2020",30000437,300,0,"ICT Software","Network Security Providers","II","BACS","None",2020-07-29 00:00:00,"2020","07","1006131401","G4520","Information Governance Service","D7002","ICT Software"
"GUILDFORD BOROUGH COUNCIL","Property","The Oyster Partnership Ltd","814220","01/10/2020",30000453,2784,0,"Other Salaries Recharged","Other Recruitment Agencies And Service Providers","II","BACS","None",2020-07-22 00:00:00,"2020","07","1078859","P74040","Slyfield Area Regeneration Project","1226","Other Salaries Recharged"
"GUILDFORD BOROUGH COUNCIL","Markets","Gidden Place Ltd","215900","15/10/2020",30000479,239,0,"Materials","Graphic Design And Creative Agencies","II","BACS","None",2020-07-27 00:00:00,"2020","07","87400","F5550","Farmers Market","D2003","Materials"
"GUILDFORD BOROUGH COUNCIL","Miscellaneous Expenses","Martin Conway","442100","13/10/2020",30000525,250.81,0,"Emergency Accomodation","","II","BACS","None",2020-07-06 00:00:00,"2020","07","72041","F7539","COVID-19","D8009","Emergency Accomodation"
"GUILDFORD BOROUGH COUNCIL","Miscellaneous Expenses","Martin Conway","442100","13/10/2020",30000525,64.19,0,"Emergency Accomodation","","II","BACS","None",2020-07-06 00:00:00,"2020","07","72041","F7539","COVID-19","D8009","Emergency Accomodation"
"GUILDFORD BOROUGH COUNCIL","Building Maintenance","Chambers Waste Management Plc","127500","06/10/2020",30000554,1095.73,0,"Services","Other Waste Disposal Suppliers","II","BACS","None",2020-07-19 00:00:00,"2020","07","P419533","K1515","Building Maintenance","D6004","Services"
"GUILDFORD BOROUGH COUNCIL","Leisure Play","St John Ambulance (Sheffield)","553360","08/10/2020",30000674,188,0,"Staff Costs","Health And Safety Training Providers","II","BACS","None",2020-07-24 00:00:00,"2020","07","2000071419","A7211","Play Development","A7100","Staff Costs"
"GUILDFORD BOROUGH COUNCIL","Licensing","Williams Brothers Newsagents","862400","29/10/2020",30000739,8.4,0,"Publications","Other Retailers","II","BACS","None",2020-07-31 00:00:00,"2020","07","025294","H2100","Licensing Services","D5001","Publications"
"GUILDFORD BOROUGH COUNCIL","Development Control","Williams Brothers Newsagents","862400","29/10/2020",30000739,8.4,0,"Publications","Other Retailers","II","BACS","None",2020-07-31 00:00:00,"2020","07","025294","D5100","Development Control - Fee Earn","D5001","Publications"
"GUILDFORD BOROUGH COUNCIL","Corporate Services","Williams Brothers Newsagents","862400","29/10/2020",30000739,53.65,0,"Publications","Other Retailers","II","BACS","None",2020-07-31 00:00:00,"2020","07","025294","F1111","Corporate Services","D5001","Publications"
"GUILDFORD BOROUGH COUNCIL","Community Safety","Williams Brothers Newsagents","862400","29/10/2020",30000739,8.4,0,"Publications","Other Retailers","II","BACS","None",2020-07-31 00:00:00,"2020","07","025294","F5711","Community Safety Team","D5001","Publications"
"GUILDFORD BOROUGH COUNCIL","Tourism & Development","Williams Brothers Newsagents","862400","29/10/2020",30000739,8.4,0,"Publications","Other Retailers","II","BACS","None",2020-07-31 00:00:00,"2020","07","025294","F5547","Business","D5001","Publications"
"GUILDFORD BOROUGH COUNCIL","Public Relations","Williams Brothers Newsagents","862400","29/10/2020",30000739,25.15,0,"Publications","Other Retailers","II","BACS","None",2020-07-31 00:00:00,"2020","07","025294","F5551","Public Relations & Marketing","D5001","Publications"
"GUILDFORD BOROUGH COUNCIL","Woking Road Depot","Williams Brothers Newsagents","862400","29/10/2020",30000739,8.4,0,"Publications","Other Retailers","II","BACS","None",2020-07-31 00:00:00,"2020","07","025294","B4452","Woking Road Depot","D5001","Publications"
"GUILDFORD BOROUGH COUNCIL","Guildford House","Williams Brothers Newsagents","862400","29/10/2020",30000739,8.4,0,"Publications","Other Retailers","II","BACS","None",2020-07-31 00:00:00,"2020","07","025294","A4511","Guildford House Administration","D5001","Publications"
"GUILDFORD BOROUGH COUNCIL","Countryside and Parks Services","Williams Brothers Newsagents","862400","29/10/2020",30000739,8.4,0,"Publications","Other Retailers","II","BACS","None",2020-07-31 00:00:00,"2020","07","025294","A1900","Parks Management And Admin","D5001","Publications"
"GUILDFORD BOROUGH COUNCIL","Off Street Parking","Contract Security Services Ltd","146600","06/10/2020",30000742,48.06,0,"Bank Charges","Other Security Service Providers","II","BACS","None",2020-08-03 00:00:00,"2020","07","58869","B2111","Car Parks - Administration","D8002","Bank Charges"
"GUILDFORD BOROUGH COUNCIL","Guildford Museum","Movetech Ltd","605920","08/10/2020",30000799,54.06,0,"Asset Maintenance","Other Leasing Companies","II","BACS","None",2020-07-31 00:00:00,"2020","07","310720-19703","A5511","Museum","B1001","Asset Maintenance"
"GUILDFORD BOROUGH COUNCIL","Affordable Housing","Surrey Community Action","140980","06/10/2020",30001144,2000,0,"Grants And Subscriptions","Charities And Voluntary Organisations","II","BACS","None",2020-04-14 00:00:00,"2020","07","INV-5437","C4111","Affordable Housing Development","D9001","Grants And Subscriptions"
"GUILDFORD BOROUGH COUNCIL","Property","Delta-Simons Environmental Consultants Ltd","986920","27/10/2020",30001155,9519.04,0,"Consultants Fees","","II","BACS","None",2020-07-31 00:00:00,"2020","07","DS025331","P74040","Slyfield Area Regeneration Project","1221","Consultants Fees"
"GUILDFORD BOROUGH COUNCIL","G Live","Sharpe Pritchard LLP","415180","08/10/2020",30001291,368,0,"Resources - Legal Specialist","Solicitors [Uk Only]","II","BACS","None",2019-11-30 00:00:00,"2020","07","120526","A2141","G Live","H1004","Resources - Legal Specialist"
"GUILDFORD BOROUGH COUNCIL","Telephony Holding Account (Service)","Vodafone Corporate Limited","844700","06/10/2020",30001304,780.93,0,"Telephones & Broadband","Mobile Communications Service Providers","II","BACS","None",2019-10-23 00:00:00,"2020","07","92952558","G1151","Telephony Holding Account","D7004","Telephones & Broadband"
"GUILDFORD BOROUGH COUNCIL","Tourism & Development","Hampshire County Council","236200","06/10/2020",30001331,20000,0,"Grants And Subscriptions","Local Government [Uk Only]","II","BACS","None",2020-07-14 00:00:00,"2020","07","3611250985","F5545","Tourism","D9001","Grants And Subscriptions"
"GUILDFORD BOROUGH COUNCIL","Property","The Oyster Partnership Ltd","814220","01/10/2020",30001623,3750,0,"Other Salaries Recharged","Other Recruitment Agencies And Service Providers","II","BACS","None",2020-08-12 00:00:00,"2020","07","1079955","P74040","Slyfield Area Regeneration Project","1226","Other Salaries Recharged"
"GUILDFORD BOROUGH COUNCIL","Guildford Museum","Gidden Place Ltd","215900","06/10/2020",30001629,540,0,"Equipment","Graphic Design And Creative Agencies","II","BACS","None",2020-06-30 00:00:00,"2020","07","87219","A5511","Museum","D2001","Equipment"
"GUILDFORD BOROUGH COUNCIL","Crematorium","Treske Ltd","829140","03/11/2020",30001658,520,0,"Consultants Fees","Other Furniture Suppliers","II","BACS","None",2020-07-31 00:00:00,"2020","07","14873","P05009","Refurbish/Rebuild Crematorium","1221","Consultants Fees"
"GUILDFORD BOROUGH COUNCIL","Building Maintenance","R Moore","413190","06/10/2020",30001807,500,0,"Materials","","II","BACS","None",2020-08-16 00:00:00,"2020","07","388","K1515","Building Maintenance","D2003","Materials"
"GUILDFORD BOROUGH COUNCIL","Building Maintenance","R Moore","413190","06/10/2020",30001807,1000,0,"Services","","II","BACS","None",2020-08-16 00:00:00,"2020","07","388","K1515","Building Maintenance","D6004","Services"
"GUILDFORD BOROUGH COUNCIL","Refuse and Recycling","Craemer UK Ltd","830630","08/10/2020",30002027,12792,0,"Equipment","Other Plastic Goods Suppliers","II","BACS","None",2020-08-19 00:00:00,"2020","07","3030123","K3551","Refuse - Domestic","D2001","Equipment"
"GUILDFORD BOROUGH COUNCIL","Affordable Hsg - Site Prep Etc","PJC Consultancy Ltd","984400","13/10/2020",30002104,623,0,"Consultants Fees","Other Business And Management Consultants","II","BACS","None",2020-07-28 00:00:00,"2020","07","7904","N55029","Sandmore","1221","Consultants Fees"
"GUILDFORD BOROUGH COUNCIL","Inventories","Akw Medi-Care Limited","178400","08/10/2020",30002180,367.9,0,"Purchases","Mobility Disability Equipment Suppliers","II","BACS","None",2020-08-17 00:00:00,"2020","07","1847535","I01001","Stocks","2591","Purchases"
"GUILDFORD BOROUGH COUNCIL","Crematorium","Tills Innovations Ltd.","972520","13/10/2020",30002182,1013,0,"Services","","II","BACS","None",2020-05-26 00:00:00,"2020","07","2970520","A1500","Crematorium","D6004","Services"
"GUILDFORD BOROUGH COUNCIL","Inventories","Akw Medi-Care Limited","178400","08/10/2020",30002186,367.9,0,"Purchases","Mobility Disability Equipment Suppliers","II","BACS","None",2020-08-17 00:00:00,"2020","07","1847533","I01001","Stocks","2591","Purchases"
"GUILDFORD BOROUGH COUNCIL","IT Renewals","BT Global Services","777540","06/10/2020",30002188,2519.84,0,"Software","Fixed Telecoms Service Providers","II","BACS","None",2020-08-25 00:00:00,"2020","07","544494","P81002","IT Renewals Reserve Funded General","1296","Software"
"GUILDFORD BOROUGH COUNCIL","Crematorium","Town & Country Memorials  Ltd","826500","13/10/2020",30002192,369.46,0,"Stock For Re-Sale","Third Party Supplier","II","BACS","None",2020-08-25 00:00:00,"2020","07","28978","A1500","Crematorium","D2004","Stock For Re-Sale"
"GUILDFORD BOROUGH COUNCIL","IT Renewals","BT Global Services","777540","06/10/2020",30002195,2327.64,0,"Software","Fixed Telecoms Service Providers","II","BACS","None",2020-08-25 00:00:00,"2020","07","544371","P81002","IT Renewals Reserve Funded General","1296","Software"
"GUILDFORD BOROUGH COUNCIL","Inventories","Saint-Gobain Building Distribution Limited (Jewson)","271200","08/10/2020",30002205,113.93,0,"Purchases","Builders Merchants","II","BACS","None",2020-08-10 00:00:00,"2020","07","0652/00188462","I01001","Stocks","2591","Purchases"
"GUILDFORD BOROUGH COUNCIL","Inventories","Saint-Gobain Building Distribution Limited (Jewson)","271200","08/10/2020",30002210,2110.9,0,"Purchases","Builders Merchants","II","BACS","None",2020-08-16 00:00:00,"2020","07","0652/00787161","I01001","Stocks","2591","Purchases"
"GUILDFORD BOROUGH COUNCIL","Miscellaneous Expenses","Martin Conway","442100","13/10/2020",30002273,250.81,0,"Emergency Accomodation","","II","BACS","None",2020-08-17 00:00:00,"2020","07","72403","F7539","COVID-19","D8009","Emergency Accomodation"
"GUILDFORD BOROUGH COUNCIL","Miscellaneous Expenses","Martin Conway","442100","13/10/2020",30002273,64.19,0,"Emergency Accomodation","","II","BACS","None",2020-08-17 00:00:00,"2020","07","72403","F7539","COVID-19","D8009","Emergency Accomodation"
"GUILDFORD BOROUGH COUNCIL","Building Maintenance","Chambers Waste Management Plc","127500","06/10/2020",30002299,52.3,0,"Services","Other Waste Disposal Suppliers","II","BACS","None",2020-08-23 00:00:00,"2020","07","P425989","K1515","Building Maintenance","D6004","Services"
"GUILDFORD BOROUGH COUNCIL","Property","Stantec UK Ltd","261820","13/10/2020",30002410,14800,0,"Consultants Fees","Other Construction Consultants","II","BACS","None",2020-08-28 00:00:00,"2020","07","174458NYO","P74040","Slyfield Area Regeneration Project","1221","Consultants Fees"
"GUILDFORD BOROUGH COUNCIL","Building Maintenance","Davis Property Services GU Limited (CIS)","946970","13/10/2020",30002426,4971.7,0,"Services","Roofers","II","BACS","None",2020-08-25 00:00:00,"2020","07","20250820","K1515","Building Maintenance","D6004","Services"
"GUILDFORD BOROUGH COUNCIL","Business Forum","Safe TM Services Limited","959230","01/10/2020",30002485,600,0,"Advertising, Publicity & Promotion","Civil Engineers","II","BACS","None",2020-08-31 00:00:00,"2020","07","2020-0277","F7520","Business Forum","D5002","Advertising, Publicity & Promotion"
"GUILDFORD BOROUGH COUNCIL","Public Relations","Delivered Social","1000028","06/10/2020",30002494,350,0,"Advertising, Publicity & Promotion","","II","BACS","None",2020-06-29 00:00:00,"2020","07","3134","F5551","Public Relations & Marketing","D5002","Advertising, Publicity & Promotion"
"GUILDFORD BOROUGH COUNCIL","Property","Stantec UK Ltd","261820","13/10/2020",30002502,4185,0,"Consultants Fees","Other Construction Consultants","II","BACS","None",2020-08-28 00:00:00,"2020","07","174459NYO","P74040","Slyfield Area Regeneration Project","1221","Consultants Fees"
"GUILDFORD BOROUGH COUNCIL","Vehicle Maintenance","Fuller Tyres Limited","882220","20/10/2020",30002503,88.67,0,"Repair And Maintenance Of Vehicles","Other Vehicle Equipment Providers","II","BACS","None",2020-07-14 00:00:00,"2020","07","FTI-24861","K5551","Fleet Workshops","C1002","Repair And Maintenance Of Vehicles"
"GUILDFORD BOROUGH COUNCIL","Inventories","Akw Medi-Care Limited","178400","08/10/2020",30002527,22.23,0,"Purchases","Mobility Disability Equipment Suppliers","II","BACS","None",2020-06-15 00:00:00,"2020","07","1833767","I01001","Stocks","2591","Purchases"
"GUILDFORD BOROUGH COUNCIL","Inventories","Akw Medi-Care Limited","178400","08/10/2020",30002566,204.01,0,"Purchases","Mobility Disability Equipment Suppliers","II","BACS","None",2020-06-15 00:00:00,"2020","07","1833609","I01001","Stocks","2591","Purchases"
"GUILDFORD BOROUGH COUNCIL","Inventories","Akw Medi-Care Limited","178400","08/10/2020",30002567,204.01,0,"Purchases","Mobility Disability Equipment Suppliers","II","BACS","None",2020-06-15 00:00:00,"2020","07","1833585","I01001","Stocks","2591","Purchases"
"GUILDFORD BOROUGH COUNCIL","Guildford Museum","Movetech Ltd","605920","08/10/2020",30002657,4.96,0,"Asset Maintenance","Other Leasing Companies","II","BACS","None",2020-08-31 00:00:00,"2020","07","310820-19703","A5511","Museum","B1001","Asset Maintenance"
"GUILDFORD BOROUGH COUNCIL","Off Street Parking","Otis Limited","629800","01/10/2020",30002660,670,0,"Maintenance Contracts","Lift Contractors","II","BACS","None",2020-08-23 00:00:00,"2020","07","01400262","B2216","General Upkeep- Urban Car Pks","D1002","Maintenance Contracts"
"GUILDFORD BOROUGH COUNCIL","Inventories","Akw Medi-Care Limited","178400","08/10/2020",30002664,209.77,0,"Purchases","Mobility Disability Equipment Suppliers","II","BACS","None",2020-06-23 00:00:00,"2020","07","1835093","I01001","Stocks","2591","Purchases"
"GUILDFORD BOROUGH COUNCIL","Inventories","Akw Medi-Care Limited","178400","08/10/2020",30002670,330.01,0,"Purchases","Mobility Disability Equipment Suppliers","II","BACS","None",2020-06-25 00:00:00,"2020","07","1835631","I01001","Stocks","2591","Purchases"
"GUILDFORD BOROUGH COUNCIL","Inventories","Akw Medi-Care Limited","178400","08/10/2020",30002676,196.24,0,"Purchases","Mobility Disability Equipment Suppliers","II","BACS","None",2020-06-24 00:00:00,"2020","07","1835331","I01001","Stocks","2591","Purchases"
"GUILDFORD BOROUGH COUNCIL","Equity Share Administration","Clarke Gammon Wellers","150290","13/10/2020",30002688,285,0,"Valuers Fees","Property Letting And Estate Agents","II","BACS","None",2020-08-28 00:00:00,"2020","07","14566","M1181","Sale Of Council Houses (BHS)","D6002","Valuers Fees"
"GUILDFORD BOROUGH COUNCIL","Equity Share Administration","Clarke Gammon Wellers","150290","13/10/2020",30002695,285,0,"Valuers Fees","Property Letting And Estate Agents","II","BACS","None",2020-08-26 00:00:00,"2020","07","14569","M1181","Sale Of Council Houses (BHS)","D6002","Valuers Fees"
"GUILDFORD BOROUGH COUNCIL","Inventories","Akw Medi-Care Limited","178400","08/10/2020",30002697,196.24,0,"Purchases","Mobility Disability Equipment Suppliers","II","BACS","None",2020-07-09 00:00:00,"2020","07","1838651","I01001","Stocks","2591","Purchases"
"GUILDFORD BOROUGH COUNCIL","Off Street Parking","Conduent Public Sector UK Ltd","870310","08/10/2020",30002701,2041.2,0,"Asset Maintenance","Software Developers","II","BACS","None",2020-09-02 00:00:00,"2020","07","1578000","B2111","Car Parks - Administration","B1001","Asset Maintenance"
"GUILDFORD BOROUGH COUNCIL","Off Street Parking","Otis Limited","629800","01/10/2020",30002706,629.5,0,"Maintenance Contracts","Lift Contractors","II","BACS","None",2020-08-23 00:00:00,"2020","07","01400263","B2216","General Upkeep- Urban Car Pks","D1002","Maintenance Contracts"
"GUILDFORD BOROUGH COUNCIL","Inventories","Akw Medi-Care Limited","178400","08/10/2020",30002708,441.63,0,"Purchases","Mobility Disability Equipment Suppliers","II","BACS","None",2020-06-17 00:00:00,"2020","07","1834051","I01001","Stocks","2591","Purchases"
"GUILDFORD BOROUGH COUNCIL","Building Maintenance","Speedy Asset Services Limited","941290","13/10/2020",30002709,147.2,0,"Services","Third Party Supplier","II","BACS","None",2020-08-31 00:00:00,"2020","07","7115926020","K1515","Building Maintenance","D6004","Services"
"GUILDFORD BOROUGH COUNCIL","Equity Share Administration","Clarke Gammon Wellers","150290","13/10/2020",30002715,300,0,"Valuers Fees","Property Letting And Estate Agents","II","BACS","None",2020-08-25 00:00:00,"2020","07","14584","M1181","Sale Of Council Houses (BHS)","D6002","Valuers Fees"
"GUILDFORD BOROUGH COUNCIL","Lead Specialist - Finance","Adelante Software Ltd","789120","03/11/2020",30002735,673.75,0,"ICT Software","Software Developers","II","BACS","None",2020-09-03 00:00:00,"2020","07","114068","G3565","Finance Specialists","D7002","ICT Software"
"GUILDFORD BOROUGH COUNCIL","Council Tax","Rundle & Co Ltd","573900","13/10/2020",30002739,35.47,0,"Services","Debt Collectors","II","BACS","None",2020-08-05 00:00:00,"2020","07","121013","F6141","Council Tax Collectn Expenses","D6004","Services"
"GUILDFORD BOROUGH COUNCIL","Council Tax","Rundle & Co Ltd","573900","13/10/2020",30002741,27.26,0,"Services","Debt Collectors","II","BACS","None",2020-07-29 00:00:00,"2020","07","120851","F6141","Council Tax Collectn Expenses","D6004","Services"
"GUILDFORD BOROUGH COUNCIL","Council Tax","Rundle & Co Ltd","573900","13/10/2020",30002746,13.74,0,"Services","Debt Collectors","II","BACS","None",2020-07-01 00:00:00,"2020","07","120196","F6141","Council Tax Collectn Expenses","D6004","Services"
"GUILDFORD BOROUGH COUNCIL","Council Tax","Rundle & Co Ltd","573900","13/10/2020",30002751,7.61,0,"Services","Debt Collectors","II","BACS","None",2020-06-03 00:00:00,"2020","07","119544","F6141","Council Tax Collectn Expenses","D6004","Services"
"GUILDFORD BOROUGH COUNCIL","Development Control","Cornerstone Barristers","442390","06/10/2020",30002757,190,0,"Services","Barristers","II","BACS","None",2020-08-27 00:00:00,"2020","07","INVROW233","D5100","Development Control - Fee Earn","D6004","Services"
"GUILDFORD BOROUGH COUNCIL","Inventories","Akw Medi-Care Limited","178400","08/10/2020",30002759,254.23,0,"Purchases","Mobility Disability Equipment Suppliers","II","BACS","None",2020-09-02 00:00:00,"2020","07","1852301","I01001","Stocks","2591","Purchases"
"GUILDFORD BOROUGH COUNCIL","Council and Committee Support","Francis Taylor Building","972970","06/10/2020",30002762,1200,0,"Resources - Legal Specialist","","II","BACS","None",2020-08-21 00:00:00,"2020","07","83726_CS_93531","F1305","Planning","H1004","Resources - Legal Specialist"
"GUILDFORD BOROUGH COUNCIL","Housing Benefits","Rundle & Co Ltd","573900","08/10/2020",30002799,55.66,0,"Services","Debt Collectors","II","BACS","None",2020-08-12 00:00:00,"2020","07","121177","C4511","Housing Benefits Admin.","D6004","Services"
"GUILDFORD BOROUGH COUNCIL","Miscellaneous Expenses","Wealden Leisure Limited","702140","08/10/2020",30002815,264220,0,"Services","Sports And Leisure Centres","II","BACS","None",2020-09-04 00:00:00,"2020","07","192742","F7539","COVID-19","D6004","Services"
"GUILDFORD BOROUGH COUNCIL","Council Tax","Rundle & Co Ltd","573900","13/10/2020",30002841,14.06,0,"Services","Debt Collectors","II","BACS","None",2020-09-02 00:00:00,"2020","07","121692","F6141","Council Tax Collectn Expenses","D6004","Services"
"GUILDFORD BOROUGH COUNCIL","Off Street Parking","Nilfisk Ltd","232730","08/10/2020",30002845,223.06,0,"Asset Maintenance","Cleaning And Janitorial Equipment And Supplies Providers","II","BACS","None",2020-09-04 00:00:00,"2020","07","3024515043","B2219","Bedford Road Mscp","B1001","Asset Maintenance"
"GUILDFORD BOROUGH COUNCIL","Business Forum","Safe TM Services Limited","959230","08/10/2020",30002850,600,0,"Advertising, Publicity & Promotion","Civil Engineers","II","BACS","None",2020-09-07 00:00:00,"2020","07","2020-0294","F7520","Business Forum","D5002","Advertising, Publicity & Promotion"
"GUILDFORD BOROUGH COUNCIL","Miscellaneous Expenses","Wealden Leisure Limited","702140","08/10/2020",30002862,264220,0,"Services","Sports And Leisure Centres","II","BACS","None",2020-09-04 00:00:00,"2020","07","192743","F7539","COVID-19","D6004","Services"
"GUILDFORD BOROUGH COUNCIL","Council Tax","Rundle & Co Ltd","573900","13/10/2020",30002869,6.77,0,"Services","Debt Collectors","II","BACS","None",2020-08-19 00:00:00,"2020","07","121369","F6141","Council Tax Collectn Expenses","D6004","Services"
"GUILDFORD BOROUGH COUNCIL","Council Tax","Rundle & Co Ltd","573900","13/10/2020",30002939,24.97,0,"Services","Debt Collectors","II","BACS","None",2020-08-26 00:00:00,"2020","07","121520","F6141","Council Tax Collectn Expenses","D6004","Services"
"GUILDFORD BOROUGH COUNCIL","Woking Road Depot Stores","GHL Liftrucks Ltd","111790","08/10/2020",30003020,132.9,0,"Equipment","Fork Lift Truck Suppliers","II","BACS","None",2020-09-08 00:00:00,"2020","07","248407","K7515","Woking Road Depot Stores","D2001","Equipment"
"GUILDFORD BOROUGH COUNCIL","Lead Specialist - HR","Wealden Leisure Limited","702140","29/10/2020",30003036,38.4,0,"Pension Added Years","Sports And Leisure Centres","II","BACS","None",2020-09-07 00:00:00,"2020","07","192764","G2555","HR Services","A7180","Pension Added Years"
"GUILDFORD BOROUGH COUNCIL","Business Rates","Rundle & Co Ltd","573900","13/10/2020",30003059,90.83,0,"Services","Debt Collectors","II","BACS","None",2020-07-22 00:00:00,"2020","07","120697","F6151","Business Rates Collection Exps","D6004","Services"
"GUILDFORD BOROUGH COUNCIL","Corporate Property Management","David Kingston Chartered Surveyors","970280","15/10/2020",30003064,400,0,"Valuers Fees","Surveyors And Inspectors","II","BACS","None",2020-09-04 00:00:00,"2020","07","040920","G4575","Asset Management","D6002","Valuers Fees"
"GUILDFORD BOROUGH COUNCIL","Off Street Parking","Harpers Door Specialists","759110","01/10/2020",30003065,500,0,"Asset Maintenance","Security Shutter, Door And Gate Contractors","II","BACS","None",2020-09-08 00:00:00,"2020","07","3590","B2257","Leapale Road Mscp","B1001","Asset Maintenance"
"GUILDFORD BOROUGH COUNCIL","Off Street Parking","Harpers Door Specialists","759110","01/10/2020",30003065,2490,0,"Asset Maintenance","Security Shutter, Door And Gate Contractors","II","BACS","None",2020-09-08 00:00:00,"2020","07","3590","B2257","Leapale Road Mscp","B1001","Asset Maintenance"
"GUILDFORD BOROUGH COUNCIL","Business Rates","Rundle & Co Ltd","573900","13/10/2020",30003070,11.12,0,"Services","Debt Collectors","II","BACS","None",2020-07-29 00:00:00,"2020","07","120853","F6151","Business Rates Collection Exps","D6004","Services"
"GUILDFORD BOROUGH COUNCIL","Business Rates","Rundle & Co Ltd","573900","13/10/2020",30003079,11.13,0,"Services","Debt Collectors","II","BACS","None",2020-08-12 00:00:00,"2020","07","121179","F6151","Business Rates Collection Exps","D6004","Services"
"GUILDFORD BOROUGH COUNCIL","Business Rates","Rundle & Co Ltd","573900","13/10/2020",30003083,79.7,0,"Services","Debt Collectors","II","BACS","None",2020-08-19 00:00:00,"2020","07","121371","F6151","Business Rates Collection Exps","D6004","Services"
"GUILDFORD BOROUGH COUNCIL","Housing Benefits","Eden Brown Ltd","829540","08/10/2020",30003178,761.25,0,"Agency","Other Recruitment Agencies And Service Providers","II","BACS","None",2020-08-19 00:00:00,"2020","07","1254732","C4511","Housing Benefits Admin.","A5191","Agency"
"GUILDFORD BOROUGH COUNCIL","Major Projects","The Oyster Partnership Ltd","814220","13/10/2020",30003193,242.02,0,"Agency","Other Recruitment Agencies And Service Providers","II","BACS","None",2020-09-09 00:00:00,"2020","07","1081389","F5530","Major Projects","A5191","Agency"
"GUILDFORD BOROUGH COUNCIL","Major Projects","The Oyster Partnership Ltd","814220","13/10/2020",30003193,484.03,0,"Agency","Other Recruitment Agencies And Service Providers","II","BACS","None",2020-09-09 00:00:00,"2020","07","1081389","F5530","Major Projects","A5191","Agency"
"GUILDFORD BOROUGH COUNCIL","Executive - Miscellaneous","The Oyster Partnership Ltd","814220","13/10/2020",30003193,1694.11,0,"Agency Staff","Other Recruitment Agencies And Service Providers","II","BACS","None",2020-09-09 00:00:00,"2020","07","1081389","P79037","Ash Road Bridge","1222","Agency Staff"
"GUILDFORD BOROUGH COUNCIL","Off Street Parking","Nilfisk Ltd","232730","08/10/2020",30003201,42.88,0,"Asset Maintenance","Cleaning And Janitorial Equipment And Supplies Providers","II","BACS","None",2020-09-09 00:00:00,"2020","07","3024515814","B2219","Bedford Road Mscp","B1001","Asset Maintenance"
"GUILDFORD BOROUGH COUNCIL","Off Street Parking","Park Now Limited","876560","15/10/2020",30003235,17483.84,0,"Other Income","Other It Service Providers","II","BACS","None",2020-09-01 00:00:00,"2020","07","R200831-97","B2111","Car Parks - Administration","K4016","Other Income"
"GUILDFORD BOROUGH COUNCIL","Street Cleansing","Car And Metal Recycles Ltd","685200","08/10/2020",30003239,350,0,"Services","Scrap Merchants","II","BACS","None",2020-09-10 00:00:00,"2020","07","329148","K4551","Street Cleansing","D6004","Services"
"GUILDFORD BOROUGH COUNCIL","Countryside and Parks Services","Countryside Contracts Ltd (Hire/NON CIS)","713690","08/10/2020",30003578,150,0,"Services","Tree Work Contractors","II","BACS","None",2020-07-16 00:00:00,"2020","07","1846","A1300","Trees And Countryside","D6004","Services"
"GUILDFORD BOROUGH COUNCIL","Parks Countryside Management","Countryside Contracts Ltd (Hire/NON CIS)","713690","08/10/2020",30003578,150,0,"Services","Tree Work Contractors","II","BACS","None",2020-07-16 00:00:00,"2020","07","1846","A1300","Trees And Countryside","D6004","Services"
"GUILDFORD BOROUGH COUNCIL","Countryside and Parks Services","Guildford Lock And Safe Limited","229400","08/10/2020",30003643,17.4,0,"Asset Maintenance","Keys And Locksmiths","II","BACS","None",2020-08-27 00:00:00,"2020","07","34053","A1810","Burchatts Farm Barn","B1001","Asset Maintenance"
"GUILDFORD BOROUGH COUNCIL","Countryside and Parks Services","Guildford Lock And Safe Limited","229400","08/10/2020",30003643,17.4,0,"Asset Maintenance","Keys And Locksmiths","II","BACS","None",2020-08-27 00:00:00,"2020","07","34053","A1810","Burchatts Farm Barn","B1001","Asset Maintenance"
"GUILDFORD BOROUGH COUNCIL","Parks Countryside Management","Guildford Lock And Safe Limited","229400","08/10/2020",30003643,17.4,0,"Asset Maintenance","Keys And Locksmiths","II","BACS","None",2020-08-27 00:00:00,"2020","07","34053","A1810","Burchatts Farm Barn","B1001","Asset Maintenance"
"GUILDFORD BOROUGH COUNCIL","Countryside and Parks Services","C P Backhurst & Co Ltd","480850","08/10/2020",30003644,740,0,"Materials","Third Party Supplier","II","BACS","None",2020-09-09 00:00:00,"2020","07","030753","A1100","Horticulture","D2003","Materials"
"GUILDFORD BOROUGH COUNCIL","Crematorium","Thorley Smith Ltd","169400","15/10/2020",30003645,9.44,0,"Materials","Other Retailers","II","BACS","None",2020-09-15 00:00:00,"2020","07","39950","A1500","Crematorium","D2003","Materials"
"GUILDFORD BOROUGH COUNCIL","Crematorium","Thorley Smith Ltd","169400","15/10/2020",30003645,45.12,0,"Materials","Other Retailers","II","BACS","None",2020-09-15 00:00:00,"2020","07","39950","A1500","Crematorium","D2003","Materials"
"GUILDFORD BOROUGH COUNCIL","Crematorium","Thorley Smith Ltd","169400","15/10/2020",30003645,34.84,0,"Materials","Other Retailers","II","BACS","None",2020-09-15 00:00:00,"2020","07","39950","A1500","Crematorium","D2003","Materials"
"GUILDFORD BOROUGH COUNCIL","Crematorium","Thorley Smith Ltd","169400","15/10/2020",30003645,388.2,0,"Materials","Other Retailers","II","BACS","None",2020-09-15 00:00:00,"2020","07","39950","A1500","Crematorium","D2003","Materials"
"GUILDFORD BOROUGH COUNCIL","Lead Specialist - ICT","Bolderwood Solutions Ltd","892850","08/10/2020",30003651,5175,0,"Agency","Computer Systems Integrators","II","BACS","None",2020-08-01 00:00:00,"2020","07","GBC-0064","G3548","ICT Technical & Infrastructure","A5191","Agency"
"GUILDFORD BOROUGH COUNCIL","Lead Specialist - HR","TP Health Ltd","957830","24/11/2020",30003666,-1390,0,"Staff Costs","Health And Safety Training Providers","II","BACS","None",2020-08-27 00:00:00,"2020","07","CN-00000454","G2555","HR Services","A7100","Staff Costs"
"GUILDFORD BOROUGH COUNCIL","Homelessness Support","London Hounslow Ltd","1000033","15/10/2020",30003671,225,0,"Emergency Accomodation","","II","BACS","None",2020-08-28 00:00:00,"2020","07","H20356","C3311","Homelessness","D8009","Emergency Accomodation"
"GUILDFORD BOROUGH COUNCIL","Homelessness Support","London Hounslow Ltd","1000033","15/10/2020",30003671,25,0,"Emergency Accomodation","","II","BACS","None",2020-08-28 00:00:00,"2020","07","H20356","C3311","Homelessness","D8009","Emergency Accomodation"
"GUILDFORD BOROUGH COUNCIL","Lead Specialist - ICT","Des Bone Limited","169401","08/10/2020",30003744,250,0,"ICT Software","","II","BACS","None",2020-04-29 00:00:00,"2020","07","6547661","G3547","ICT Development","D7002","ICT Software"
"GUILDFORD BOROUGH COUNCIL","Corporate Property Management","Melliss LLP","829530","20/10/2020",30003841,1025,0,"Consultancy","Other Construction Consultants","II","BACS","None",2020-09-23 00:00:00,"2020","07","008616","G4575","Asset Management","D6001","Consultancy"
"GUILDFORD BOROUGH COUNCIL","Industrial Estates","Excel Facilities & Maintenance UK Ltd (CIS)","958110","06/10/2020",30003844,365,0,"Asset Maintenance","Electrical Engineers","II","BACS","None",2020-09-23 00:00:00,"2020","07","1151","B5372","Slyfield Enterprise Estate - Rechargeable","B1001","Asset Maintenance"
"GUILDFORD BOROUGH COUNCIL","Countryside and Parks Services","Felden Ltd","761280","08/10/2020",30003854,12810,0,"Services","Grounds Maintenance Providers","II","BACS","None",2020-09-15 00:00:00,"2020","07","TV11767","A1100","Horticulture","D6004","Services"
"GUILDFORD BOROUGH COUNCIL","Development Control","Cornerstone Barristers","442390","15/10/2020",30003899,300,0,"Services","Barristers","II","BACS","None",2020-09-21 00:00:00,"2020","07","INVROW237","D5100","Development Control - Fee Earn","D6004","Services"
"GUILDFORD BOROUGH COUNCIL","Guildford House","Museums & Galleries Limited","769440","15/10/2020",30003916,545.58,0,"Materials","Other Retailers","II","BACS","None",2020-09-22 00:00:00,"2020","07","46399","A4511","Guildford House Administration","D2003","Materials"
"GUILDFORD BOROUGH COUNCIL","Vehicle Maintenance","HTS Spares Limited","928730","27/10/2020",30003970,-18.96,0,"Repair And Maintenance Of Vehicles","Machinery And Engineering Parts Suppliers","II","BACS","None",2020-09-28 00:00:00,"2020","07","362570","K5551","Fleet Workshops","C1002","Repair And Maintenance Of Vehicles"
"GUILDFORD BOROUGH COUNCIL","Countryside and Parks Services","Fabilore Promasol Limited","923720","06/10/2020",30003974,2594.8,0,"Asset Maintenance","General Builders","II","BACS","None",2020-09-15 00:00:00,"2020","07","10200","A1250","Stoke Park","B1001","Asset Maintenance"
"GUILDFORD BOROUGH COUNCIL","Cemeteries","Lister Wilder Ltd","299800","22/10/2020",30003978,35,0,"Equipment","Emergency And Other Specialist Vehicle Dealers","II","BACS","None",2020-09-28 00:00:00,"2020","07","502233","A1430","Cemeteries - Stoke Cemetery","D2001","Equipment"
"GUILDFORD BOROUGH COUNCIL","Cemeteries","Lister Wilder Ltd","299800","22/10/2020",30003978,165,0,"Equipment","Emergency And Other Specialist Vehicle Dealers","II","BACS","None",2020-09-28 00:00:00,"2020","07","502233","A1430","Cemeteries - Stoke Cemetery","D2001","Equipment"
"GUILDFORD BOROUGH COUNCIL","Cemeteries","Lister Wilder Ltd","299800","22/10/2020",30003978,123.19,0,"Equipment","Emergency And Other Specialist Vehicle Dealers","II","BACS","None",2020-09-28 00:00:00,"2020","07","502233","A1430","Cemeteries - Stoke Cemetery","D2001","Equipment"
"GUILDFORD BOROUGH COUNCIL","Cemeteries","Lister Wilder Ltd","299800","22/10/2020",30003978,32.32,0,"Equipment","Emergency And Other Specialist Vehicle Dealers","II","BACS","None",2020-09-28 00:00:00,"2020","07","502233","A1430","Cemeteries - Stoke Cemetery","D2001","Equipment"
"GUILDFORD BOROUGH COUNCIL","Car Leasing Holding Code (Service)","Car Hire (Day Of Swansea) Ltd","856090","08/10/2020",30003980,549.48,0,"Car Leasing","Car, Van And Truck Hire Companies","II","BACS","None",2020-07-01 00:00:00,"2020","07","INV00255785","G1131","Car Leasing Holding Code","C3002","Car Leasing"
"GUILDFORD BOROUGH COUNCIL","Investment Properties","Davis Coffer Lyons","724480","13/10/2020",30003981,2500,0,"Valuers Fees","Property Letting And Estate Agents","II","BACS","None",2020-09-17 00:00:00,"2020","07","15568","B6111","Investment Property","D6002","Valuers Fees"
"GUILDFORD BOROUGH COUNCIL","Off Street Parking","Southern Electric Gas","260350","20/10/2020",30003982,78.36,0,"Utilities","Mains Gas Suppliers","II","BACS","None",2020-09-24 00:00:00,"2020","07","01724331107","B2521","Ash Vale Rural Car Park","B2001","Utilities"
"GUILDFORD BOROUGH COUNCIL","Street Furniture","Southern Electric Gas","260350","20/10/2020",30003984,237.56,0,"Utilities","Mains Gas Suppliers","II","BACS","None",2020-09-24 00:00:00,"2020","07","30885830105","B3711","Civic Amenities Administration","B2001","Utilities"
"GUILDFORD BOROUGH COUNCIL","Countryside and Parks Services","Countryside Contracts Ltd (Hire/NON CIS)","713690","22/10/2020",30003985,6500,0,"Grounds Maintenance","Tree Work Contractors","II","BACS","None",2020-09-29 00:00:00,"2020","07","1877","A1300","Trees And Countryside","B6001","Grounds Maintenance"
"GUILDFORD BOROUGH COUNCIL","Parks Countryside Management","Countryside Contracts Ltd (Hire/NON CIS)","713690","22/10/2020",30003985,6500,0,"Grounds Maintenance","Tree Work Contractors","II","BACS","None",2020-09-29 00:00:00,"2020","07","1877","A1300","Trees And Countryside","B6001","Grounds Maintenance"
"GUILDFORD BOROUGH COUNCIL","Countryside and Parks Services","Forest & Garden Timber Services","204900","06/10/2020",30003986,280,0,"Grounds Maintenance","","II","BACS","None",2020-09-29 00:00:00,"2020","07","8633","A1300","Trees And Countryside","B6001","Grounds Maintenance"
"GUILDFORD BOROUGH COUNCIL","Parks Countryside Management","Forest & Garden Timber Services","204900","06/10/2020",30003986,280,0,"Grounds Maintenance","","II","BACS","None",2020-09-29 00:00:00,"2020","07","8633","A1300","Trees And Countryside","B6001","Grounds Maintenance"
"GUILDFORD BOROUGH COUNCIL","Street Furniture","Southern Electric Gas","260350","20/10/2020",30003987,237.56,0,"Utilities","Mains Gas Suppliers","II","BACS","None",2020-09-24 00:00:00,"2020","07","18633410158","B3711","Civic Amenities Administration","B2001","Utilities"
"GUILDFORD BOROUGH COUNCIL","Private Sector Housing Maintenance","Solon Security Ltd","320210","20/10/2020",30003988,197,0,"Equipment","Other Security Equipment Suppliers","II","BACS","None",2020-09-25 00:00:00,"2020","07","SI200009829","C5136","Handyperson Service","D2001","Equipment"
"GUILDFORD BOROUGH COUNCIL","Countryside and Parks Services","Forest & Garden Timber Services","204900","06/10/2020",30003990,930,0,"Grounds Maintenance","","II","BACS","None",2020-09-29 00:00:00,"2020","07","8635","A1300","Trees And Countryside","B6001","Grounds Maintenance"
"GUILDFORD BOROUGH COUNCIL","Parks Countryside Management","Forest & Garden Timber Services","204900","06/10/2020",30003990,930,0,"Grounds Maintenance","","II","BACS","None",2020-09-29 00:00:00,"2020","07","8635","A1300","Trees And Countryside","B6001","Grounds Maintenance"
"GUILDFORD BOROUGH COUNCIL","Environmental Works","Forest & Garden Timber Services","204900","06/10/2020",30003992,480,0,"Grounds Maintenance","","II","BACS","None",2020-09-29 00:00:00,"2020","07","8636","M4615","Env Wks To Estate (BHS)","B6001","Grounds Maintenance"
"GUILDFORD BOROUGH COUNCIL","Property","Stantec UK Ltd","261820","13/10/2020",30003996,2925,0,"Consultants Fees","Other Construction Consultants","II","BACS","None",2020-09-17 00:00:00,"2020","07","175662NYO","P74040","Slyfield Area Regeneration Project","1221","Consultants Fees"
"GUILDFORD BOROUGH COUNCIL","Void Property Management","Forest & Garden Timber Services","204900","06/10/2020",30003997,1280,0,"Grounds Maintenance","","II","BACS","None",2020-09-29 00:00:00,"2020","07","8637","M1141","Void Property Mgmt (SHS)","B6001","Grounds Maintenance"
"GUILDFORD BOROUGH COUNCIL","Major Projects","Stantec UK Ltd","261820","13/10/2020",30004000,3050,0,"Major Projects (TO BE RECODED)","Other Construction Consultants","II","BACS","None",2020-09-17 00:00:00,"2020","07","175665NYO","","Allocation Pending","8893","Major Projects (TO BE RECODED)"
"GUILDFORD BOROUGH COUNCIL","Major Projects","Lambert Smith Hampton Group Limited","291600","22/10/2020",30004001,3485,0,"Major Projects (TO BE RECODED)","Outsourced Building Management Service Providers","II","BACS","None",2020-09-29 00:00:00,"2020","07","ARINV/00415385","","Allocation Pending","8893","Major Projects (TO BE RECODED)"
"GUILDFORD BOROUGH COUNCIL","Countryside and Parks Services","Forest & Garden Timber Services","204900","06/10/2020",30004002,110,0,"Grounds Maintenance","","II","BACS","None",2020-09-29 00:00:00,"2020","07","8634","A1300","Trees And Countryside","B6001","Grounds Maintenance"
"GUILDFORD BOROUGH COUNCIL","Parks Countryside Management","Forest & Garden Timber Services","204900","06/10/2020",30004002,110,0,"Grounds Maintenance","","II","BACS","None",2020-09-29 00:00:00,"2020","07","8634","A1300","Trees And Countryside","B6001","Grounds Maintenance"
"GUILDFORD BOROUGH COUNCIL","Day Services","Southern Electric Gas","260350","20/10/2020",30004003,62.9,0,"Utilities","Mains Gas Suppliers","II","BACS","None",2020-09-24 00:00:00,"2020","07","81803493/0004","C8100","Community Hubs","B2001","Utilities"
"GUILDFORD BOROUGH COUNCIL","Executive - Miscellaneous","Stantec UK Ltd","261820","13/10/2020",30004004,7250,0,"Consultants Fees","Other Construction Consultants","II","BACS","None",2020-09-17 00:00:00,"2020","07","175661NYO","P79100","Wuv - Allotment Relocation","1221","Consultants Fees"
"GUILDFORD BOROUGH COUNCIL","Parish Liasion","Tongham Parish Council","824200","01/10/2020",30004005,920,0,"Grants And Subscriptions","Local Government [Uk Only]","II","BACS","None",2020-09-25 00:00:00,"2020","07","TONGHAM - NEW SEATING","F1115","Parish Liaison","D9001","Grants And Subscriptions"
"GUILDFORD BOROUGH COUNCIL","Parish Liasion","Send Parish Council","236590","01/10/2020",30004006,50.3,0,"Grants And Subscriptions","Local Government [Uk Only]","II","BACS","None",2020-09-25 00:00:00,"2020","07","SEND - BENCH REPAIRS","F1115","Parish Liaison","D9001","Grants And Subscriptions"
"GUILDFORD BOROUGH COUNCIL","Parks & Countryside","Albury Parish Council","509000","01/10/2020",30004007,17393.56,0,"Grants - General","Local Government [Uk Only]","II","BACS","None",2020-09-25 00:00:00,"2020","07","ALBURY PARISH COUNCIL - S106 PLAYGROUND","P18233","Albury PC Playground Equipment","1323","Grants - General"
"GUILDFORD BOROUGH COUNCIL","HRA Income","Rent Refunds","9999997","06/10/2020",30004009,498.64,0,"Rent","","II","BACS","None",2020-09-24 00:00:00,"2020","07","RENT ACCOUNT NUMBER:100505770002","M9111","General Income","K5001","Rent"
"GUILDFORD BOROUGH COUNCIL","Tenant Services","The Public Trustee","178720","06/10/2020",30004010,40,0,"Services","Other Legal Service Providers","II","BACS","None",2020-09-18 00:00:00,"2020","07","Jane Elvy, 15 Millmead Court","M1151","Tenants Services (BHS)","D6004","Services"
"GUILDFORD BOROUGH COUNCIL","Energy Holding Account (Service)","Castle Water Limited","896380","06/10/2020",30004060,0.2,0,"Utilities","Mains Water Suppliers","II","BACS","None",2020-08-06 00:00:00,"2020","07","0001361717","G1141","Energy Services Holding Account","B2001","Utilities"
"GUILDFORD BOROUGH COUNCIL","Day Services","Adecco UK Ltd","461000","08/10/2020",30004061,1102.5,0,"Agency","Other Recruitment Agencies And Service Providers","II","BACS","None",2020-08-04 00:00:00,"2020","07","28773879","C8100","Community Hubs","A5191","Agency"
"GUILDFORD BOROUGH COUNCIL","Countryside and Parks Services","Countryside Contracts Ltd (Hire/NON CIS)","713690","27/10/2020",30004062,940,0,"Grounds Maintenance","Tree Work Contractors","II","BACS","None",2020-09-30 00:00:00,"2020","07","1878","A1300","Trees And Countryside","B6001","Grounds Maintenance"
"GUILDFORD BOROUGH COUNCIL","Parks Countryside Management","Countryside Contracts Ltd (Hire/NON CIS)","713690","27/10/2020",30004062,940,0,"Grounds Maintenance","Tree Work Contractors","II","BACS","None",2020-09-30 00:00:00,"2020","07","1878","A1300","Trees And Countryside","B6001","Grounds Maintenance"
"GUILDFORD BOROUGH COUNCIL","Day Services","Adecco UK Ltd","461000","06/10/2020",30004063,1102.5,0,"Agency","Other Recruitment Agencies And Service Providers","II","BACS","None",2020-07-28 00:00:00,"2020","07","28768634","C8100","Community Hubs","A5191","Agency"
"GUILDFORD BOROUGH COUNCIL","Building Maintenance","Simon Property Solution Ltd","807270","06/10/2020",30004064,1530.24,0,"Services","House Builders","II","BACS","None",2020-09-30 00:00:00,"2020","07","175GBC","K1515","Building Maintenance","D6004","Services"
"GUILDFORD BOROUGH COUNCIL","Public Conveniences","Castle Water Limited","896380","08/10/2020",30004065,208.47,0,"Utilities","Mains Water Suppliers","II","BACS","None",2020-09-14 00:00:00,"2020","07","0001590391","K6500","Public Conveniences","B2001","Utilities"
"GUILDFORD BOROUGH COUNCIL","Executive - Miscellaneous","Stevens and Bolton","1000050","06/10/2020",30004066,1663,0,"Legal Expenses","","II","BACS","None",2020-07-31 00:00:00,"2020","07","1371605","P79032","SMC (West) Phase 1","1395","Legal Expenses"
"GUILDFORD BOROUGH COUNCIL","Tourist Information Centre","R J Andrews","691700","27/10/2020",30004067,52.5,0,"Materials","","II","BACS","None",2020-09-30 00:00:00,"2020","07","1819","F5541","Tourist Information Centre","D2003","Materials"
"GUILDFORD BOROUGH COUNCIL","Exchequer Services","Morgan Hunt UK Limited","729420","20/10/2020",30004068,944.61,0,"Exchequer Services (TO BE RECODED)","Other Recruitment Agencies And Service Providers","II","BACS","None",2020-09-27 00:00:00,"2020","07","1195962","","Allocation Pending","8885","Exchequer Services (TO BE RECODED)"
"GUILDFORD BOROUGH COUNCIL","Regulatory Services","Chris Cory-Wright","951500","08/10/2020",30004069,293.92,0,"Regulatory Services (TO BE RECODED)","Third Party Supplier","II","BACS","None",2020-09-14 00:00:00,"2020","07","48A","","Allocation Pending","8911","Regulatory Services (TO BE RECODED)"
"GUILDFORD BOROUGH COUNCIL","Countryside and Parks Services","Castle Water Limited","896380","06/10/2020",30004070,455.77,0,"Utilities","Mains Water Suppliers","II","BACS","None",2020-09-08 00:00:00,"2020","07","0001547093","A1250","Stoke Park","B2001","Utilities"
"GUILDFORD BOROUGH COUNCIL","Parks and Countryside","Maydencroft Ltd","1000056","06/10/2020",30004071,-248,0,"Parks and Countryside (TO BE RECODED)","","II","BACS","None",2020-06-30 00:00:00,"2020","07","11562","","Allocation Pending","8907","Parks and Countryside (TO BE RECODED)"
"GUILDFORD BOROUGH COUNCIL","Homelessness Support","Croydon Court Ltd","996150","13/10/2020",30004072,1085,0,"Emergency Accomodation","","II","BACS","None",2020-08-31 00:00:00,"2020","07","C7132","C3311","Homelessness","D8009","Emergency Accomodation"
"GUILDFORD BOROUGH COUNCIL","Building Maintenance","Cinnamon Construction Limited (CIS)","921860","06/10/2020",30004073,6326.5,0,"Services","General Builders","II","BACS","None",2020-09-29 00:00:00,"2020","07","X0068127/25","K1515","Building Maintenance","D6004","Services"
"GUILDFORD BOROUGH COUNCIL","Countryside and Parks Services","Castle Water Limited","896380","06/10/2020",30004074,87.9,0,"Utilities","Mains Water Suppliers","II","BACS","None",2020-09-13 00:00:00,"2020","07","0001583449","A1230","Sutherland Memorial Park  Pavilion","B2001","Utilities"
"GUILDFORD BOROUGH COUNCIL","Countryside and Parks Services","Rigby Taylor Limited","714600","29/10/2020",30004075,172.62,0,"Materials","Gardening Equipment Suppliers","II","BACS","None",2020-09-29 00:00:00,"2020","07","RSIN0350617","A1200","Sports Grounds","D2003","Materials"
"GUILDFORD BOROUGH COUNCIL","Countryside and Parks Services","Rigby Taylor Limited","714600","29/10/2020",30004075,460.32,0,"Materials","Gardening Equipment Suppliers","II","BACS","None",2020-09-29 00:00:00,"2020","07","RSIN0350617","A1200","Sports Grounds","D2003","Materials"
"GUILDFORD BOROUGH COUNCIL","Countryside and Parks Services","Rigby Taylor Limited","714600","29/10/2020",30004075,175.68,0,"Materials","Gardening Equipment Suppliers","II","BACS","None",2020-09-29 00:00:00,"2020","07","RSIN0350617","A1200","Sports Grounds","D2003","Materials"
"GUILDFORD BOROUGH COUNCIL","Countryside and Parks Services","Rigby Taylor Limited","714600","29/10/2020",30004075,1620,0,"Materials","Gardening Equipment Suppliers","II","BACS","None",2020-09-29 00:00:00,"2020","07","RSIN0350617","A1200","Sports Grounds","D2003","Materials"
"GUILDFORD BOROUGH COUNCIL","Cemeteries","Castle Water Limited","896380","20/10/2020",30004076,3.93,0,"Utilities","Mains Water Suppliers","II","BACS","None",2020-09-07 00:00:00,"2020","07","0001519947","A1420","Cemeteries - The Mount","B2001","Utilities"
"GUILDFORD BOROUGH COUNCIL","Refuse and Recycling","Hotline Group Ltd","1000057","06/10/2020",30004077,261.45,0,"Equipment","","II","BACS","None",2020-07-23 00:00:00,"2020","07","AGN33239","K3551","Refuse - Domestic","D2001","Equipment"
"GUILDFORD BOROUGH COUNCIL","Street Cleansing","Hotline Group Ltd","1000057","06/10/2020",30004077,112.05,0,"Equipment","","II","BACS","None",2020-07-23 00:00:00,"2020","07","AGN33239","K4551","Street Cleansing","D2001","Equipment"
"GUILDFORD BOROUGH COUNCIL","Council Tax","Civica UK Ltd","963100","13/10/2020",30004078,1225.83,0,"Licences","Computer Systems Integrators","II","BACS","None",2020-09-17 00:00:00,"2020","07","M/RB078522","C4520","Local Council Tax Support Scheme","D8001","Licences"
"GUILDFORD BOROUGH COUNCIL","Council and Committee Support","Vivid Resourcing Limited","856800","13/10/2020",30004079,1806,0,"Agency","Other Recruitment Agencies And Service Providers","II","BACS","None",2020-09-16 00:00:00,"2020","07","50350","F1305","Planning","A5191","Agency"
"GUILDFORD BOROUGH COUNCIL","Grants to Voluntary Organisations","Voluntary Action South West Surrey","136770","13/10/2020",30004080,4873.5,0,"Grants And Subscriptions","Charities And Voluntary Organisations","II","BACS","None",2020-09-18 00:00:00,"2020","07","SWS10035","C3111","Community Grant Scheme","D9001","Grants And Subscriptions"
"GUILDFORD BOROUGH COUNCIL","Day Services","Adecco UK Ltd","461000","08/10/2020",30004081,984.38,0,"Agency","Other Recruitment Agencies And Service Providers","II","BACS","None",2020-08-18 00:00:00,"2020","07","28784668","C8100","Community Hubs","A5191","Agency"
"GUILDFORD BOROUGH COUNCIL","Public Conveniences","Castle Water Limited","896380","06/10/2020",30004082,4511.09,0,"Utilities","Mains Water Suppliers","II","BACS","None",2020-09-10 00:00:00,"2020","07","0001573040","K6500","Public Conveniences","B2001","Utilities"
"GUILDFORD BOROUGH COUNCIL","Countryside and Parks Services","Maydencroft Ltd","1000056","06/10/2020",30004083,3680,0,"Grounds Maintenance","","II","BACS","None",2020-07-22 00:00:00,"2020","07","11638","A1300","Trees And Countryside","B6001","Grounds Maintenance"
"GUILDFORD BOROUGH COUNCIL","Parks Countryside Management","Maydencroft Ltd","1000056","06/10/2020",30004083,3680,0,"Grounds Maintenance","","II","BACS","None",2020-07-22 00:00:00,"2020","07","11638","A1300","Trees And Countryside","B6001","Grounds Maintenance"
"GUILDFORD BOROUGH COUNCIL","Energy Holding Account (Service)","Castle Water Limited","896380","06/10/2020",30004084,0.1,0,"Utilities","Mains Water Suppliers","II","BACS","None",2020-08-06 00:00:00,"2020","07","0001362563","G1141","Energy Services Holding Account","B2001","Utilities"
"GUILDFORD BOROUGH COUNCIL","Energy Holding Account (Service)","Castle Water Limited","896380","06/10/2020",30004086,43.63,0,"Utilities","Mains Water Suppliers","II","BACS","None",2020-09-06 00:00:00,"2020","07","0001508454","G1141","Energy Services Holding Account","B2001","Utilities"
"GUILDFORD BOROUGH COUNCIL","Parks and Countryside","Maydencroft Ltd","1000056","06/10/2020",30004087,-124,0,"Parks and Countryside (TO BE RECODED)","","II","BACS","None",2020-07-08 00:00:00,"2020","07","11579","","Allocation Pending","8907","Parks and Countryside (TO BE RECODED)"
"GUILDFORD BOROUGH COUNCIL","Energy Holding Account (Service)","Castle Water Limited","896380","06/10/2020",30004088,6.12,0,"Utilities","Mains Water Suppliers","II","BACS","None",2020-09-07 00:00:00,"2020","07","0001520071","G1141","Energy Services Holding Account","B2001","Utilities"
"GUILDFORD BOROUGH COUNCIL","Investment Properties","Excel Facilities & Maintenance UK Ltd (CIS)","958110","06/10/2020",30004089,527,0,"Asset Maintenance","Electrical Engineers","II","BACS","None",2020-09-16 00:00:00,"2020","07","1145","B6111","Investment Property","B1001","Asset Maintenance"
"GUILDFORD BOROUGH COUNCIL","Investment Properties","Excel Facilities & Maintenance UK Ltd (CIS)","958110","06/10/2020",30004089,390,0,"Asset Maintenance","Electrical Engineers","II","BACS","None",2020-09-16 00:00:00,"2020","07","1145","B6111","Investment Property","B1001","Asset Maintenance"
"GUILDFORD BOROUGH COUNCIL","Energy Holding Account (Service)","Castle Water Limited","896380","08/10/2020",30004090,269.67,0,"Utilities","Mains Water Suppliers","II","BACS","None",2020-09-14 00:00:00,"2020","07","0001589538","G1141","Energy Services Holding Account","B2001","Utilities"
"GUILDFORD BOROUGH COUNCIL","Cemeteries","Castle Water Limited","896380","20/10/2020",30004091,2.71,0,"Utilities","Mains Water Suppliers","II","BACS","None",2020-09-07 00:00:00,"2020","07","0001520181","A1430","Cemeteries - Stoke Cemetery","B2001","Utilities"
"GUILDFORD BOROUGH COUNCIL","Community Wellbeing","Adecco UK Ltd","461000","06/10/2020",30004092,984.38,0,"Community Wellbeing (TO BE RECODED)","Other Recruitment Agencies And Service Providers","II","BACS","None",2020-08-11 00:00:00,"2020","07","28779035","","Allocation Pending","8915","Community Wellbeing (TO BE RECODED)"
"GUILDFORD BOROUGH COUNCIL","Fleet Services","P G Bateman","639100","06/10/2020",30004093,160,0,"Fleet Services (TO BE RECODED)","","II","BACS","None",2020-08-11 00:00:00,"2020","07","3796","","Allocation Pending","8891","Fleet Services (TO BE RECODED)"
"GUILDFORD BOROUGH COUNCIL","Other Property","Opus Energy Limited","884470","06/10/2020",30004094,10.31,0,"Utilities","Mains Electricity Suppliers","II","BACS","None",2020-09-06 00:00:00,"2020","07","69126359","B6550","Multiplex Cinema, Bedford Road","B2001","Utilities"
"GUILDFORD BOROUGH COUNCIL","Housing Advice","Vivid Resourcing Limited","856800","27/10/2020",30004095,1926,0,"Housing Advice (TO BE RECODED)","Other Recruitment Agencies And Service Providers","II","BACS","None",2020-09-30 00:00:00,"2020","07","50807","","Allocation Pending","8917","Housing Advice (TO BE RECODED)"
"GUILDFORD BOROUGH COUNCIL","Parks and Countryside","Maydencroft Ltd","1000056","06/10/2020",30004096,147.2,0,"Parks and Countryside (TO BE RECODED)","","II","BACS","None",2020-06-30 00:00:00,"2020","07","11549","","Allocation Pending","8907","Parks and Countryside (TO BE RECODED)"
"GUILDFORD BOROUGH COUNCIL","Countryside and Parks Services","Maydencroft Ltd","1000056","06/10/2020",30004096,7212.8,0,"Grounds Maintenance","","II","BACS","None",2020-06-30 00:00:00,"2020","07","11549","A1300","Trees And Countryside","B6001","Grounds Maintenance"
"GUILDFORD BOROUGH COUNCIL","Parks Countryside Management","Maydencroft Ltd","1000056","06/10/2020",30004096,7212.8,0,"Grounds Maintenance","","II","BACS","None",2020-06-30 00:00:00,"2020","07","11549","A1300","Trees And Countryside","B6001","Grounds Maintenance"
"GUILDFORD BOROUGH COUNCIL","Lead Specialist - ICT","Ultima Business Solutions Limited","886070","27/10/2020",30004097,5900.76,0,"Licences","Computer Systems Integrators","II","BACS","None",2020-09-30 00:00:00,"2020","07","OP/I187270","G3548","ICT Technical & Infrastructure","D8001","Licences"
"GUILDFORD BOROUGH COUNCIL","Lead Specialist - ICT","Ultima Business Solutions Limited","886070","27/10/2020",30004097,523.03,0,"Licences","Computer Systems Integrators","II","BACS","None",2020-09-30 00:00:00,"2020","07","OP/I187270","G3548","ICT Technical & Infrastructure","D8001","Licences"
"GUILDFORD BOROUGH COUNCIL","Exchequer Services","Morgan Hunt UK Limited","729420","20/10/2020",30004098,859.34,0,"Exchequer Services (TO BE RECODED)","Other Recruitment Agencies And Service Providers","II","BACS","None",2020-09-27 00:00:00,"2020","07","1195961","","Allocation Pending","8885","Exchequer Services (TO BE RECODED)"
"GUILDFORD BOROUGH COUNCIL","Countryside and Parks Services","Castle Water Limited","896380","15/10/2020",30004099,30.51,0,"Utilities","Mains Water Suppliers","II","BACS","None",2020-09-15 00:00:00,"2020","07","0001597994","A1300","Trees And Countryside","B2001","Utilities"
"GUILDFORD BOROUGH COUNCIL","Parks Countryside Management","Castle Water Limited","896380","15/10/2020",30004099,30.51,0,"Utilities","Mains Water Suppliers","II","BACS","None",2020-09-15 00:00:00,"2020","07","0001597994","A1300","Trees And Countryside","B2001","Utilities"
"GUILDFORD BOROUGH COUNCIL","Industrial Estates","Chambers Runfold Plc","127400","06/10/2020",30004100,150,0,"Contractor Payments","Quarry And Aggregates Suppliers","II","BACS","None",2020-09-08 00:00:00,"2020","07","0000004057","P72037","Midleton Ind Est Redevelop","1233","Contractor Payments"
"GUILDFORD BOROUGH COUNCIL","Countryside and Parks Services","Maydencroft Ltd","1000056","06/10/2020",30004101,24394.16,0,"Grounds Maintenance","","II","BACS","None",2020-07-20 00:00:00,"2020","07","11622","A1300","Trees And Countryside","B6001","Grounds Maintenance"
"GUILDFORD BOROUGH COUNCIL","Parks Countryside Management","Maydencroft Ltd","1000056","06/10/2020",30004101,24394.16,0,"Grounds Maintenance","","II","BACS","None",2020-07-20 00:00:00,"2020","07","11622","A1300","Trees And Countryside","B6001","Grounds Maintenance"
"GUILDFORD BOROUGH COUNCIL","Parks and Countryside","Maydencroft Ltd","1000056","06/10/2020",30004101,597.41,0,"Parks and Countryside (TO BE RECODED)","","II","BACS","None",2020-07-20 00:00:00,"2020","07","11622","","Allocation Pending","8907","Parks and Countryside (TO BE RECODED)"
"GUILDFORD BOROUGH COUNCIL","Other Short Term Creditors","SCBS (CIS)","921750","06/10/2020",30004102,5742.76,0,"Payments","Other Construction Contractors","II","BACS","None",2020-09-15 00:00:00,"2020","07","1241","L02088","Care & Repair Client Fund","2489","Payments"
"GUILDFORD BOROUGH COUNCIL","Tenant Services","British Gas Trading Ltd","341270","13/10/2020",30004103,111.9,0,"Utilities","Mains Utility Multiple Service Providers","II","BACS","None",2020-07-26 00:00:00,"2020","07","850059255053","M1151","Tenants Services (BHS)","B2001","Utilities"
"GUILDFORD BOROUGH COUNCIL","Civic Expenses","Community Foundation For Surrey Grants - Closed see account - 774460","844630","27/10/2020",30004104,407,0,"Events","Community Services Providers","II","BACS","None",2020-09-30 00:00:00,"2020","07","Match funding payment for September 2020","F2131","Civic Expenses","D8006","Events"
"GUILDFORD BOROUGH COUNCIL","Corporate Services","Penna Plc","674100","20/10/2020",30004105,4333.33,0,"Vacancy And Interview Costs","Human Resources Consultants","II","BACS","None",2020-06-30 00:00:00,"2020","07","616679","F1111","Corporate Services","A7120","Vacancy And Interview Costs"
"GUILDFORD BOROUGH COUNCIL","Responsive & Planned Maintenance","Des Bone Limited","169401","06/10/2020",30004106,60,0,"Cleaning Contractors","","II","BACS","None",2020-07-14 00:00:00,"2020","07","14474","M5113","Repairs-Responsive (BHS)","D6006","Cleaning Contractors"
"GUILDFORD BOROUGH COUNCIL","Responsive & Planned Maintenance","Des Bone Limited","169401","06/10/2020",30004107,65,0,"Cleaning Contractors","","II","BACS","None",2020-07-21 00:00:00,"2020","07","14490","M5113","Repairs-Responsive (BHS)","D6006","Cleaning Contractors"
"GUILDFORD BOROUGH COUNCIL","Responsive & Planned Maintenance","Des Bone Limited","169401","06/10/2020",30004108,65,0,"Cleaning Contractors","","II","BACS","None",2020-07-23 00:00:00,"2020","07","14502","M5113","Repairs-Responsive (BHS)","D6006","Cleaning Contractors"
"GUILDFORD BOROUGH COUNCIL","Flats Communal Services","Des Bone Limited","169401","06/10/2020",30004109,80,0,"Asset Maintenance","","II","BACS","None",2020-07-23 00:00:00,"2020","07","14503","M2666","Clover Rd 77-83 Odd (4)","B1001","Asset Maintenance"
"GUILDFORD BOROUGH COUNCIL","Day Services","Bolton Gate Services Ltd","495400","06/10/2020",30004110,700,0,"Asset Maintenance","Security Shutter, Door And Gate Contractors","II","BACS","None",2020-08-24 00:00:00,"2020","07","SI0034303","C8100","Community Hubs","B1001","Asset Maintenance"
"GUILDFORD BOROUGH COUNCIL","Guildhall","Concrete Repairs Ltd","722880","06/10/2020",30004111,47.34,0,"Building Expenses","Concrete Cutting, Drilling And Maintenance Contractors","II","BACS","None",2020-07-31 00:00:00,"2020","07","INV/016501","F3311","Guildhall","B1002","Building Expenses"
"GUILDFORD BOROUGH COUNCIL","Responsive & Planned Maintenance","Concrete Repairs Ltd","722880","06/10/2020",30004111,124.27,0,"Building Expenses","Concrete Cutting, Drilling And Maintenance Contractors","II","BACS","None",2020-07-31 00:00:00,"2020","07","INV/016501","M5113","Repairs-Responsive (BHS)","B1002","Building Expenses"
"GUILDFORD BOROUGH COUNCIL","Other Property","Concrete Repairs Ltd","722880","06/10/2020",30004111,110.47,0,"Building Expenses","Concrete Cutting, Drilling And Maintenance Contractors","II","BACS","None",2020-07-31 00:00:00,"2020","07","INV/016501","G7515","Old Millmead House","B1002","Building Expenses"
"GUILDFORD BOROUGH COUNCIL","Other Property","Concrete Repairs Ltd","722880","06/10/2020",30004111,227.97,0,"Building Expenses","Concrete Cutting, Drilling And Maintenance Contractors","II","BACS","None",2020-07-31 00:00:00,"2020","07","INV/016501","G7515","Old Millmead House","B1002","Building Expenses"
"GUILDFORD BOROUGH COUNCIL","Off Street Parking","Concrete Repairs Ltd","722880","06/10/2020",30004111,135.74,0,"Building Expenses","Concrete Cutting, Drilling And Maintenance Contractors","II","BACS","None",2020-07-31 00:00:00,"2020","07","INV/016501","B2277","Castle Mscp","B1002","Building Expenses"
"GUILDFORD BOROUGH COUNCIL","Guildford Museum","Concrete Repairs Ltd","722880","06/10/2020",30004111,147.67,0,"Building Expenses","Concrete Cutting, Drilling And Maintenance Contractors","II","BACS","None",2020-07-31 00:00:00,"2020","07","INV/016501","A5511","Museum","B1002","Building Expenses"
"GUILDFORD BOROUGH COUNCIL","Guildford Museum","Concrete Repairs Ltd","722880","06/10/2020",30004111,60.87,0,"Building Expenses","Concrete Cutting, Drilling And Maintenance Contractors","II","BACS","None",2020-07-31 00:00:00,"2020","07","INV/016501","A5511","Museum","B1002","Building Expenses"
"GUILDFORD BOROUGH COUNCIL","Guildford Museum","Concrete Repairs Ltd","722880","06/10/2020",30004111,110.47,0,"Building Expenses","Concrete Cutting, Drilling And Maintenance Contractors","II","BACS","None",2020-07-31 00:00:00,"2020","07","INV/016501","A5511","Museum","B1002","Building Expenses"
"GUILDFORD BOROUGH COUNCIL","Guildford House","Concrete Repairs Ltd","722880","06/10/2020",30004111,138.07,0,"Building Expenses","Concrete Cutting, Drilling And Maintenance Contractors","II","BACS","None",2020-07-31 00:00:00,"2020","07","INV/016501","A4511","Guildford House Administration","B1002","Building Expenses"
"GUILDFORD BOROUGH COUNCIL","Guildford House","Concrete Repairs Ltd","722880","06/10/2020",30004111,110.47,0,"Building Expenses","Concrete Cutting, Drilling And Maintenance Contractors","II","BACS","None",2020-07-31 00:00:00,"2020","07","INV/016501","A4511","Guildford House Administration","B1002","Building Expenses"
"GUILDFORD BOROUGH COUNCIL","Responsive & Planned Maintenance","Concrete Repairs Ltd","722880","06/10/2020",30004111,348.22,0,"Building Expenses","Concrete Cutting, Drilling And Maintenance Contractors","II","BACS","None",2020-07-31 00:00:00,"2020","07","INV/016501","M5106","Repairs-Shelt-Responsive (BHS)","B1002","Building Expenses"
"GUILDFORD BOROUGH COUNCIL","Responsive & Planned Maintenance","Concrete Repairs Ltd","722880","06/10/2020",30004111,837,0,"Building Expenses","Concrete Cutting, Drilling And Maintenance Contractors","II","BACS","None",2020-07-31 00:00:00,"2020","07","INV/016501","M5106","Repairs-Shelt-Responsive (BHS)","B1002","Building Expenses"
"GUILDFORD BOROUGH COUNCIL","Responsive & Planned Maintenance","Concrete Repairs Ltd","722880","06/10/2020",30004111,1081,0,"Building Expenses","Concrete Cutting, Drilling And Maintenance Contractors","II","BACS","None",2020-07-31 00:00:00,"2020","07","INV/016501","M5106","Repairs-Shelt-Responsive (BHS)","B1002","Building Expenses"
"GUILDFORD BOROUGH COUNCIL","Responsive & Planned Maintenance","Concrete Repairs Ltd","722880","06/10/2020",30004111,346.84,0,"Building Expenses","Concrete Cutting, Drilling And Maintenance Contractors","II","BACS","None",2020-07-31 00:00:00,"2020","07","INV/016501","M5106","Repairs-Shelt-Responsive (BHS)","B1002","Building Expenses"
"GUILDFORD BOROUGH COUNCIL","Responsive & Planned Maintenance","Concrete Repairs Ltd","722880","06/10/2020",30004111,110.47,0,"Building Expenses","Concrete Cutting, Drilling And Maintenance Contractors","II","BACS","None",2020-07-31 00:00:00,"2020","07","INV/016501","M5106","Repairs-Shelt-Responsive (BHS)","B1002","Building Expenses"
"GUILDFORD BOROUGH COUNCIL","Responsive & Planned Maintenance","Concrete Repairs Ltd","722880","06/10/2020",30004111,110.47,0,"Building Expenses","Concrete Cutting, Drilling And Maintenance Contractors","II","BACS","None",2020-07-31 00:00:00,"2020","07","INV/016501","M5106","Repairs-Shelt-Responsive (BHS)","B1002","Building Expenses"
"GUILDFORD BOROUGH COUNCIL","Responsive & Planned Maintenance","Concrete Repairs Ltd","722880","06/10/2020",30004111,32.47,0,"Building Expenses","Concrete Cutting, Drilling And Maintenance Contractors","II","BACS","None",2020-07-31 00:00:00,"2020","07","INV/016501","M5106","Repairs-Shelt-Responsive (BHS)","B1002","Building Expenses"
"GUILDFORD BOROUGH COUNCIL","Responsive & Planned Maintenance","Concrete Repairs Ltd","722880","06/10/2020",30004111,110.47,0,"Building Expenses","Concrete Cutting, Drilling And Maintenance Contractors","II","BACS","None",2020-07-31 00:00:00,"2020","07","INV/016501","M5106","Repairs-Shelt-Responsive (BHS)","B1002","Building Expenses"
"GUILDFORD BOROUGH COUNCIL","Responsive & Planned Maintenance","European Asbestos Services Limited","919910","06/10/2020",30004112,69,0,"Asset Maintenance","Asbestos Removal Service Providers","II","BACS","None",2020-08-31 00:00:00,"2020","07","IA25794","M5113","Repairs-Responsive (BHS)","B1001","Asset Maintenance"
"GUILDFORD BOROUGH COUNCIL","Responsive & Planned Maintenance","Stannah Limited (CIS)","913700","06/10/2020",30004113,150.07,0,"Asset Maintenance","Stairlift Suppliers","II","BACS","None",2020-08-24 00:00:00,"2020","07","1085220636","M5113","Repairs-Responsive (BHS)","B1001","Asset Maintenance"
"GUILDFORD BOROUGH COUNCIL","Property","Hannaford Upright Ltd","236800","06/10/2020",30004114,3415.75,0,"Consultants Fees","Other Construction Consultants","II","BACS","None",2020-08-31 00:00:00,"2020","07","3371/10084","P74060","1-3 Bridge Street (Armour Bui)","1221","Consultants Fees"
"GUILDFORD BOROUGH COUNCIL","Responsive & Planned Maintenance","Paul Phelan","261400","06/10/2020",30004115,59.5,0,"Asset Maintenance","Sewerage And Drainage Service Providers","II","BACS","None",2020-07-29 00:00:00,"2020","07","82132","M5113","Repairs-Responsive (BHS)","B1001","Asset Maintenance"
"GUILDFORD BOROUGH COUNCIL","Responsive & Planned Maintenance","Paul Phelan","261400","06/10/2020",30004116,59.5,0,"Asset Maintenance","Sewerage And Drainage Service Providers","II","BACS","None",2020-07-31 00:00:00,"2020","07","82144","M5113","Repairs-Responsive (BHS)","B1001","Asset Maintenance"
"GUILDFORD BOROUGH COUNCIL","Responsive & Planned Maintenance","Paul Phelan","261400","06/10/2020",30004117,59.5,0,"Asset Maintenance","Sewerage And Drainage Service Providers","II","BACS","None",2020-10-08 00:00:00,"2020","07","82183","M5113","Repairs-Responsive (BHS)","B1001","Asset Maintenance"
"GUILDFORD BOROUGH COUNCIL","Responsive & Planned Maintenance","Paul Phelan","261400","29/10/2020",30004118,59.5,0,"Asset Maintenance","Sewerage And Drainage Service Providers","II","BACS","None",2020-11-08 00:00:00,"2020","07","82191","M5113","Repairs-Responsive (BHS)","B1001","Asset Maintenance"
"GUILDFORD BOROUGH COUNCIL","Responsive & Planned Maintenance","Paul Phelan","261400","29/10/2020",30004119,76,0,"Asset Maintenance","Sewerage And Drainage Service Providers","II","BACS","None",2020-12-08 00:00:00,"2020","07","82199","M5113","Repairs-Responsive (BHS)","B1001","Asset Maintenance"
"GUILDFORD BOROUGH COUNCIL","Responsive & Planned Maintenance","Paul Phelan","261400","06/10/2020",30004120,59.5,0,"Asset Maintenance","Sewerage And Drainage Service Providers","II","BACS","None",2020-08-14 00:00:00,"2020","07","82216","M5113","Repairs-Responsive (BHS)","B1001","Asset Maintenance"
"GUILDFORD BOROUGH COUNCIL","Responsive & Planned Maintenance","Paul Phelan","261400","06/10/2020",30004121,59.5,0,"Asset Maintenance","Sewerage And Drainage Service Providers","II","BACS","None",2020-08-14 00:00:00,"2020","07","82217","M5113","Repairs-Responsive (BHS)","B1001","Asset Maintenance"
"GUILDFORD BOROUGH COUNCIL","Responsive & Planned Maintenance","Paul Phelan","261400","06/10/2020",30004122,59.5,0,"Asset Maintenance","Sewerage And Drainage Service Providers","II","BACS","None",2020-08-17 00:00:00,"2020","07","82223","M5113","Repairs-Responsive (BHS)","B1001","Asset Maintenance"
"GUILDFORD BOROUGH COUNCIL","Responsive & Planned Maintenance","Paul Phelan","261400","06/10/2020",30004123,59.5,0,"Asset Maintenance","Sewerage And Drainage Service Providers","II","BACS","None",2020-08-17 00:00:00,"2020","07","82224","M5113","Repairs-Responsive (BHS)","B1001","Asset Maintenance"
"GUILDFORD BOROUGH COUNCIL","Responsive & Planned Maintenance","Paul Phelan","261400","06/10/2020",30004124,59.5,0,"Asset Maintenance","Sewerage And Drainage Service Providers","II","BACS","None",2020-08-18 00:00:00,"2020","07","82227","M5113","Repairs-Responsive (BHS)","B1001","Asset Maintenance"
"GUILDFORD BOROUGH COUNCIL","Responsive & Planned Maintenance","Paul Phelan","261400","06/10/2020",30004125,59.5,0,"Asset Maintenance","Sewerage And Drainage Service Providers","II","BACS","None",2020-08-21 00:00:00,"2020","07","82243","M5113","Repairs-Responsive (BHS)","B1001","Asset Maintenance"
"GUILDFORD BOROUGH COUNCIL","Responsive & Planned Maintenance","Paul Phelan","261400","06/10/2020",30004126,59.5,0,"Asset Maintenance","Sewerage And Drainage Service Providers","II","BACS","None",2020-08-31 00:00:00,"2020","07","82275","M5113","Repairs-Responsive (BHS)","B1001","Asset Maintenance"
"GUILDFORD BOROUGH COUNCIL","Major Projects","The Oyster Partnership Ltd","814220","27/10/2020",30004128,4400,0,"Agency","Other Recruitment Agencies And Service Providers","II","BACS","None",2020-10-01 00:00:00,"2020","07","1082470","F5530","Major Projects","A5191","Agency"
"GUILDFORD BOROUGH COUNCIL","Countryside and Parks Services","Murrill Construction Limited","893350","06/10/2020",30004129,11126.57,0,"Grounds Maintenance","Civil Engineers","II","BACS","None",2020-09-30 00:00:00,"2020","07","GBC13534","A1210","Stoughton Rec Ground","B6001","Grounds Maintenance"
"GUILDFORD BOROUGH COUNCIL","Off Street Parking","Hub Parking Technology","757270","15/10/2020",30004130,1950,0,"Telephones & Broadband","Parking Management Providers","II","BACS","None",2020-09-21 00:00:00,"2020","07","SIN341394","B2216","General Upkeep- Urban Car Pks","D7004","Telephones & Broadband"
"GUILDFORD BOROUGH COUNCIL","New Build","3R Finance Ltd","1000077","22/10/2020",30004131,372.9,0,"Consultants Fees","","II","BACS","None",2020-09-29 00:00:00,"2020","07","INV-39404","N30026","Banders Rise","1221","Consultants Fees"
"GUILDFORD BOROUGH COUNCIL","New Build","3R Finance Ltd","1000077","22/10/2020",30004131,372.9,0,"Consultants Fees","","II","BACS","None",2020-09-29 00:00:00,"2020","07","INV-39404","N30028","Dunmore Garden Land","1221","Consultants Fees"
"GUILDFORD BOROUGH COUNCIL","Affordable Hsg - Site Prep Etc","3R Finance Ltd","1000077","22/10/2020",30004131,248.6,0,"Consultants Fees","","II","BACS","None",2020-09-29 00:00:00,"2020","07","INV-39404","N55035","17 Wharf Lane","1221","Consultants Fees"
"GUILDFORD BOROUGH COUNCIL","Affordable Hsg - Site Prep Etc","3R Finance Ltd","1000077","22/10/2020",30004131,248.6,0,"Consultants Fees","","II","BACS","None",2020-09-29 00:00:00,"2020","07","INV-39404","N55034","27 Broomfield","1221","Consultants Fees"
"GUILDFORD BOROUGH COUNCIL","Landlord Services HRA","Allpay Ltd","914220","27/10/2020",30004132,1230.14,0,"Landlord Services HRA (TO BE RECODED)","Other Financial Service Providers","II","BACS","None",2020-09-30 00:00:00,"2020","07","0000659677GBDD","","Allocation Pending","8912","Landlord Services HRA (TO BE RECODED)"
"GUILDFORD BOROUGH COUNCIL","New Build","Carrington West Limited","950550","27/10/2020",30004133,97.5,0,"Consultants Fees","Other Recruitment Agencies And Service Providers","II","BACS","None",2020-09-30 00:00:00,"2020","07","134509","N30026","Banders Rise","1221","Consultants Fees"
"GUILDFORD BOROUGH COUNCIL","New Build","Carrington West Limited","950550","27/10/2020",30004133,1462.5,0,"Consultants Fees","Other Recruitment Agencies And Service Providers","II","BACS","None",2020-09-30 00:00:00,"2020","07","134509","N30012","Appletree Pub Site","1221","Consultants Fees"
"GUILDFORD BOROUGH COUNCIL","New Build","Carrington West Limited","950550","27/10/2020",30004133,390,0,"Consultants Fees","Other Recruitment Agencies And Service Providers","II","BACS","None",2020-09-30 00:00:00,"2020","07","134509","N30019","Ladymead/Fire Station Site","1221","Consultants Fees"
"GUILDFORD BOROUGH COUNCIL","Off Street Parking","Harpers Door Specialists","759110","13/10/2020",30004134,9160,0,"Asset Maintenance","Security Shutter, Door And Gate Contractors","II","BACS","None",2020-09-10 00:00:00,"2020","07","3591","B2291","York Road Mscp","B1001","Asset Maintenance"
"GUILDFORD BOROUGH COUNCIL","Off Street Parking","Harpers Door Specialists","759110","13/10/2020",30004134,2000,0,"Asset Maintenance","Security Shutter, Door And Gate Contractors","II","BACS","None",2020-09-10 00:00:00,"2020","07","3591","B2291","York Road Mscp","B1001","Asset Maintenance"
"GUILDFORD BOROUGH COUNCIL","Woking Road Depot Stores","Banner Group Limited","834160","27/10/2020",30004135,15.68,0,"Stationery & Paper","Other Office Equipment Suppliers","II","BACS","None",2020-09-30 00:00:00,"2020","07","6005272","K7515","Woking Road Depot Stores","D5007","Stationery & Paper"
"GUILDFORD BOROUGH COUNCIL","Woking Road Depot Stores","Banner Group Limited","834160","27/10/2020",30004135,25.87,0,"Stationery & Paper","Other Office Equipment Suppliers","II","BACS","None",2020-09-30 00:00:00,"2020","07","6005272","K7515","Woking Road Depot Stores","D5007","Stationery & Paper"
"GUILDFORD BOROUGH COUNCIL","Woking Road Depot Stores","Banner Group Limited","834160","27/10/2020",30004135,104.91,0,"Equipment","Other Office Equipment Suppliers","II","BACS","None",2020-09-30 00:00:00,"2020","07","6005272","K7515","Woking Road Depot Stores","D2001","Equipment"
"GUILDFORD BOROUGH COUNCIL","Waste-Business Support","Banner Group Limited","834160","27/10/2020",30004135,6.78,0,"Waste-Business Support (TO BE RECODED)","Other Office Equipment Suppliers","II","BACS","None",2020-09-30 00:00:00,"2020","07","6005272","","Allocation Pending","8890","Waste-Business Support (TO BE RECODED)"
"GUILDFORD BOROUGH COUNCIL","Fleet Services","ATE (UK) Ltd.","1000044","13/10/2020",30004136,1110,0,"Fleet Services (TO BE RECODED)","","II","BACS","None",2020-07-07 00:00:00,"2020","07","IN366198","","Allocation Pending","8891","Fleet Services (TO BE RECODED)"
"GUILDFORD BOROUGH COUNCIL","Vehicle Maintenance","ATE (UK) Ltd.","1000044","13/10/2020",30004136,1000,0,"Repair And Maintenance Of Vehicles","","II","BACS","None",2020-07-07 00:00:00,"2020","07","IN366198","K5551","Fleet Workshops","C1002","Repair And Maintenance Of Vehicles"
"GUILDFORD BOROUGH COUNCIL","Fleet Services","ATE (UK) Ltd.","1000044","06/10/2020",30004137,92.45,0,"Fleet Services (TO BE RECODED)","","II","BACS","None",2020-07-22 00:00:00,"2020","07","IN367503","","Allocation Pending","8891","Fleet Services (TO BE RECODED)"
"GUILDFORD BOROUGH COUNCIL","Homelessness Support","Croydon Court Ltd","996150","27/10/2020",30004138,1050,0,"Emergency Accomodation","","II","BACS","None",2020-09-30 00:00:00,"2020","07","C7164","C3311","Homelessness","D8009","Emergency Accomodation"
"GUILDFORD BOROUGH COUNCIL","Fleet Services","ATE (UK) Ltd.","1000044","06/10/2020",30004139,257.5,0,"Fleet Services (TO BE RECODED)","","II","BACS","None",2020-07-13 00:00:00,"2020","07","IN366650","","Allocation Pending","8891","Fleet Services (TO BE RECODED)"
"GUILDFORD BOROUGH COUNCIL","Countryside and Parks Services","Nomix Enviro Limited","621700","29/10/2020",30004140,227.1,0,"Materials","Other Chemical Suppliers","II","BACS","None",2020-10-01 00:00:00,"2020","07","SI/04419167","A1100","Horticulture","D2003","Materials"
"GUILDFORD BOROUGH COUNCIL","Executive - Miscellaneous","The Oyster Partnership Ltd","814220","27/10/2020",30004141,1392,0,"Agency Staff","Other Recruitment Agencies And Service Providers","II","BACS","None",2020-10-01 00:00:00,"2020","07","1082469","P79100","Wuv - Allotment Relocation","1222","Agency Staff"
"GUILDFORD BOROUGH COUNCIL","Property","The Oyster Partnership Ltd","814220","27/10/2020",30004141,696,0,"Agency Staff","Other Recruitment Agencies And Service Providers","II","BACS","None",2020-10-01 00:00:00,"2020","07","1082469","P74040","Slyfield Area Regeneration Project","1222","Agency Staff"
"GUILDFORD BOROUGH COUNCIL","Property","The Oyster Partnership Ltd","814220","27/10/2020",30004141,1392,0,"Agency Staff","Other Recruitment Agencies And Service Providers","II","BACS","None",2020-10-01 00:00:00,"2020","07","1082469","P74040","Slyfield Area Regeneration Project","1222","Agency Staff"
"GUILDFORD BOROUGH COUNCIL","Industrial Estates","Freeths LLP (London)","885990","03/11/2020",30004142,2675.37,0,"Services","Other Legal Service Providers","II","BACS","None",2020-09-30 00:00:00,"2020","07","204582","B5351","Slyfield Industrial Estate","D6004","Services"
"GUILDFORD BOROUGH COUNCIL","Business Improvement","Systems Accountants Limited","975830","06/10/2020",30004143,7902.5,0,"Consultancy","","II","BACS","None",2020-08-03 00:00:00,"2020","07","SAUK11119","G3531","Future Guildford","D6001","Consultancy"
"GUILDFORD BOROUGH COUNCIL","Audit Management","Systems Accountants Limited","975830","06/10/2020",30004143,7902.5,0,"Consultancy","","II","BACS","None",2020-08-03 00:00:00,"2020","07","SAUK11119","G3531","Future Guildford","D6001","Consultancy"
"GUILDFORD BOROUGH COUNCIL","New Build","Carrington West Limited","950550","27/10/2020",30004144,789.75,0,"Consultants Fees","Other Recruitment Agencies And Service Providers","II","BACS","None",2020-09-30 00:00:00,"2020","07","134511","N30012","Appletree Pub Site","1221","Consultants Fees"
"GUILDFORD BOROUGH COUNCIL","New Build","Carrington West Limited","950550","27/10/2020",30004144,614.25,0,"Consultants Fees","Other Recruitment Agencies And Service Providers","II","BACS","None",2020-09-30 00:00:00,"2020","07","134511","N30019","Ladymead/Fire Station Site","1221","Consultants Fees"
"GUILDFORD BOROUGH COUNCIL","Affordable Hsg - Site Prep Etc","Carrington West Limited","950550","27/10/2020",30004144,351,0,"Consultants Fees","Other Recruitment Agencies And Service Providers","II","BACS","None",2020-09-30 00:00:00,"2020","07","134511","N55024","Rapleys Field","1221","Consultants Fees"
"GUILDFORD BOROUGH COUNCIL","Civic Expenses","Guildford Fringe Theatre Company Ltd","719260","06/10/2020",30004145,500,0,"Advertising, Publicity & Promotion","Theatres","II","BACS","None",2020-08-05 00:00:00,"2020","07","INV-0615","F2131","Civic Expenses","D5002","Advertising, Publicity & Promotion"
"GUILDFORD BOROUGH COUNCIL","New Build","Carrington West Limited","950550","27/10/2020",30004146,487.5,0,"Consultants Fees","Other Recruitment Agencies And Service Providers","II","BACS","None",2020-09-30 00:00:00,"2020","07","134510","N30019","Ladymead/Fire Station Site","1221","Consultants Fees"
"GUILDFORD BOROUGH COUNCIL","New Build","Carrington West Limited","950550","27/10/2020",30004146,1267.5,0,"Consultants Fees","Other Recruitment Agencies And Service Providers","II","BACS","None",2020-09-30 00:00:00,"2020","07","134510","N30012","Appletree Pub Site","1221","Consultants Fees"
"GUILDFORD BOROUGH COUNCIL","Affordable Hsg - Site Prep Etc","Carrington West Limited","950550","27/10/2020",30004146,195,0,"Consultants Fees","Other Recruitment Agencies And Service Providers","II","BACS","None",2020-09-30 00:00:00,"2020","07","134510","N55035","17 Wharf Lane","1221","Consultants Fees"
"GUILDFORD BOROUGH COUNCIL","Miscellaneous Expenses","ESE Direct Ltd","1000067","06/10/2020",30004147,245,0,"Furniture","","II","BACS","None",2020-07-30 00:00:00,"2020","07","ESI1102317","F7539","COVID-19","D2002","Furniture"
"GUILDFORD BOROUGH COUNCIL","Major Projects","The Oyster Partnership Ltd","814220","27/10/2020",30004148,1044,0,"Agency","Other Recruitment Agencies And Service Providers","II","BACS","None",2020-10-01 00:00:00,"2020","07","1082468","F5530","Major Projects","A5191","Agency"
"GUILDFORD BOROUGH COUNCIL","Major Projects","The Oyster Partnership Ltd","814220","27/10/2020",30004148,1856,0,"Agency","Other Recruitment Agencies And Service Providers","II","BACS","None",2020-10-01 00:00:00,"2020","07","1082468","F5530","Major Projects","A5191","Agency"
"GUILDFORD BOROUGH COUNCIL","Regulatory Services","Richard Lucas","906410","27/10/2020",30004150,394.13,0,"Regulatory Services (TO BE RECODED)","","II","BACS","None",2020-10-04 00:00:00,"2020","07","193","","Allocation Pending","8911","Regulatory Services (TO BE RECODED)"
"GUILDFORD BOROUGH COUNCIL","Affordable Hsg - Site Prep Etc","Gyoury Self Consulting Engineers","854530","27/10/2020",30004151,1837.5,0,"Consultants Fees","Other Technical Consultants","II","BACS","None",2020-09-30 00:00:00,"2020","07","H20013","N55014","Garage Sites - General","1221","Consultants Fees"
"GUILDFORD BOROUGH COUNCIL","Private Sector Housing Maintenance","Chris Cory-Wright","951500","27/10/2020",30004152,205,0,"Contractor Payments","Third Party Supplier","II","BACS","None",2020-10-02 00:00:00,"2020","07","51A","C5136","Handyperson Service","1233","Contractor Payments"
"GUILDFORD BOROUGH COUNCIL","Vehicle Maintenance","Go Plant Fleet Services Ltd","979090","27/10/2020",30004153,914.97,0,"External Vehicle Hire","Third Party Supplier","II","BACS","None",2020-09-30 00:00:00,"2020","07","INV00013339","K5551","Fleet Workshops","C3001","External Vehicle Hire"
"GUILDFORD BOROUGH COUNCIL","Major Projects","The Oyster Partnership Ltd","814220","27/10/2020",30004154,2930.66,0,"Major Projects (TO BE RECODED)","Other Recruitment Agencies And Service Providers","II","BACS","None",2020-10-01 00:00:00,"2020","07","1082471","","Allocation Pending","8893","Major Projects (TO BE RECODED)"
"GUILDFORD BOROUGH COUNCIL","Private Sector Housing Maintenance","Chris Cory-Wright","951500","22/10/2020",30004155,202.29,0,"Contractor Payments","Third Party Supplier","II","BACS","None",2020-09-28 00:00:00,"2020","07","50A","C5136","Handyperson Service","1233","Contractor Payments"
"GUILDFORD BOROUGH COUNCIL","Refuse and Recycling","CTG Enterprises Ltd","795800","27/10/2020",30004156,180,0,"Services","Other Cleaning And Janitorial Service Providers","II","BACS","None",2020-10-01 00:00:00,"2020","07","GU1691GBC","K3551","Refuse - Domestic","D6004","Services"
"GUILDFORD BOROUGH COUNCIL","Off Street Parking","Conduent Public Sector UK Ltd","870310","27/10/2020",30004157,62.37,0,"Vehicle Operating Costs","Software Developers","II","BACS","None",2020-10-02 00:00:00,"2020","07","1580945","B2111","Car Parks - Administration","C1001","Vehicle Operating Costs"
"GUILDFORD BOROUGH COUNCIL","Civil Emergencies","Applied Resilience Limited","822600","27/10/2020",30004158,2188.75,0,"Specialist Services","Other Business Service Providers","II","BACS","None",2020-09-30 00:00:00,"2020","07","GBC73","F1511","Civil Emergencies","D6009","Specialist Services"
"GUILDFORD BOROUGH COUNCIL","Woking Road Depot","BTU (Supplies) Limited","108500","06/10/2020",30004159,59.2,0,"Asset Maintenance","Third Party Supplier","II","BACS","None",2020-08-10 00:00:00,"2020","07","1/000000109","B4452","Woking Road Depot","B1001","Asset Maintenance"
"GUILDFORD BOROUGH COUNCIL","Countryside and Parks Services","Turfleet Hire","1000024","27/10/2020",30004160,375,0,"Grounds Maintenance","","II","BACS","None",2020-09-30 00:00:00,"2020","07","408630","A1300","Trees And Countryside","B6001","Grounds Maintenance"
"GUILDFORD BOROUGH COUNCIL","Parks Countryside Management","Turfleet Hire","1000024","27/10/2020",30004160,375,0,"Grounds Maintenance","","II","BACS","None",2020-09-30 00:00:00,"2020","07","408630","A1300","Trees And Countryside","B6001","Grounds Maintenance"
"GUILDFORD BOROUGH COUNCIL","Building Maintenance","Revive Services (CIS)","846250","06/10/2020",30004161,3970,0,"Services","Other Cleaning And Janitorial Service Providers","II","BACS","None",2020-09-28 00:00:00,"2020","07","079","K1515","Building Maintenance","D6004","Services"
"GUILDFORD BOROUGH COUNCIL","Other Property","Water2business","976470","27/10/2020",30004162,89.97,0,"Utilities","","II","BACS","None",2020-09-30 00:00:00,"2020","07","900516721","B6550","Multiplex Cinema, Bedford Road","B2001","Utilities"
"GUILDFORD BOROUGH COUNCIL","Democratic Representation","South East Employers","757700","27/10/2020",30004163,600,0,"Staff Costs","Professional Associations","II","BACS","None",2020-10-02 00:00:00,"2020","07","28786","F2121","Councillor Services","A7100","Staff Costs"
"GUILDFORD BOROUGH COUNCIL","Woking Road Depot","Stertil UK Ltd","1000070","08/10/2020",30004164,720,0,"Services","","II","BACS","None",2020-06-29 00:00:00,"2020","07","KEI006001","B4452","Woking Road Depot","D6004","Services"
"GUILDFORD BOROUGH COUNCIL","Lead Specialist - ICT","Bolderwood Solutions Ltd","892850","27/10/2020",30004165,4950,0,"Agency","Computer Systems Integrators","II","BACS","None",2020-09-30 00:00:00,"2020","07","GBC-0067","G3548","ICT Technical & Infrastructure","A5191","Agency"
"GUILDFORD BOROUGH COUNCIL","Housing For Private Sale","Mildren Construction Ltd (CIS)","935490","06/10/2020",30004166,1372.18,0,"Contractor Payments","Civil Engineers","II","BACS","None",2020-09-07 00:00:00,"2020","07","17670/09/15499","P68001","Guildford Park Private Housing","1233","Contractor Payments"
"GUILDFORD BOROUGH COUNCIL","New Build","Mildren Construction Ltd (CIS)","935490","06/10/2020",30004166,1372.18,0,"Contractor Payments","Civil Engineers","II","BACS","None",2020-09-07 00:00:00,"2020","07","17670/09/15499","N30011","Guildford Park","1233","Contractor Payments"
"GUILDFORD BOROUGH COUNCIL","Parish Liasion","Artington Parish Council","637000","06/10/2020",30004169,87.5,0,"Grants And Subscriptions","Local Government [Uk Only]","II","BACS","None",2020-10-06 00:00:00,"2020","07","Paresh Precepts 2nd QTR 2020-21","F1115","Parish Liaison","D9001","Grants And Subscriptions"
"GUILDFORD BOROUGH COUNCIL","Revenue Balances","Artington Parish Council","637000","06/10/2020",30004169,2026,0,"OOE - Parish Precepts Paid","Local Government [Uk Only]","II","BACS","None",2020-10-06 00:00:00,"2020","07","Paresh Precepts 2nd QTR 2020-21","V01005","Gf Net Revenue Account","2482","OOE - Parish Precepts Paid"
"GUILDFORD BOROUGH COUNCIL","Revenue Balances","Ash Parish Council","657000","06/10/2020",30004170,243540,0,"OOE - Parish Precepts Paid","Local Government [Uk Only]","II","BACS","None",2020-10-06 00:00:00,"2020","07","Paresh Precepts 2nd QTR 2020-21","V01005","Gf Net Revenue Account","2482","OOE - Parish Precepts Paid"
"GUILDFORD BOROUGH COUNCIL","Parish Liasion","Ash Parish Council","657000","06/10/2020",30004170,22493,0,"Grants And Subscriptions","Local Government [Uk Only]","II","BACS","None",2020-10-06 00:00:00,"2020","07","Paresh Precepts 2nd QTR 2020-21","F1115","Parish Liaison","D9001","Grants And Subscriptions"
"GUILDFORD BOROUGH COUNCIL","Parish Liasion","West Clandon Parish Council","856801","06/10/2020",30004171,388,0,"Grants And Subscriptions","","II","BACS","None",2020-10-06 00:00:00,"2020","07","Paresh Precepts 2nd QTR 2020-21","F1115","Parish Liaison","D9001","Grants And Subscriptions"
"GUILDFORD BOROUGH COUNCIL","Revenue Balances","West Clandon Parish Council","856801","06/10/2020",30004171,11736,0,"OOE - Parish Precepts Paid","","II","BACS","None",2020-10-06 00:00:00,"2020","07","Paresh Precepts 2nd QTR 2020-21","V01005","Gf Net Revenue Account","2482","OOE - Parish Precepts Paid"
"GUILDFORD BOROUGH COUNCIL","Revenue Balances","East Clandon Parish Council (Precepts)","181300","06/10/2020",30004172,4117,0,"OOE - Parish Precepts Paid","Local Government [Uk Only]","II","BACS","None",2020-10-06 00:00:00,"2020","07","Paresh Precepts 2nd QTR 2020-21","V01005","Gf Net Revenue Account","2482","OOE - Parish Precepts Paid"
"GUILDFORD BOROUGH COUNCIL","Parish Liasion","East Clandon Parish Council (Precepts)","181300","06/10/2020",30004172,73,0,"Grants And Subscriptions","Local Government [Uk Only]","II","BACS","None",2020-10-06 00:00:00,"2020","07","Paresh Precepts 2nd QTR 2020-21","F1115","Parish Liaison","D9001","Grants And Subscriptions"
"GUILDFORD BOROUGH COUNCIL","Parish Liasion","Compton Parish Council","143300","06/10/2020",30004182,920.5,0,"Grants And Subscriptions","Local Government [Uk Only]","II","BACS","None",2020-10-06 00:00:00,"2020","07","PARESH PRECEPTS 2ND QUARTER","F1115","Parish Liaison","D9001","Grants And Subscriptions"
"GUILDFORD BOROUGH COUNCIL","Revenue Balances","Compton Parish Council","143300","06/10/2020",30004182,13588,0,"OOE - Parish Precepts Paid","Local Government [Uk Only]","II","BACS","None",2020-10-06 00:00:00,"2020","07","PARESH PRECEPTS 2ND QUARTER","V01005","Gf Net Revenue Account","2482","OOE - Parish Precepts Paid"
"GUILDFORD BOROUGH COUNCIL","Revenue Balances","Effingham Parish Council","183900","06/10/2020",30004183,60885,0,"OOE - Parish Precepts Paid","Local Government [Uk Only]","II","BACS","None",2020-10-06 00:00:00,"2020","07","PARESH PRECEPTS 2ND QUARTER","V01005","Gf Net Revenue Account","2482","OOE - Parish Precepts Paid"
"GUILDFORD BOROUGH COUNCIL","Parish Liasion","Effingham Parish Council","183900","06/10/2020",30004183,780.5,0,"Grants And Subscriptions","Local Government [Uk Only]","II","BACS","None",2020-10-06 00:00:00,"2020","07","PARESH PRECEPTS 2ND QUARTER","F1115","Parish Liaison","D9001","Grants And Subscriptions"
"GUILDFORD BOROUGH COUNCIL","Parish Liasion","East Horsley Parish Council","181600","06/10/2020",30004184,738,0,"Grants And Subscriptions","Local Government [Uk Only]","II","BACS","None",2020-10-06 00:00:00,"2020","07","PARESH PRECEPTS 2ND QRT","F1115","Parish Liaison","D9001","Grants And Subscriptions"
"GUILDFORD BOROUGH COUNCIL","Revenue Balances","East Horsley Parish Council","181600","06/10/2020",30004184,70356,0,"OOE - Parish Precepts Paid","Local Government [Uk Only]","II","BACS","None",2020-10-06 00:00:00,"2020","07","PARESH PRECEPTS 2ND QRT","V01005","Gf Net Revenue Account","2482","OOE - Parish Precepts Paid"
"GUILDFORD BOROUGH COUNCIL","Revenue Balances","West Horsley Parish Council","857200","06/10/2020",30004185,41586,0,"OOE - Parish Precepts Paid","Local Government [Uk Only]","II","BACS","None",2020-10-06 00:00:00,"2020","07","PARESH PRECEPTS 2ND QRT","V01005","Gf Net Revenue Account","2482","OOE - Parish Precepts Paid"
"GUILDFORD BOROUGH COUNCIL","Parish Liasion","West Horsley Parish Council","857200","06/10/2020",30004185,522.5,0,"Grants And Subscriptions","Local Government [Uk Only]","II","BACS","None",2020-10-06 00:00:00,"2020","07","PARESH PRECEPTS 2ND QRT","F1115","Parish Liaison","D9001","Grants And Subscriptions"
"GUILDFORD BOROUGH COUNCIL","Revenue Balances","Normandy Parish Council","622700","06/10/2020",30004186,69999.5,0,"OOE - Parish Precepts Paid","Local Government [Uk Only]","II","BACS","None",2020-10-06 00:00:00,"2020","07","PARESH PRECEPTS 2ND QRT","V01005","Gf Net Revenue Account","2482","OOE - Parish Precepts Paid"
"GUILDFORD BOROUGH COUNCIL","Parish Liasion","Normandy Parish Council","622700","06/10/2020",30004186,3617.5,0,"Grants And Subscriptions","Local Government [Uk Only]","II","BACS","None",2020-10-06 00:00:00,"2020","07","PARESH PRECEPTS 2ND QRT","F1115","Parish Liaison","D9001","Grants And Subscriptions"
"GUILDFORD BOROUGH COUNCIL","Parish Liasion","Pirbright Parish Council","978300","06/10/2020",30004187,598.5,0,"Grants And Subscriptions","Local Government [Uk Only]","II","BACS","None",2020-10-06 00:00:00,"2020","07","PARESH PRECEPTS 2ND QRT","F1115","Parish Liaison","D9001","Grants And Subscriptions"
"GUILDFORD BOROUGH COUNCIL","Revenue Balances","Pirbright Parish Council","978300","06/10/2020",30004187,30926,0,"OOE - Parish Precepts Paid","Local Government [Uk Only]","II","BACS","None",2020-10-06 00:00:00,"2020","07","PARESH PRECEPTS 2ND QRT","V01005","Gf Net Revenue Account","2482","OOE - Parish Precepts Paid"
"GUILDFORD BOROUGH COUNCIL","Revenue Balances","Ockham Parish Council","626500","06/10/2020",30004188,7435,0,"OOE - Parish Precepts Paid","Local Government [Uk Only]","II","BACS","None",2020-10-06 00:00:00,"2020","07","PARESH PRECEPTS 2ND QRT","V01005","Gf Net Revenue Account","2482","OOE - Parish Precepts Paid"
"GUILDFORD BOROUGH COUNCIL","Revenue Balances","Puttenham Parish Council","676700","06/10/2020",30004189,6877.5,0,"OOE - Parish Precepts Paid","Local Government [Uk Only]","II","BACS","None",2020-10-06 00:00:00,"2020","07","PARESH PRECEPTS 2ND QTR","V01005","Gf Net Revenue Account","2482","OOE - Parish Precepts Paid"
"GUILDFORD BOROUGH COUNCIL","Parish Liasion","Puttenham Parish Council","676700","06/10/2020",30004189,375,0,"Grants And Subscriptions","Local Government [Uk Only]","II","BACS","None",2020-10-06 00:00:00,"2020","07","PARESH PRECEPTS 2ND QTR","F1115","Parish Liaison","D9001","Grants And Subscriptions"
"GUILDFORD BOROUGH COUNCIL","Revenue Balances","Ripley Parish Council","715000","06/10/2020",30004190,33549.5,0,"OOE - Parish Precepts Paid","Local Government [Uk Only]","II","BACS","None",2020-10-06 00:00:00,"2020","07","PARESH PRECEPTS 2ND QTR","V01005","Gf Net Revenue Account","2482","OOE - Parish Precepts Paid"
"GUILDFORD BOROUGH COUNCIL","Parish Liasion","Ripley Parish Council","715000","06/10/2020",30004190,1902.5,0,"Grants And Subscriptions","Local Government [Uk Only]","II","BACS","None",2020-10-06 00:00:00,"2020","07","PARESH PRECEPTS 2ND QTR","F1115","Parish Liaison","D9001","Grants And Subscriptions"
"GUILDFORD BOROUGH COUNCIL","Parish Liasion","St Martha Parish Council","932300","06/10/2020",30004191,19.5,0,"Grants And Subscriptions","Local Government [Uk Only]","II","BACS","None",2020-10-06 00:00:00,"2020","07","PARESH PRECEPTS 2ND QTR","F1115","Parish Liaison","D9001","Grants And Subscriptions"
"GUILDFORD BOROUGH COUNCIL","Revenue Balances","St Martha Parish Council","932300","06/10/2020",30004191,7515,0,"OOE - Parish Precepts Paid","Local Government [Uk Only]","II","BACS","None",2020-10-06 00:00:00,"2020","07","PARESH PRECEPTS 2ND QTR","V01005","Gf Net Revenue Account","2482","OOE - Parish Precepts Paid"
"GUILDFORD BOROUGH COUNCIL","Revenue Balances","Seale And Sands Parish Council","743900","06/10/2020",30004192,9500,0,"OOE - Parish Precepts Paid","Local Government [Uk Only]","II","BACS","None",2020-10-06 00:00:00,"2020","07","PARESH PRECEPTS","V01005","Gf Net Revenue Account","2482","OOE - Parish Precepts Paid"
"GUILDFORD BOROUGH COUNCIL","Parish Liasion","Seale And Sands Parish Council","743900","06/10/2020",30004192,176,0,"Grants And Subscriptions","Local Government [Uk Only]","II","BACS","None",2020-10-06 00:00:00,"2020","07","PARESH PRECEPTS","F1115","Parish Liaison","D9001","Grants And Subscriptions"
"GUILDFORD BOROUGH COUNCIL","Parish Liasion","Send Parish Council","236590","06/10/2020",30004193,698,0,"Grants And Subscriptions","Local Government [Uk Only]","II","BACS","None",2020-10-06 00:00:00,"2020","07","PARESH PRECEPTS 2ND QTR","F1115","Parish Liaison","D9001","Grants And Subscriptions"
"GUILDFORD BOROUGH COUNCIL","Revenue Balances","Send Parish Council","236590","06/10/2020",30004193,41044.5,0,"OOE - Parish Precepts Paid","Local Government [Uk Only]","II","BACS","None",2020-10-06 00:00:00,"2020","07","PARESH PRECEPTS 2ND QTR","V01005","Gf Net Revenue Account","2482","OOE - Parish Precepts Paid"
"GUILDFORD BOROUGH COUNCIL","Parish Liasion","Shackleford Parish Council","747900","06/10/2020",30004194,118.5,0,"Grants And Subscriptions","Local Government [Uk Only]","II","BACS","None",2020-10-06 00:00:00,"2020","07","PARESH PRECEPTS 2ND QTR","F1115","Parish Liaison","D9001","Grants And Subscriptions"
"GUILDFORD BOROUGH COUNCIL","Revenue Balances","Shackleford Parish Council","747900","06/10/2020",30004194,7649,0,"OOE - Parish Precepts Paid","Local Government [Uk Only]","II","BACS","None",2020-10-06 00:00:00,"2020","07","PARESH PRECEPTS 2ND QTR","V01005","Gf Net Revenue Account","2482","OOE - Parish Precepts Paid"
"GUILDFORD BOROUGH COUNCIL","Revenue Balances","Shalford Parish Council","748200","06/10/2020",30004195,48031.5,0,"OOE - Parish Precepts Paid","Local Government [Uk Only]","II","BACS","None",2020-10-06 00:00:00,"2020","07","PARESH PRECEPTS 2ND QTR","V01005","Gf Net Revenue Account","2482","OOE - Parish Precepts Paid"
"GUILDFORD BOROUGH COUNCIL","Parish Liasion","Shalford Parish Council","748200","06/10/2020",30004195,2111.5,0,"Grants And Subscriptions","Local Government [Uk Only]","II","BACS","None",2020-10-06 00:00:00,"2020","07","PARESH PRECEPTS 2ND QTR","F1115","Parish Liaison","D9001","Grants And Subscriptions"
"GUILDFORD BOROUGH COUNCIL","Revenue Balances","Shere Parish Council","750000","06/10/2020",30004196,64926,0,"OOE - Parish Precepts Paid","Local Government [Uk Only]","II","BACS","None",2020-10-06 00:00:00,"2020","07","PARESH PRECEPTS 2ND QTR","V01005","Gf Net Revenue Account","2482","OOE - Parish Precepts Paid"
"GUILDFORD BOROUGH COUNCIL","Parish Liasion","Shere Parish Council","750000","06/10/2020",30004196,2651.5,0,"Grants And Subscriptions","Local Government [Uk Only]","II","BACS","None",2020-10-06 00:00:00,"2020","07","PARESH PRECEPTS 2ND QTR","F1115","Parish Liaison","D9001","Grants And Subscriptions"
"GUILDFORD BOROUGH COUNCIL","Parish Liasion","Tongham Parish Council","824200","06/10/2020",30004197,2200.5,0,"Grants And Subscriptions","Local Government [Uk Only]","II","BACS","None",2020-10-06 00:00:00,"2020","07","PARESH PRECEPTS 2ND QTR","F1115","Parish Liaison","D9001","Grants And Subscriptions"
"GUILDFORD BOROUGH COUNCIL","Revenue Balances","Tongham Parish Council","824200","06/10/2020",30004197,16965,0,"OOE - Parish Precepts Paid","Local Government [Uk Only]","II","BACS","None",2020-10-06 00:00:00,"2020","07","PARESH PRECEPTS 2ND QTR","V01005","Gf Net Revenue Account","2482","OOE - Parish Precepts Paid"
"GUILDFORD BOROUGH COUNCIL","Revenue Balances","Wanborough Parish Council","853100","06/10/2020",30004198,2121,0,"OOE - Parish Precepts Paid","Local Government [Uk Only]","II","BACS","None",2020-10-06 00:00:00,"2020","07","PARESH PRECEPTS 2ND QTR","V01005","Gf Net Revenue Account","2482","OOE - Parish Precepts Paid"
"GUILDFORD BOROUGH COUNCIL","Parish Liasion","Wanborough Parish Council","853100","06/10/2020",30004198,29,0,"Grants And Subscriptions","Local Government [Uk Only]","II","BACS","None",2020-10-06 00:00:00,"2020","07","PARESH PRECEPTS 2ND QTR","F1115","Parish Liaison","D9001","Grants And Subscriptions"
"GUILDFORD BOROUGH COUNCIL","Parish Liasion","Worplesdon Parish Council","867500","06/10/2020",30004199,4712,0,"Grants And Subscriptions","Local Government [Uk Only]","II","BACS","None",2020-10-06 00:00:00,"2020","07","PARESH PRECEPTS 2ND QTR","F1115","Parish Liaison","D9001","Grants And Subscriptions"
"GUILDFORD BOROUGH COUNCIL","Revenue Balances","Worplesdon Parish Council","867500","06/10/2020",30004199,121363.5,0,"OOE - Parish Precepts Paid","Local Government [Uk Only]","II","BACS","None",2020-10-06 00:00:00,"2020","07","PARESH PRECEPTS 2ND QTR","V01005","Gf Net Revenue Account","2482","OOE - Parish Precepts Paid"
"GUILDFORD BOROUGH COUNCIL","Revenue Balances","Albury Parish Council","509000","06/10/2020",30004200,22535,0,"OOE - Parish Precepts Paid","Local Government [Uk Only]","II","BACS","None",2020-10-06 00:00:00,"2020","07","PARESH PRECEPTS 2ND QTR","V01005","Gf Net Revenue Account","2482","OOE - Parish Precepts Paid"
"GUILDFORD BOROUGH COUNCIL","Parish Liasion","Albury Parish Council","509000","06/10/2020",30004200,932.5,0,"Grants And Subscriptions","Local Government [Uk Only]","II","BACS","None",2020-10-06 00:00:00,"2020","07","PARESH PRECEPTS 2ND QTR","F1115","Parish Liaison","D9001","Grants And Subscriptions"
"GUILDFORD BOROUGH COUNCIL","HRA Income","Rent Refunds","9999997","13/10/2020",30004201,33.01,0,"Rent","","II","BACS","None",2020-10-05 00:00:00,"2020","07","10035361","M9111","General Income","K5001","Rent"
"GUILDFORD BOROUGH COUNCIL","HRA Income","Rent Refunds","9999997","13/10/2020",30004202,204.82,0,"Rent","","II","BACS","None",2020-10-05 00:00:00,"2020","07","10048907","M9111","General Income","K5001","Rent"
"GUILDFORD BOROUGH COUNCIL","Off Street Parking","FASTSIGNS (Guildford) Ltd","199300","08/10/2020",30004206,6038.8,0,"Enforcement","Building Signage Suppliers","II","BACS","None",2020-06-11 00:00:00,"2020","07","858-17059","B2111","Car Parks - Administration","D6008","Enforcement"
"GUILDFORD BOROUGH COUNCIL","Homelessness Support","London Hounslow Ltd","1000033","27/10/2020",30004208,875,0,"Emergency Accomodation","","II","BACS","None",2020-09-30 00:00:00,"2020","07","H20377","C3311","Homelessness","D8009","Emergency Accomodation"
"GUILDFORD BOROUGH COUNCIL","Building Maintenance","A Star Maintenance Contractors Ltd (CIS)","969700","08/10/2020",30004209,1108.7,0,"Services","Property Maintenance Contractors","II","BACS","None",2020-10-01 00:00:00,"2020","07","13704","K1515","Building Maintenance","D6004","Services"
"GUILDFORD BOROUGH COUNCIL","Inventories","Crown Paints Ltd","497000","08/10/2020",30004210,995.71,0,"Purchases","Paint And Coating Suppliers","II","BACS","None",2020-09-03 00:00:00,"2020","07","8205279769","I01001","Stocks","2591","Purchases"
"GUILDFORD BOROUGH COUNCIL","Development Control","Alexander Advertising (International) Ltd","454730","20/10/2020",30004211,586.67,0,"Advertising, Publicity & Promotion","Full Service Marketing Agencies","II","BACS","None",2020-09-25 00:00:00,"2020","07","632G21","D5100","Development Control - Fee Earn","D5002","Advertising, Publicity & Promotion"
"GUILDFORD BOROUGH COUNCIL","Building Maintenance","A Star Maintenance Contractors Ltd (CIS)","969700","29/10/2020",30004212,1550.5,0,"Services","Property Maintenance Contractors","II","BACS","None",2020-09-15 00:00:00,"2020","07","13687","K1515","Building Maintenance","D6004","Services"
"GUILDFORD BOROUGH COUNCIL","G Live","Briar","1000071","08/10/2020",30004213,200,0,"Energy Performance","","II","BACS","None",2020-06-30 00:00:00,"2020","07","6142","A2141","G Live","D8008","Energy Performance"
"GUILDFORD BOROUGH COUNCIL","Vehicle Maintenance","Ingersoll-Rand Industrial Ireland Limited","716500","27/10/2020",30004214,679.71,0,"Services","Machinery And Engineering Parts Suppliers","II","BACS","None",2020-10-02 00:00:00,"2020","07","60107167","K5551","Fleet Workshops","D6004","Services"
"GUILDFORD BOROUGH COUNCIL","Off Street Parking","J and A Markings Limited (CIS)","880830","08/10/2020",30004215,1759.32,0,"Furniture","Third Party Supplier","II","BACS","None",2020-08-15 00:00:00,"2020","07","INV-002641","B2216","General Upkeep- Urban Car Pks","D2002","Furniture"
"GUILDFORD BOROUGH COUNCIL","Countryside and Parks Services","APSE","105080","29/10/2020",30004216,99,0,"Staff Costs","Trade Associations And Regulatory Bodies","II","BACS","None",2020-10-05 00:00:00,"2020","07","2021/1043","A1900","Parks Management And Admin","A7100","Staff Costs"
"GUILDFORD BOROUGH COUNCIL","Building Maintenance","A Star Maintenance Contractors Ltd (CIS)","969700","08/10/2020",30004217,597.05,0,"Services","Property Maintenance Contractors","II","BACS","None",2020-10-01 00:00:00,"2020","07","13702","K1515","Building Maintenance","D6004","Services"
"GUILDFORD BOROUGH COUNCIL","Building Maintenance","A Star Maintenance Contractors Ltd (CIS)","969700","08/10/2020",30004218,2311.42,0,"Services","Property Maintenance Contractors","II","BACS","None",2020-10-01 00:00:00,"2020","07","13705","K1515","Building Maintenance","D6004","Services"
"GUILDFORD BOROUGH COUNCIL","Homelessness Support","Project 114 Ltd","847120","29/10/2020",30004219,980,0,"Emergency Accomodation","Property Letting And Estate Agents","II","BACS","None",2020-10-05 00:00:00,"2020","07","3071","C3311","Homelessness","D8009","Emergency Accomodation"
"GUILDFORD BOROUGH COUNCIL","Building Maintenance","A Star Maintenance Contractors Ltd (CIS)","969700","08/10/2020",30004220,2184.9,0,"Services","Property Maintenance Contractors","II","BACS","None",2020-09-24 00:00:00,"2020","07","13693","K1515","Building Maintenance","D6004","Services"
"GUILDFORD BOROUGH COUNCIL","Development Control","Alexander Advertising (International) Ltd","454730","20/10/2020",30004221,345.1,0,"Advertising, Publicity & Promotion","Full Service Marketing Agencies","II","BACS","None",2020-09-25 00:00:00,"2020","07","633G21","D5100","Development Control - Fee Earn","D5002","Advertising, Publicity & Promotion"
"GUILDFORD BOROUGH COUNCIL","Industrial Estates","Hydro Descaling Ltd","1000082","08/10/2020",30004223,2090,0,"Contractor Payments","","II","BACS","None",2020-06-17 00:00:00,"2020","07","87689","P72037","Midleton Ind Est Redevelop","1233","Contractor Payments"
"GUILDFORD BOROUGH COUNCIL","Renovations","The OT Practice Ltd","984970","27/10/2020",30004224,875,0,"Consultancy","","II","BACS","None",2020-09-30 00:00:00,"2020","07","INV-023681","N40282","Disabled adaptations 2020-21","D6001","Consultancy"
"GUILDFORD BOROUGH COUNCIL","Renovations","The OT Practice Ltd","984970","27/10/2020",30004224,45,0,"Consultancy","","II","BACS","None",2020-09-30 00:00:00,"2020","07","INV-023681","N40282","Disabled adaptations 2020-21","D6001","Consultancy"
"GUILDFORD BOROUGH COUNCIL","Industrial Estates","IPM Facilities Limited","927090","27/10/2020",30004225,486,0,"Grounds Maintenance","Property Letting And Estate Agents","II","BACS","None",2020-09-30 00:00:00,"2020","07","54041","B5372","Slyfield Enterprise Estate - Rechargeable","B6001","Grounds Maintenance"
"GUILDFORD BOROUGH COUNCIL","Countryside and Parks Services","I & J Bushell Ltd (CIS)","804030","20/10/2020",30004226,9150,0,"Grounds Maintenance","Other Farming And Agricultural Activities","II","BACS","None",2020-10-02 00:00:00,"2020","07","04239","A1300","Trees And Countryside","B6001","Grounds Maintenance"
"GUILDFORD BOROUGH COUNCIL","Parks Countryside Management","I & J Bushell Ltd (CIS)","804030","20/10/2020",30004226,9150,0,"Grounds Maintenance","Other Farming And Agricultural Activities","II","BACS","None",2020-10-02 00:00:00,"2020","07","04239","A1300","Trees And Countryside","B6001","Grounds Maintenance"
"GUILDFORD BOROUGH COUNCIL","Countryside and Parks Services","I & J Bushell Ltd (CIS)","804030","20/10/2020",30004226,2700,0,"Grounds Maintenance","Other Farming And Agricultural Activities","II","BACS","None",2020-10-02 00:00:00,"2020","07","04239","A1300","Trees And Countryside","B6001","Grounds Maintenance"
"GUILDFORD BOROUGH COUNCIL","Parks Countryside Management","I & J Bushell Ltd (CIS)","804030","20/10/2020",30004226,2700,0,"Grounds Maintenance","Other Farming And Agricultural Activities","II","BACS","None",2020-10-02 00:00:00,"2020","07","04239","A1300","Trees And Countryside","B6001","Grounds Maintenance"
"GUILDFORD BOROUGH COUNCIL","Building Maintenance","A Star Maintenance Contractors Ltd (CIS)","969700","29/10/2020",30004227,4883.62,0,"Services","Property Maintenance Contractors","II","BACS","None",2020-09-04 00:00:00,"2020","07","13669","K1515","Building Maintenance","D6004","Services"
"GUILDFORD BOROUGH COUNCIL","Building Maintenance","Simon Property Solution Ltd","807270","08/10/2020",30004228,120,0,"Materials","House Builders","II","BACS","None",2020-09-22 00:00:00,"2020","07","174GBC","K1515","Building Maintenance","D2003","Materials"
"GUILDFORD BOROUGH COUNCIL","Building Maintenance","Simon Property Solution Ltd","807270","08/10/2020",30004228,4895.75,0,"Services","House Builders","II","BACS","None",2020-09-22 00:00:00,"2020","07","174GBC","K1515","Building Maintenance","D6004","Services"
"GUILDFORD BOROUGH COUNCIL","Corporate Services","LSO Consulting Limited","982690","20/10/2020",30004229,21700,0,"Consultancy","","II","BACS","None",2020-09-24 00:00:00,"2020","07","008","F1111","Corporate Services","D6001","Consultancy"
"GUILDFORD BOROUGH COUNCIL","Building Maintenance","A Star Maintenance Contractors Ltd (CIS)","969700","08/10/2020",30004230,1327.03,0,"Services","Property Maintenance Contractors","II","BACS","None",2020-09-24 00:00:00,"2020","07","13692","K1515","Building Maintenance","D6004","Services"
"GUILDFORD BOROUGH COUNCIL","Building Control","Hays Specialist Recruitment Limited","156250","27/10/2020",30004231,2000.7,0,"Agency","Other Recruitment Agencies And Service Providers","II","BACS","None",2020-09-30 00:00:00,"2020","07","1010847301","D5700","Building Control - Fee","A5191","Agency"
"GUILDFORD BOROUGH COUNCIL","Industrial Estates","Abstruct Consulting Limited","944040","08/10/2020",30004233,7090,0,"Consultants Fees","Surveyors And Inspectors","II","BACS","None",2020-07-31 00:00:00,"2020","07","AC1842","P72037","Midleton Ind Est Redevelop","1221","Consultants Fees"
"GUILDFORD BOROUGH COUNCIL","Building Maintenance","A Star Maintenance Contractors Ltd (CIS)","969700","08/10/2020",30004235,2468.22,0,"Services","Property Maintenance Contractors","II","BACS","None",2020-10-01 00:00:00,"2020","07","13706","K1515","Building Maintenance","D6004","Services"
"GUILDFORD BOROUGH COUNCIL","Industrial Estates","IPM Facilities Limited","927090","27/10/2020",30004237,1398.87,0,"Grounds Maintenance","Property Letting And Estate Agents","II","BACS","None",2020-09-30 00:00:00,"2020","07","54029","B5351","Slyfield Industrial Estate","B6001","Grounds Maintenance"
"GUILDFORD BOROUGH COUNCIL","Industrial Estates","Artelia Projects UK Limited","874420","27/10/2020",30004238,623,0,"Consultants Fees","Civil Engineers","II","BACS","None",2020-09-30 00:00:00,"2020","07","PIN009273","P72037","Midleton Ind Est Redevelop","1221","Consultants Fees"
"GUILDFORD BOROUGH COUNCIL","Countryside and Parks Services","Excel Facilities & Maintenance UK Ltd (CIS)","958110","13/10/2020",30004239,60,0,"Asset Maintenance","Electrical Engineers","II","BACS","None",2019-05-13 00:00:00,"2020","07","1055","A1130","Castle Grounds","B1001","Asset Maintenance"
"GUILDFORD BOROUGH COUNCIL","Countryside and Parks Services","Excel Facilities & Maintenance UK Ltd (CIS)","958110","13/10/2020",30004239,207,0,"Asset Maintenance","Electrical Engineers","II","BACS","None",2019-05-13 00:00:00,"2020","07","1055","A1130","Castle Grounds","B1001","Asset Maintenance"
"GUILDFORD BOROUGH COUNCIL","Development Control","Alexander Advertising (International) Ltd","454730","20/10/2020",30004241,345.1,0,"Advertising, Publicity & Promotion","Full Service Marketing Agencies","II","BACS","None",2020-09-25 00:00:00,"2020","07","634G21","D5100","Development Control - Fee Earn","D5002","Advertising, Publicity & Promotion"
"GUILDFORD BOROUGH COUNCIL","Inventories","Crown Paints Ltd","497000","08/10/2020",30004242,721.25,0,"Purchases","Paint And Coating Suppliers","II","BACS","None",2020-09-03 00:00:00,"2020","07","8205279768","I01001","Stocks","2591","Purchases"
"GUILDFORD BOROUGH COUNCIL","Countryside and Parks Services","I & J Bushell Ltd (CIS)","804030","13/10/2020",30004243,300,0,"Grounds Maintenance","Other Farming And Agricultural Activities","II","BACS","None",2020-10-02 00:00:00,"2020","07","04240","A1300","Trees And Countryside","B6001","Grounds Maintenance"
"GUILDFORD BOROUGH COUNCIL","Parks Countryside Management","I & J Bushell Ltd (CIS)","804030","13/10/2020",30004243,300,0,"Grounds Maintenance","Other Farming And Agricultural Activities","II","BACS","None",2020-10-02 00:00:00,"2020","07","04240","A1300","Trees And Countryside","B6001","Grounds Maintenance"
"GUILDFORD BOROUGH COUNCIL","Countryside and Parks Services","I & J Bushell Ltd (CIS)","804030","13/10/2020",30004243,140,0,"Grounds Maintenance","Other Farming And Agricultural Activities","II","BACS","None",2020-10-02 00:00:00,"2020","07","04240","A1300","Trees And Countryside","B6001","Grounds Maintenance"
"GUILDFORD BOROUGH COUNCIL","Parks Countryside Management","I & J Bushell Ltd (CIS)","804030","13/10/2020",30004243,140,0,"Grounds Maintenance","Other Farming And Agricultural Activities","II","BACS","None",2020-10-02 00:00:00,"2020","07","04240","A1300","Trees And Countryside","B6001","Grounds Maintenance"
"GUILDFORD BOROUGH COUNCIL","Major Projects","Floodline Consulting Ltd","1000041","27/10/2020",30004244,7900,0,"Consultancy","","II","BACS","None",2020-09-30 00:00:00,"2020","07","001A","F5530","Major Projects","D6001","Consultancy"
"GUILDFORD BOROUGH COUNCIL","Environmental Works","Treeworks Services Ltd","232320","27/10/2020",30004245,5999.8,0,"Consultancy","Tree Work Contractors","II","BACS","None",2020-09-30 00:00:00,"2020","07","5628","M4615","Env Wks To Estate (BHS)","D6001","Consultancy"
"GUILDFORD BOROUGH COUNCIL","HRA Income","Rent Refunds","9999997","13/10/2020",30004246,874.37,0,"Rent","","II","BACS","None",2020-08-13 00:00:00,"2020","07","100486560008","M9111","General Income","K5001","Rent"
"GUILDFORD BOROUGH COUNCIL","Tourist Information Centre","Rent Refunds","9999997","13/10/2020",30004248,85.5,0,"Ticket Sales","","II","BACS","None",2020-10-07 00:00:00,"2020","07","Cancelled Event - Spring Readers Day","F5541","Tourist Information Centre","K3003","Ticket Sales"
"GUILDFORD BOROUGH COUNCIL","Major Projects","Network Rail Infrastructure Ltd","144690","03/11/2020",30004249,24478.67,0,"Consultancy","Rail Companies","II","BACS","None",2020-08-12 00:00:00,"2020","07","1267787","F5530","Major Projects","D6001","Consultancy"
"GUILDFORD BOROUGH COUNCIL","Business Improvement","Mason Frank International Limited","1000025","29/10/2020",30004250,2250,0,"Consultancy","","II","BACS","None",2020-10-06 00:00:00,"2020","07","M1000005323","G3531","Future Guildford","D6001","Consultancy"
"GUILDFORD BOROUGH COUNCIL","Audit Management","Mason Frank International Limited","1000025","29/10/2020",30004250,2250,0,"Consultancy","","II","BACS","None",2020-10-06 00:00:00,"2020","07","M1000005323","G3531","Future Guildford","D6001","Consultancy"
"GUILDFORD BOROUGH COUNCIL","Inventories","Crown Paints Ltd","497000","08/10/2020",30004251,965.52,0,"Purchases","Paint And Coating Suppliers","II","BACS","None",2020-06-03 00:00:00,"2020","07","8204813410","I01001","Stocks","2591","Purchases"
"GUILDFORD BOROUGH COUNCIL","Crematorium","Contract Security Services Ltd","146600","13/10/2020",30004252,32.04,0,"Bank Charges","Other Security Service Providers","II","BACS","None",2020-09-18 00:00:00,"2020","07","59097","A1500","Crematorium","D8002","Bank Charges"
"GUILDFORD BOROUGH COUNCIL","Guildford Museum","Contract Security Services Ltd","146600","13/10/2020",30004252,16.02,0,"Bank Charges","Other Security Service Providers","II","BACS","None",2020-09-18 00:00:00,"2020","07","59097","A5511","Museum","D8002","Bank Charges"
"GUILDFORD BOROUGH COUNCIL","Tourist Information Centre","Contract Security Services Ltd","146600","13/10/2020",30004252,32.04,0,"Bank Charges","Other Security Service Providers","II","BACS","None",2020-09-18 00:00:00,"2020","07","59097","F5541","Tourist Information Centre","D8002","Bank Charges"
"GUILDFORD BOROUGH COUNCIL","Guildford House","Contract Security Services Ltd","146600","13/10/2020",30004252,16.02,0,"Bank Charges","Other Security Service Providers","II","BACS","None",2020-09-18 00:00:00,"2020","07","59097","A4511","Guildford House Administration","D8002","Bank Charges"
"GUILDFORD BOROUGH COUNCIL","Day Services","Contract Security Services Ltd","146600","13/10/2020",30004252,64.08,0,"Bank Charges","Other Security Service Providers","II","BACS","None",2020-09-18 00:00:00,"2020","07","59097","C8100","Community Hubs","D8002","Bank Charges"
"GUILDFORD BOROUGH COUNCIL","Countryside and Parks Services","Saint-Gobain Building Distribution Limited (Jewson)","271200","20/10/2020",30004253,86.84,0,"Materials","Builders Merchants","II","BACS","None",2020-09-24 00:00:00,"2020","07","0652/00191169","A1100","Horticulture","D2003","Materials"
"GUILDFORD BOROUGH COUNCIL","Development Control","Vivid Resourcing Limited","856800","27/10/2020",30004254,1698.5,0,"Agency","Other Recruitment Agencies And Service Providers","II","BACS","None",2020-09-30 00:00:00,"2020","07","50808","D5100","Development Control - Fee Earn","A5191","Agency"
"GUILDFORD BOROUGH COUNCIL","Building Maintenance","R Moore","413190","08/10/2020",30004255,1000,0,"Materials","","II","BACS","None",2020-10-04 00:00:00,"2020","07","390","K1515","Building Maintenance","D2003","Materials"
"GUILDFORD BOROUGH COUNCIL","On Street Parking","Keltic Ltd","214100","13/10/2020",30004256,1266.65,0,"Enforcement","Personal Protective Equipment (Ppe) Suppliers","II","BACS","None",2020-08-21 00:00:00,"2020","07","159578","B2217","Guildford On-Street","D6008","Enforcement"
"GUILDFORD BOROUGH COUNCIL","Parking Services","Keltic Ltd","214100","13/10/2020",30004256,274.6,0,"Parking Services (TO BE RECODED)","Personal Protective Equipment (Ppe) Suppliers","II","BACS","None",2020-08-21 00:00:00,"2020","07","159578","","Allocation Pending","8892","Parking Services (TO BE RECODED)"
"GUILDFORD BOROUGH COUNCIL","Inventories","Howden Joinery Limited","247800","22/10/2020",30004257,143.52,0,"Purchases","Joiners And Carpenters","II","BACS","None",2020-09-29 00:00:00,"2020","07","971/0192088","I01001","Stocks","2591","Purchases"
"GUILDFORD BOROUGH COUNCIL","Lead Specialist - Finance","Hays Specialist Recruitment Limited","156250","29/10/2020",30004258,2238.95,0,"Agency","Other Recruitment Agencies And Service Providers","II","BACS","None",2020-10-05 00:00:00,"2020","07","1010852721","G3565","Finance Specialists","A5191","Agency"
"GUILDFORD BOROUGH COUNCIL","Executive - Miscellaneous","Pinsent Masons LLP","992900","27/10/2020",30004259,28524.9,0,"Consultants Fees","Other Legal Service Providers","II","BACS","None",2020-09-30 00:00:00,"2020","07","6560959","P79037","Ash Road Bridge","1221","Consultants Fees"
"GUILDFORD BOROUGH COUNCIL","Building Maintenance","Revive Services (CIS)","846250","08/10/2020",30004260,1500,0,"Services","Other Cleaning And Janitorial Service Providers","II","BACS","None",2020-10-05 00:00:00,"2020","07","080","K1515","Building Maintenance","D6004","Services"
"GUILDFORD BOROUGH COUNCIL","Major Projects","Network Rail Infrastructure Ltd","144690","03/11/2020",30004261,-24478.67,0,"Consultancy","Rail Companies","II","BACS","None",2020-09-21 00:00:00,"2020","07","1269361","F5530","Major Projects","D6001","Consultancy"
"GUILDFORD BOROUGH COUNCIL","Financial Services","Contract Security Services Ltd","146600","20/10/2020",30004262,48.06,0,"Financial Services (TO BE RECODED)","Other Security Service Providers","II","BACS","None",2020-08-20 00:00:00,"2020","07","58955","","Allocation Pending","8906","Financial Services (TO BE RECODED)"
"GUILDFORD BOROUGH COUNCIL","Crematorium","Contract Security Services Ltd","146600","20/10/2020",30004262,32.04,0,"Bank Charges","Other Security Service Providers","II","BACS","None",2020-08-20 00:00:00,"2020","07","58955","A1500","Crematorium","D8002","Bank Charges"
"GUILDFORD BOROUGH COUNCIL","Day Services","Contract Security Services Ltd","146600","20/10/2020",30004262,32.04,0,"Bank Charges","Other Security Service Providers","II","BACS","None",2020-08-20 00:00:00,"2020","07","58955","C8100","Community Hubs","D8002","Bank Charges"
"GUILDFORD BOROUGH COUNCIL","Tourist Information Centre","Contract Security Services Ltd","146600","20/10/2020",30004262,16.02,0,"Bank Charges","Other Security Service Providers","II","BACS","None",2020-08-20 00:00:00,"2020","07","58955","F5541","Tourist Information Centre","D8002","Bank Charges"
"GUILDFORD BOROUGH COUNCIL","Income Collection","Allpay Ltd","914220","27/10/2020",30004263,22.49,0,"Bank Charges","Other Financial Service Providers","II","BACS","None",2020-09-30 00:00:00,"2020","07","0000659676","M1121","Income Collection (BHS)","D8002","Bank Charges"
"GUILDFORD BOROUGH COUNCIL","Industrial Estates","IPM Facilities Limited","927090","27/10/2020",30004264,1586,0,"Grounds Maintenance","Property Letting And Estate Agents","II","BACS","None",2020-09-30 00:00:00,"2020","07","54061","B5341","Midleton Industrial Estate","B6001","Grounds Maintenance"
"GUILDFORD BOROUGH COUNCIL","Taxi Licensing","HML Independent Medical Advice Ltd","372840","27/10/2020",30004265,250,0,"Consultancy","Other Medical Professionals","II","BACS","None",2020-09-30 00:00:00,"2020","07","GUDL/3699/20","H1104","Hackney Carriage Private Hire Drivers","D6001","Consultancy"
"GUILDFORD BOROUGH COUNCIL","Countryside and Parks Services","Saint-Gobain Building Distribution Limited (Jewson)","271200","20/10/2020",30004266,86.84,0,"Materials","Builders Merchants","II","BACS","None",2020-09-23 00:00:00,"2020","07","0652/00191002","A1100","Horticulture","D2003","Materials"
"GUILDFORD BOROUGH COUNCIL","Countryside and Parks Services","Saint-Gobain Building Distribution Limited (Jewson)","271200","20/10/2020",30004266,243.3,0,"Materials","Builders Merchants","II","BACS","None",2020-09-23 00:00:00,"2020","07","0652/00191002","A1100","Horticulture","D2003","Materials"
"GUILDFORD BOROUGH COUNCIL","Countryside and Parks Services","Saint-Gobain Building Distribution Limited (Jewson)","271200","20/10/2020",30004266,382.2,0,"Materials","Builders Merchants","II","BACS","None",2020-09-23 00:00:00,"2020","07","0652/00191002","A1100","Horticulture","D2003","Materials"
"GUILDFORD BOROUGH COUNCIL","Other Property","Thomas Ford & Partners","152300","20/10/2020",30004267,110,0,"Consultancy","Architects And Design Consultants","II","BACS","None",2020-06-26 00:00:00,"2020","07","20/109","G7515","Old Millmead House","D6001","Consultancy"
"GUILDFORD BOROUGH COUNCIL","Inventories","Moores Furniture Group Ltd","366800","22/10/2020",30004268,92.59,0,"Purchases","Other Fittings And Furnishings Suppliers","II","BACS","None",2020-09-28 00:00:00,"2020","07","891774","I01001","Stocks","2591","Purchases"
"GUILDFORD BOROUGH COUNCIL","Business Improvement","Bonnici Global Solutions Ltd","990710","22/10/2020",30004269,8265,0,"Consultancy","","II","BACS","None",2020-09-29 00:00:00,"2020","07","GBC00007","G3531","Future Guildford","D6001","Consultancy"
"GUILDFORD BOROUGH COUNCIL","Audit Management","Bonnici Global Solutions Ltd","990710","22/10/2020",30004269,8265,0,"Consultancy","","II","BACS","None",2020-09-29 00:00:00,"2020","07","GBC00007","G3531","Future Guildford","D6001","Consultancy"
"GUILDFORD BOROUGH COUNCIL","Resources Caseworker","Digital ID Limited","771890","29/10/2020",30004270,8.95,0,"Postage","Alarm And Access Control System Suppliers","II","BACS","None",2020-10-05 00:00:00,"2020","07","0000401925","G7511","Millmead House","D5003","Postage"
"GUILDFORD BOROUGH COUNCIL","Millmead House","Digital ID Limited","771890","29/10/2020",30004270,8.95,0,"Postage","Alarm And Access Control System Suppliers","II","BACS","None",2020-10-05 00:00:00,"2020","07","0000401925","G7511","Millmead House","D5003","Postage"
"GUILDFORD BOROUGH COUNCIL","Resources Caseworker","Digital ID Limited","771890","29/10/2020",30004270,23.95,0,"Materials","Alarm And Access Control System Suppliers","II","BACS","None",2020-10-05 00:00:00,"2020","07","0000401925","G7511","Millmead House","D2003","Materials"
"GUILDFORD BOROUGH COUNCIL","Millmead House","Digital ID Limited","771890","29/10/2020",30004270,23.95,0,"Materials","Alarm And Access Control System Suppliers","II","BACS","None",2020-10-05 00:00:00,"2020","07","0000401925","G7511","Millmead House","D2003","Materials"
"GUILDFORD BOROUGH COUNCIL","Countryside and Parks Services","Saint-Gobain Building Distribution Limited (Jewson)","271200","15/10/2020",30004271,86.84,0,"Materials","Builders Merchants","II","BACS","None",2020-09-21 00:00:00,"2020","07","0652/00190926","A1100","Horticulture","D2003","Materials"
"GUILDFORD BOROUGH COUNCIL","Inventories","Akw Medi-Care Limited","178400","22/10/2020",30004272,546.59,0,"Purchases","Mobility Disability Equipment Suppliers","II","BACS","None",2020-09-28 00:00:00,"2020","07","1860506","I01001","Stocks","2591","Purchases"
"GUILDFORD BOROUGH COUNCIL","Inventories","Akw Medi-Care Limited","178400","27/10/2020",30004273,237.01,0,"Purchases","Mobility Disability Equipment Suppliers","II","BACS","None",2020-10-01 00:00:00,"2020","07","1861852","I01001","Stocks","2591","Purchases"
"GUILDFORD BOROUGH COUNCIL","Countryside and Parks Services","AVS Fencing Supplies Ltd","908500","29/10/2020",30004274,73.12,0,"Materials","Builders Merchants","II","BACS","None",2020-10-06 00:00:00,"2020","07","SINV-0868343","A1100","Horticulture","D2003","Materials"
"GUILDFORD BOROUGH COUNCIL","Countryside and Parks Services","AVS Fencing Supplies Ltd","908500","29/10/2020",30004274,38.7,0,"Materials","Builders Merchants","II","BACS","None",2020-10-06 00:00:00,"2020","07","SINV-0868343","A1100","Horticulture","D2003","Materials"
"GUILDFORD BOROUGH COUNCIL","Countryside and Parks Services","AVS Fencing Supplies Ltd","908500","29/10/2020",30004274,89.7,0,"Materials","Builders Merchants","II","BACS","None",2020-10-06 00:00:00,"2020","07","SINV-0868343","A1100","Horticulture","D2003","Materials"
"GUILDFORD BOROUGH COUNCIL","Countryside and Parks Services","AVS Fencing Supplies Ltd","908500","29/10/2020",30004274,297.28,0,"Materials","Builders Merchants","II","BACS","None",2020-10-06 00:00:00,"2020","07","SINV-0868343","A1100","Horticulture","D2003","Materials"
"GUILDFORD BOROUGH COUNCIL","Lead Specialist - HR","TP Health Ltd","957830","24/11/2020",30004275,448,0,"Staff Costs","Health And Safety Training Providers","II","BACS","None",2020-08-31 00:00:00,"2020","07","INV-000006601","G2555","HR Services","A7100","Staff Costs"
"GUILDFORD BOROUGH COUNCIL","Resources Caseworker","Frontline Security Solutions Limited","208200","29/10/2020",30004276,2516.51,0,"Services","Other Security Equipment Suppliers","II","BACS","None",2020-10-06 00:00:00,"2020","07","26073","G7511","Millmead House","D6004","Services"
"GUILDFORD BOROUGH COUNCIL","Millmead House","Frontline Security Solutions Limited","208200","29/10/2020",30004276,2516.51,0,"Services","Other Security Equipment Suppliers","II","BACS","None",2020-10-06 00:00:00,"2020","07","26073","G7511","Millmead House","D6004","Services"
"GUILDFORD BOROUGH COUNCIL","Business Improvement","Embridge Consulting (UK) LTD","1000018","27/10/2020",30004277,6055.75,0,"Consultancy","","II","BACS","None",2020-09-30 00:00:00,"2020","07","11670","G3531","Future Guildford","D6001","Consultancy"
"GUILDFORD BOROUGH COUNCIL","Audit Management","Embridge Consulting (UK) LTD","1000018","27/10/2020",30004277,6055.75,0,"Consultancy","","II","BACS","None",2020-09-30 00:00:00,"2020","07","11670","G3531","Future Guildford","D6001","Consultancy"
"GUILDFORD BOROUGH COUNCIL","Grants","The OT Practice Ltd","984970","27/10/2020",30004278,45,0,"Consultancy","","II","BACS","None",2020-09-30 00:00:00,"2020","07","INV-023883","N51019","BCF Non Grant Expenditure","D6001","Consultancy"
"GUILDFORD BOROUGH COUNCIL","Grants","The OT Practice Ltd","984970","27/10/2020",30004278,1400,0,"Consultancy","","II","BACS","None",2020-09-30 00:00:00,"2020","07","INV-023883","N51019","BCF Non Grant Expenditure","D6001","Consultancy"
"GUILDFORD BOROUGH COUNCIL","Planning Policy","Intelligent Plans and Examinations Limited","1000045","08/10/2020",30004279,5277.5,0,"Consultancy","","II","BACS","None",2020-09-07 00:00:00,"2020","07","1476","D5301","Neigbourhood Plans","D6001","Consultancy"
"GUILDFORD BOROUGH COUNCIL","Lead Specialist - Finance","Hays Specialist Recruitment Limited","156250","29/10/2020",30004280,2238.95,0,"Agency","Other Recruitment Agencies And Service Providers","II","BACS","None",2020-10-05 00:00:00,"2020","07","1010852722","G3565","Finance Specialists","A5191","Agency"
"GUILDFORD BOROUGH COUNCIL","Countryside and Parks Services","Palintest","1000072","13/10/2020",30004281,148.6,0,"Services","","II","BACS","None",2020-06-18 00:00:00,"2020","07","157877","A1250","Stoke Park","D6004","Services"
"GUILDFORD BOROUGH COUNCIL","Resources Caseworker","Viledvale (UK) Limited","954010","29/10/2020",30004282,226.95,0,"Asset Maintenance","Other Retailers","II","BACS","None",2020-10-05 00:00:00,"2020","07","67948","G7511","Millmead House","B1001","Asset Maintenance"
"GUILDFORD BOROUGH COUNCIL","Millmead House","Viledvale (UK) Limited","954010","29/10/2020",30004282,226.95,0,"Asset Maintenance","Other Retailers","II","BACS","None",2020-10-05 00:00:00,"2020","07","67948","G7511","Millmead House","B1001","Asset Maintenance"
"GUILDFORD BOROUGH COUNCIL","Industrial Estates","Portsmouth Demolition & Salvage Ltd","1000080","08/10/2020",30004283,45280.96,0,"Contractor Payments","","II","BACS","None",2020-06-04 00:00:00,"2020","07","1848","P72037","Midleton Ind Est Redevelop","1233","Contractor Payments"
"GUILDFORD BOROUGH COUNCIL","Development Control","Vivid Resourcing Limited","856800","27/10/2020",30004284,1175.01,0,"Agency","Other Recruitment Agencies And Service Providers","II","BACS","None",2020-09-30 00:00:00,"2020","07","50809","D5100","Development Control - Fee Earn","A5191","Agency"
"GUILDFORD BOROUGH COUNCIL","Crematorium","Alresford Marquee Hire Ltd","940750","27/10/2020",30004285,680,0,"Consultants Fees","Marquee Suppliers","II","BACS","None",2020-10-01 00:00:00,"2020","07","4032","P05009","Refurbish/Rebuild Crematorium","1221","Consultants Fees"
"GUILDFORD BOROUGH COUNCIL","Business Improvement","Mason Frank International Limited","1000025","29/10/2020",30004286,1500,0,"Consultancy","","II","BACS","None",2020-10-06 00:00:00,"2020","07","M1000005324","G3531","Future Guildford","D6001","Consultancy"
"GUILDFORD BOROUGH COUNCIL","Audit Management","Mason Frank International Limited","1000025","29/10/2020",30004286,1500,0,"Consultancy","","II","BACS","None",2020-10-06 00:00:00,"2020","07","M1000005324","G3531","Future Guildford","D6001","Consultancy"
"GUILDFORD BOROUGH COUNCIL","Civic Expenses","High Sheriff Youth Awards","1000073","13/10/2020",30004287,2000,0,"Advertising, Publicity & Promotion","","II","BACS","None",2020-09-16 00:00:00,"2020","07","2020-21-3","F2131","Civic Expenses","D5002","Advertising, Publicity & Promotion"
"GUILDFORD BOROUGH COUNCIL","Building Maintenance","C A Moore (CIS)","113100","08/10/2020",30004288,2375,0,"Materials","Joiners And Carpenters","II","BACS","None",2020-10-04 00:00:00,"2020","07","460","K1515","Building Maintenance","D2003","Materials"
"GUILDFORD BOROUGH COUNCIL","Building Maintenance","C A Moore (CIS)","113100","08/10/2020",30004288,625,0,"Services","Joiners And Carpenters","II","BACS","None",2020-10-04 00:00:00,"2020","07","460","K1515","Building Maintenance","D6004","Services"
"GUILDFORD BOROUGH COUNCIL","Flats Communal Services","Pirbright Electrical Contractors Ltd","151880","08/10/2020",30004289,471,0,"Asset Maintenance","Electricians","II","BACS","None",2020-08-13 00:00:00,"2020","07","43836","M2841","Parsons Green 1-24 (24)","B1001","Asset Maintenance"
"GUILDFORD BOROUGH COUNCIL","Flats Communal Services","Pirbright Electrical Contractors Ltd","151880","08/10/2020",30004290,54,0,"Asset Maintenance","Electricians","II","BACS","None",2020-08-13 00:00:00,"2020","07","43838","M2654","Cabell Rd 133-147 Odd (8)","B1001","Asset Maintenance"
"GUILDFORD BOROUGH COUNCIL","Flats Communal Services","Pirbright Electrical Contractors Ltd","151880","08/10/2020",30004291,101,0,"Asset Maintenance","Electricians","II","BACS","None",2020-08-13 00:00:00,"2020","07","43839","M2658","Cabell Rd 209-223 Odd (8)","B1001","Asset Maintenance"
"GUILDFORD BOROUGH COUNCIL","Responsive & Planned Maintenance","Pirbright Electrical Contractors Ltd","151880","08/10/2020",30004292,101,0,"Asset Maintenance","Electricians","II","BACS","None",2020-08-13 00:00:00,"2020","07","43840","M5113","Repairs-Responsive (BHS)","B1001","Asset Maintenance"
"GUILDFORD BOROUGH COUNCIL","Responsive & Planned Maintenance","Pirbright Electrical Contractors Ltd","151880","08/10/2020",30004293,101,0,"Asset Maintenance","Electricians","II","BACS","None",2020-08-13 00:00:00,"2020","07","43841","M5113","Repairs-Responsive (BHS)","B1001","Asset Maintenance"
"GUILDFORD BOROUGH COUNCIL","Responsive & Planned Maintenance","Pirbright Electrical Contractors Ltd","151880","08/10/2020",30004294,54,0,"Asset Maintenance","Electricians","II","BACS","None",2020-08-13 00:00:00,"2020","07","43842","M5113","Repairs-Responsive (BHS)","B1001","Asset Maintenance"
"GUILDFORD BOROUGH COUNCIL","Responsive & Planned Maintenance","Pirbright Electrical Contractors Ltd","151880","08/10/2020",30004295,54,0,"Asset Maintenance","Electricians","II","BACS","None",2020-08-13 00:00:00,"2020","07","43844","M5113","Repairs-Responsive (BHS)","B1001","Asset Maintenance"
"GUILDFORD BOROUGH COUNCIL","Responsive & Planned Maintenance","Pirbright Electrical Contractors Ltd","151880","08/10/2020",30004296,101,0,"Asset Maintenance","Electricians","II","BACS","None",2020-08-13 00:00:00,"2020","07","43845","M5113","Repairs-Responsive (BHS)","B1001","Asset Maintenance"
"GUILDFORD BOROUGH COUNCIL","Flats Communal Services","Pirbright Electrical Contractors Ltd","151880","08/10/2020",30004297,101,0,"Asset Maintenance","Electricians","II","BACS","None",2020-08-13 00:00:00,"2020","07","43846","M2630","Applegarth Av 110-124(8)","B1001","Asset Maintenance"
"GUILDFORD BOROUGH COUNCIL","Flats Communal Services","Pirbright Electrical Contractors Ltd","151880","08/10/2020",30004298,233,0,"Asset Maintenance","Electricians","II","BACS","None",2020-08-13 00:00:00,"2020","07","43847","M2811","Mount Court 1 - 40 (40)","B1001","Asset Maintenance"
"GUILDFORD BOROUGH COUNCIL","Flats Communal Services","Pirbright Electrical Contractors Ltd","151880","08/10/2020",30004299,810.5,0,"Asset Maintenance","Electricians","II","BACS","None",2020-08-13 00:00:00,"2020","07","43848","M2899","Slyfield Crt 17-20 (4)","B1001","Asset Maintenance"
"GUILDFORD BOROUGH COUNCIL","Responsive & Planned Maintenance","Pirbright Electrical Contractors Ltd","151880","08/10/2020",30004300,125,0,"Asset Maintenance","Electricians","II","BACS","None",2020-08-13 00:00:00,"2020","07","43849","M5113","Repairs-Responsive (BHS)","B1001","Asset Maintenance"
"GUILDFORD BOROUGH COUNCIL","Flats Communal Services","Pirbright Electrical Contractors Ltd","151880","08/10/2020",30004301,66,0,"Asset Maintenance","Electricians","II","BACS","None",2020-08-13 00:00:00,"2020","07","43850","M2736","Friary House 1-61 (61)","B1001","Asset Maintenance"
"GUILDFORD BOROUGH COUNCIL","Flats Communal Services","Pirbright Electrical Contractors Ltd","151880","08/10/2020",30004302,54,0,"Asset Maintenance","Electricians","II","BACS","None",2020-08-13 00:00:00,"2020","07","43851","M2655","Carfax Ave 58-64A (8)","B1001","Asset Maintenance"
"GUILDFORD BOROUGH COUNCIL","Off Street Parking","Concrete Repairs Ltd","722880","08/10/2020",30004303,90,0,"Asset Maintenance","Concrete Cutting, Drilling And Maintenance Contractors","II","BACS","None",2020-05-31 00:00:00,"2020","07","INV/016458","B2216","General Upkeep- Urban Car Pks","B1001","Asset Maintenance"
"GUILDFORD BOROUGH COUNCIL","Off Street Parking","Concrete Repairs Ltd","722880","08/10/2020",30004303,90,0,"Asset Maintenance","Concrete Cutting, Drilling And Maintenance Contractors","II","BACS","None",2020-05-31 00:00:00,"2020","07","INV/016458","B2216","General Upkeep- Urban Car Pks","B1001","Asset Maintenance"
"GUILDFORD BOROUGH COUNCIL","Off Street Parking","Concrete Repairs Ltd","722880","08/10/2020",30004303,90,0,"Asset Maintenance","Concrete Cutting, Drilling And Maintenance Contractors","II","BACS","None",2020-05-31 00:00:00,"2020","07","INV/016458","B2216","General Upkeep- Urban Car Pks","B1001","Asset Maintenance"
"GUILDFORD BOROUGH COUNCIL","Off Street Parking","Concrete Repairs Ltd","722880","08/10/2020",30004303,90,0,"Asset Maintenance","Concrete Cutting, Drilling And Maintenance Contractors","II","BACS","None",2020-05-31 00:00:00,"2020","07","INV/016458","B2216","General Upkeep- Urban Car Pks","B1001","Asset Maintenance"
"GUILDFORD BOROUGH COUNCIL","Off Street Parking","Concrete Repairs Ltd","722880","08/10/2020",30004303,90,0,"Asset Maintenance","Concrete Cutting, Drilling And Maintenance Contractors","II","BACS","None",2020-05-31 00:00:00,"2020","07","INV/016458","B2216","General Upkeep- Urban Car Pks","B1001","Asset Maintenance"
"GUILDFORD BOROUGH COUNCIL","Off Street Parking","Concrete Repairs Ltd","722880","08/10/2020",30004303,90,0,"Asset Maintenance","Concrete Cutting, Drilling And Maintenance Contractors","II","BACS","None",2020-05-31 00:00:00,"2020","07","INV/016458","B2216","General Upkeep- Urban Car Pks","B1001","Asset Maintenance"
"GUILDFORD BOROUGH COUNCIL","Off Street Parking","Concrete Repairs Ltd","722880","08/10/2020",30004303,90,0,"Asset Maintenance","Concrete Cutting, Drilling And Maintenance Contractors","II","BACS","None",2020-05-31 00:00:00,"2020","07","INV/016458","B2216","General Upkeep- Urban Car Pks","B1001","Asset Maintenance"
"GUILDFORD BOROUGH COUNCIL","Off Street Parking","Concrete Repairs Ltd","722880","08/10/2020",30004304,90,0,"Asset Maintenance","Concrete Cutting, Drilling And Maintenance Contractors","II","BACS","None",2020-06-30 00:00:00,"2020","07","INV/016460","B2216","General Upkeep- Urban Car Pks","B1001","Asset Maintenance"
"GUILDFORD BOROUGH COUNCIL","Off Street Parking","Concrete Repairs Ltd","722880","08/10/2020",30004304,90,0,"Asset Maintenance","Concrete Cutting, Drilling And Maintenance Contractors","II","BACS","None",2020-06-30 00:00:00,"2020","07","INV/016460","B2216","General Upkeep- Urban Car Pks","B1001","Asset Maintenance"
"GUILDFORD BOROUGH COUNCIL","Off Street Parking","Concrete Repairs Ltd","722880","08/10/2020",30004304,90,0,"Asset Maintenance","Concrete Cutting, Drilling And Maintenance Contractors","II","BACS","None",2020-06-30 00:00:00,"2020","07","INV/016460","B2216","General Upkeep- Urban Car Pks","B1001","Asset Maintenance"
"GUILDFORD BOROUGH COUNCIL","Off Street Parking","Concrete Repairs Ltd","722880","08/10/2020",30004304,90,0,"Asset Maintenance","Concrete Cutting, Drilling And Maintenance Contractors","II","BACS","None",2020-06-30 00:00:00,"2020","07","INV/016460","B2216","General Upkeep- Urban Car Pks","B1001","Asset Maintenance"
"GUILDFORD BOROUGH COUNCIL","Off Street Parking","Concrete Repairs Ltd","722880","08/10/2020",30004304,90,0,"Asset Maintenance","Concrete Cutting, Drilling And Maintenance Contractors","II","BACS","None",2020-06-30 00:00:00,"2020","07","INV/016460","B2216","General Upkeep- Urban Car Pks","B1001","Asset Maintenance"
"GUILDFORD BOROUGH COUNCIL","Off Street Parking","Concrete Repairs Ltd","722880","08/10/2020",30004304,90,0,"Asset Maintenance","Concrete Cutting, Drilling And Maintenance Contractors","II","BACS","None",2020-06-30 00:00:00,"2020","07","INV/016460","B2216","General Upkeep- Urban Car Pks","B1001","Asset Maintenance"
"GUILDFORD BOROUGH COUNCIL","Off Street Parking","Concrete Repairs Ltd","722880","08/10/2020",30004304,90,0,"Asset Maintenance","Concrete Cutting, Drilling And Maintenance Contractors","II","BACS","None",2020-06-30 00:00:00,"2020","07","INV/016460","B2216","General Upkeep- Urban Car Pks","B1001","Asset Maintenance"
"GUILDFORD BOROUGH COUNCIL","Guildford Museum","Monatrix Ltd","851140","08/10/2020",30004305,205,0,"Asset Maintenance","Closed Circuit Television (Cctv) Suppliers","II","BACS","None",2020-07-13 00:00:00,"2020","07","14231","A5511","Museum","B1001","Asset Maintenance"
"GUILDFORD BOROUGH COUNCIL","Flats Communal Services","Cranleigh Aerials Limited","698990","08/10/2020",30004306,125,0,"Asset Maintenance","Audio And Visual Equipment Suppliers","II","BACS","None",2020-08-18 00:00:00,"2020","07","705107","M2883","Rowan Cl 31 - 41 (6 Odd)","B1001","Asset Maintenance"
"GUILDFORD BOROUGH COUNCIL","Flats Communal Services","Cranleigh Aerials Limited","698990","08/10/2020",30004306,275,0,"Asset Maintenance","Audio And Visual Equipment Suppliers","II","BACS","None",2020-08-18 00:00:00,"2020","07","705107","M2883","Rowan Cl 31 - 41 (6 Odd)","B1001","Asset Maintenance"
"GUILDFORD BOROUGH COUNCIL","Property","Hannaford Upright Ltd","236800","08/10/2020",30004307,1314,0,"Consultants Fees","Other Construction Consultants","II","BACS","None",2020-08-25 00:00:00,"2020","07","3371/10082","P74060","1-3 Bridge Street (Armour Bui)","1221","Consultants Fees"
"GUILDFORD BOROUGH COUNCIL","Tourist Information Centre","Rent Refunds","9999997","13/10/2020",30004362,85.5,0,"Ticket Sales","","II","BACS","None",2020-10-08 00:00:00,"2020","07","Canc. Event Spring Readers Day","F5541","Tourist Information Centre","K3003","Ticket Sales"
"GUILDFORD BOROUGH COUNCIL","Development Control","Portal Planquest Ltd.","1000021","13/10/2020",30004366,206,0,"Planning Fees","","II","BACS","None",2020-10-08 00:00:00,"2020","07","PP08981909v1GLG","D5100","Development Control - Fee Earn","K4006","Planning Fees"
"GUILDFORD BOROUGH COUNCIL","Development Control","Portal Planquest Ltd.","1000021","13/10/2020",30004367,234,0,"Planning Fees","","II","BACS","None",2020-10-08 00:00:00,"2020","07","PP08928093v1MQI","D5100","Development Control - Fee Earn","K4006","Planning Fees"
"GUILDFORD BOROUGH COUNCIL","HRA Income","Rent Refunds","9999997","13/10/2020",30004368,29,0,"Rent","","II","BACS","None",2020-10-08 00:00:00,"2020","07","10011819","M9111","General Income","K5001","Rent"
"GUILDFORD BOROUGH COUNCIL","Off Street Parking","Rundle & Co Ltd","573900","13/10/2020",30004371,10.05,0,"Enforcement","Debt Collectors","II","BACS","None",2020-06-03 00:00:00,"2020","07","119546","B2111","Car Parks - Administration","D6008","Enforcement"
"GUILDFORD BOROUGH COUNCIL","Off Street Parking","Rundle & Co Ltd","573900","13/10/2020",30004372,49.52,0,"Enforcement","Debt Collectors","II","BACS","None",2020-02-19 00:00:00,"2020","07","116753","B2111","Car Parks - Administration","D6008","Enforcement"
"GUILDFORD BOROUGH COUNCIL","Countryside and Parks Services","Shorts Group Limited","1000078","13/10/2020",30004373,305,0,"Grounds Maintenance","","II","BACS","None",2020-07-31 00:00:00,"2020","07","S224964","A1300","Trees And Countryside","B6001","Grounds Maintenance"
"GUILDFORD BOROUGH COUNCIL","Parks Countryside Management","Shorts Group Limited","1000078","13/10/2020",30004373,305,0,"Grounds Maintenance","","II","BACS","None",2020-07-31 00:00:00,"2020","07","S224964","A1300","Trees And Countryside","B6001","Grounds Maintenance"
"GUILDFORD BOROUGH COUNCIL","Countryside and Parks Services","Shorts Group Limited","1000078","13/10/2020",30004373,33.75,0,"Grounds Maintenance","","II","BACS","None",2020-07-31 00:00:00,"2020","07","S224964","A1300","Trees And Countryside","B6001","Grounds Maintenance"
"GUILDFORD BOROUGH COUNCIL","Parks Countryside Management","Shorts Group Limited","1000078","13/10/2020",30004373,33.75,0,"Grounds Maintenance","","II","BACS","None",2020-07-31 00:00:00,"2020","07","S224964","A1300","Trees And Countryside","B6001","Grounds Maintenance"
"GUILDFORD BOROUGH COUNCIL","Off Street Parking","Metric Group Limited","322900","13/10/2020",30004374,800,0,"Asset Maintenance","Parking Management Providers","II","BACS","None",2020-09-16 00:00:00,"2020","07","170508","B2216","General Upkeep- Urban Car Pks","B1001","Asset Maintenance"
"GUILDFORD BOROUGH COUNCIL","Countryside and Parks Services","AGB Contractors Limited","766060","13/10/2020",30004375,4830,0,"Asset Maintenance","General Builders","II","BACS","None",2020-09-26 00:00:00,"2020","07","200926","A1600","Stoke Park Depot","B1001","Asset Maintenance"
"GUILDFORD BOROUGH COUNCIL","Countryside and Parks Services","AGB Contractors Limited","766060","13/10/2020",30004375,913,0,"Asset Maintenance","General Builders","II","BACS","None",2020-09-26 00:00:00,"2020","07","200926","A1600","Stoke Park Depot","B1001","Asset Maintenance"
"GUILDFORD BOROUGH COUNCIL","Major Projects","Insight Executive Group Limited","990760","29/10/2020",30004376,4800,0,"Major Projects (TO BE RECODED)","","II","BACS","None",2020-10-06 00:00:00,"2020","07","115634","","Allocation Pending","8893","Major Projects (TO BE RECODED)"
"GUILDFORD BOROUGH COUNCIL","Major Projects","Insight Executive Group Limited","990760","29/10/2020",30004376,4200,0,"Agency","","II","BACS","None",2020-10-06 00:00:00,"2020","07","115634","F5530","Major Projects","A5191","Agency"
"GUILDFORD BOROUGH COUNCIL","Guildford Museum","Joanna Wiltcher","957850","29/10/2020",30004377,3600,0,"Consultancy","Interim Management Agencies","II","BACS","None",2020-10-06 00:00:00,"2020","07","JW/GBC21","A5511","Museum","D6001","Consultancy"
"GUILDFORD BOROUGH COUNCIL","Climate Change","Stark Software International Ltd","694420","27/10/2020",30004378,189.63,0,"Services","Software Developers","II","BACS","None",2020-09-30 00:00:00,"2020","07","62454","B3911","Climate Change Strategy","D6004","Services"
"GUILDFORD BOROUGH COUNCIL","Countryside and Parks Services","AGB Contractors Limited","766060","13/10/2020",30004379,4800,0,"Asset Maintenance","General Builders","II","BACS","None",2020-09-03 00:00:00,"2020","07","200903","A1600","Stoke Park Depot","B1001","Asset Maintenance"
"GUILDFORD BOROUGH COUNCIL","Countryside and Parks Services","AGB Contractors Limited","766060","13/10/2020",30004379,2394,0,"Asset Maintenance","General Builders","II","BACS","None",2020-09-03 00:00:00,"2020","07","200903","A1600","Stoke Park Depot","B1001","Asset Maintenance"
"GUILDFORD BOROUGH COUNCIL","Markets","Gidden Place Ltd","215900","20/10/2020",30004380,10,0,"Advertising, Publicity & Promotion","Graphic Design And Creative Agencies","II","BACS","None",2020-08-20 00:00:00,"2020","07","87584","F5550","Farmers Market","D5002","Advertising, Publicity & Promotion"
"GUILDFORD BOROUGH COUNCIL","Markets","Gidden Place Ltd","215900","20/10/2020",30004380,229,0,"Advertising, Publicity & Promotion","Graphic Design And Creative Agencies","II","BACS","None",2020-08-20 00:00:00,"2020","07","87584","F5550","Farmers Market","D5002","Advertising, Publicity & Promotion"
"GUILDFORD BOROUGH COUNCIL","Countryside and Parks Services","AGB Contractors Limited","766060","13/10/2020",30004381,630,0,"Asset Maintenance","General Builders","II","BACS","None",2020-09-03 00:00:00,"2020","07","200903B","A1600","Stoke Park Depot","B1001","Asset Maintenance"
"GUILDFORD BOROUGH COUNCIL","Countryside and Parks Services","AGB Contractors Limited","766060","13/10/2020",30004381,720,0,"Asset Maintenance","General Builders","II","BACS","None",2020-09-03 00:00:00,"2020","07","200903B","A1600","Stoke Park Depot","B1001","Asset Maintenance"
"GUILDFORD BOROUGH COUNCIL","Major Projects","Network Rail Infrastructure Ltd","144690","03/11/2020",30004382,27074.25,0,"Consultancy","Rail Companies","II","BACS","None",2020-10-07 00:00:00,"2020","07","1270280","F5530","Major Projects","D6001","Consultancy"
"GUILDFORD BOROUGH COUNCIL","Off Street Parking","Rundle & Co Ltd","573900","13/10/2020",30004383,9.4,0,"Enforcement","Debt Collectors","II","BACS","None",2020-05-06 00:00:00,"2020","07","118877","B2111","Car Parks - Administration","D6008","Enforcement"
"GUILDFORD BOROUGH COUNCIL","Off Street Parking","Rundle & Co Ltd","573900","13/10/2020",30004384,186.09,0,"Enforcement","Debt Collectors","II","BACS","None",2020-02-12 00:00:00,"2020","07","116533","B2111","Car Parks - Administration","D6008","Enforcement"
"GUILDFORD BOROUGH COUNCIL","Countryside and Parks Services","AGB Contractors Limited","766060","13/10/2020",30004385,840,0,"Asset Maintenance","General Builders","II","BACS","None",2020-09-03 00:00:00,"2020","07","200903A","A1600","Stoke Park Depot","B1001","Asset Maintenance"
"GUILDFORD BOROUGH COUNCIL","Off Street Parking","Rundle & Co Ltd","573900","13/10/2020",30004387,3.68,0,"Enforcement","Debt Collectors","II","BACS","None",2020-07-01 00:00:00,"2020","07","120197","B2111","Car Parks - Administration","D6008","Enforcement"
"GUILDFORD BOROUGH COUNCIL","Markets","Gidden Place Ltd","215900","22/10/2020",30004388,229,0,"Advertising, Publicity & Promotion","Graphic Design And Creative Agencies","II","BACS","None",2020-09-28 00:00:00,"2020","07","87848","F5550","Farmers Market","D5002","Advertising, Publicity & Promotion"
"GUILDFORD BOROUGH COUNCIL","Countryside and Parks Services","Rhino Perimeter Security Ltd","908690","29/10/2020",30004390,175,0,"Grounds Maintenance","Third Party Supplier","II","BACS","None",2020-10-06 00:00:00,"2020","07","23255","A1100","Horticulture","B6001","Grounds Maintenance"
"GUILDFORD BOROUGH COUNCIL","Countryside and Parks Services","Rhino Perimeter Security Ltd","908690","29/10/2020",30004390,25,0,"Grounds Maintenance","Third Party Supplier","II","BACS","None",2020-10-06 00:00:00,"2020","07","23255","A1100","Horticulture","B6001","Grounds Maintenance"
"GUILDFORD BOROUGH COUNCIL","Corporate Property Management","RICS","106990","29/10/2020",30004391,99,0,"Staff Costs","Professional Associations","II","BACS","None",2020-10-06 00:00:00,"2020","07","02846888FTI","G4575","Asset Management","A7100","Staff Costs"
"GUILDFORD BOROUGH COUNCIL","Off Street Parking","Rundle & Co Ltd","573900","13/10/2020",30004392,13.01,0,"Enforcement","Debt Collectors","II","BACS","None",2020-09-09 00:00:00,"2020","07","121845","B2111","Car Parks - Administration","D6008","Enforcement"
"GUILDFORD BOROUGH COUNCIL","Refuse and Recycling","Nelson Direct Marketing Ltd","725200","29/10/2020",30004393,17631.84,0,"Postage","Direct Marketing Service Providers","II","BACS","None",2020-10-06 00:00:00,"2020","07","3866","K3551","Refuse - Domestic","D5003","Postage"
"GUILDFORD BOROUGH COUNCIL","Off Street Parking","Rundle & Co Ltd","573900","13/10/2020",30004394,26.09,0,"Enforcement","Debt Collectors","II","BACS","None",2020-08-26 00:00:00,"2020","07","121521","B2111","Car Parks - Administration","D6008","Enforcement"
"GUILDFORD BOROUGH COUNCIL","Off Street Parking","Rundle & Co Ltd","573900","13/10/2020",30004395,8.87,0,"Enforcement","Debt Collectors","II","BACS","None",2019-10-16 00:00:00,"2020","07","113253","B2111","Car Parks - Administration","D6008","Enforcement"
"GUILDFORD BOROUGH COUNCIL","Off Street Parking","Rundle & Co Ltd","573900","13/10/2020",30004396,77,0,"Enforcement","Debt Collectors","II","BACS","None",2020-03-25 00:00:00,"2020","07","117788","B2111","Car Parks - Administration","D6008","Enforcement"
"GUILDFORD BOROUGH COUNCIL","Parking Services","Park Now Limited","876560","27/10/2020",30004397,17907.88,0,"Parking Services (TO BE RECODED)","Other It Service Providers","II","BACS","None",2020-10-01 00:00:00,"2020","07","R200930-98","","Allocation Pending","8892","Parking Services (TO BE RECODED)"
"GUILDFORD BOROUGH COUNCIL","Off Street Parking","Park Now Limited","876560","27/10/2020",30004397,1147,0,"Service fees","Other It Service Providers","II","BACS","None",2020-10-01 00:00:00,"2020","07","R200930-98","B2111","Car Parks - Administration","D8011","Service fees"
"GUILDFORD BOROUGH COUNCIL","Modern Homes","Breyer Group Plc","129090","13/10/2020",30004398,525,0,"Contractor Payments","General Builders","II","BACS","None",2020-07-21 00:00:00,"2020","07","50007","N48056","Structural works 2020-21","1233","Contractor Payments"
"GUILDFORD BOROUGH COUNCIL","Modern Homes","Breyer Group Plc","129090","13/10/2020",30004399,843,0,"Contractor Payments","General Builders","II","BACS","None",2020-07-27 00:00:00,"2020","07","50032","N48056","Structural works 2020-21","1233","Contractor Payments"
"GUILDFORD BOROUGH COUNCIL","Renovations","T Gilmartin Limited","949710","13/10/2020",30004400,606.87,0,"Contractor Payments","Asbestos Removal Service Providers","II","BACS","None",2020-08-29 00:00:00,"2020","07","156755","N40271","Fire Protection Wks 2019-20","1233","Contractor Payments"
"GUILDFORD BOROUGH COUNCIL","Renovations","T Gilmartin Limited","949710","13/10/2020",30004401,606.87,0,"Contractor Payments","Asbestos Removal Service Providers","II","BACS","None",2020-08-29 00:00:00,"2020","07","156756","N40271","Fire Protection Wks 2019-20","1233","Contractor Payments"
"GUILDFORD BOROUGH COUNCIL","Renovations","T Gilmartin Limited","949710","13/10/2020",30004402,606.87,0,"Contractor Payments","Asbestos Removal Service Providers","II","BACS","None",2020-08-29 00:00:00,"2020","07","156759","N40271","Fire Protection Wks 2019-20","1233","Contractor Payments"
"GUILDFORD BOROUGH COUNCIL","Renovations","T Gilmartin Limited","949710","13/10/2020",30004403,171.87,0,"Contractor Payments","Asbestos Removal Service Providers","II","BACS","None",2020-08-31 00:00:00,"2020","07","156766","N40271","Fire Protection Wks 2019-20","1233","Contractor Payments"
"GUILDFORD BOROUGH COUNCIL","Responsive & Planned Maintenance","Guildford Fencing Co (CIS)","788901","13/10/2020",30004404,150,0,"Asset Maintenance","","II","BACS","None",2020-08-25 00:00:00,"2020","07","13749","M5113","Repairs-Responsive (BHS)","B1001","Asset Maintenance"
"GUILDFORD BOROUGH COUNCIL","Responsive & Planned Maintenance","Guildford Fencing Co (CIS)","788901","13/10/2020",30004404,252,0,"Asset Maintenance","","II","BACS","None",2020-08-25 00:00:00,"2020","07","13749","M5113","Repairs-Responsive (BHS)","B1001","Asset Maintenance"
"GUILDFORD BOROUGH COUNCIL","Responsive & Planned Maintenance","J T S Civil Engineers Ltd","648550","13/10/2020",30004405,130.58,0,"Asset Maintenance","Sewerage And Drainage Service Providers","II","BACS","None",2020-03-27 00:00:00,"2020","07","155063","M5113","Repairs-Responsive (BHS)","B1001","Asset Maintenance"
"GUILDFORD BOROUGH COUNCIL","Responsive & Planned Maintenance","J T S Civil Engineers Ltd","648550","13/10/2020",30004405,1237.5,0,"Asset Maintenance","Sewerage And Drainage Service Providers","II","BACS","None",2020-03-27 00:00:00,"2020","07","155063","M5113","Repairs-Responsive (BHS)","B1001","Asset Maintenance"
"GUILDFORD BOROUGH COUNCIL","Responsive & Planned Maintenance","TSG Building Services Plc","692680","13/10/2020",30004406,8311.33,0,"Asset Maintenance","General Builders","II","BACS","None",2020-07-31 00:00:00,"2020","07","0421-0272","M5114","Repairs-Cyclical (BHS)","B1001","Asset Maintenance"
"GUILDFORD BOROUGH COUNCIL","Flats Communal Services","J K Build Ltd (CIS)","358720","13/10/2020",30004407,1100,0,"Asset Maintenance","","II","BACS","None",2020-06-29 00:00:00,"2020","07","6127","M2683","Eagle Road 1-12A (24)","B1001","Asset Maintenance"
"GUILDFORD BOROUGH COUNCIL","Responsive & Planned Maintenance","Stannah Limited (CIS)","913700","13/10/2020",30004408,108.17,0,"Asset Maintenance","Stairlift Suppliers","II","BACS","None",2020-08-27 00:00:00,"2020","07","1085222401","M5113","Repairs-Responsive (BHS)","B1001","Asset Maintenance"
"GUILDFORD BOROUGH COUNCIL","Responsive & Planned Maintenance","C L C Contractors Limited","982900","13/10/2020",30004409,346.63,0,"Building Expenses","Property Maintenance Contractors","II","BACS","None",2020-09-23 00:00:00,"2020","07","AP88193-009","M5113","Repairs-Responsive (BHS)","B1002","Building Expenses"
"GUILDFORD BOROUGH COUNCIL","Responsive & Planned Maintenance","C L C Contractors Limited","982900","13/10/2020",30004409,346.63,0,"Building Expenses","Property Maintenance Contractors","II","BACS","None",2020-09-23 00:00:00,"2020","07","AP88193-009","M5113","Repairs-Responsive (BHS)","B1002","Building Expenses"
"GUILDFORD BOROUGH COUNCIL","Responsive & Planned Maintenance","C L C Contractors Limited","982900","13/10/2020",30004409,346.63,0,"Building Expenses","Property Maintenance Contractors","II","BACS","None",2020-09-23 00:00:00,"2020","07","AP88193-009","M5113","Repairs-Responsive (BHS)","B1002","Building Expenses"
"GUILDFORD BOROUGH COUNCIL","Flats Communal Services","C L C Contractors Limited","982900","13/10/2020",30004409,826.04,0,"Asset Maintenance","Property Maintenance Contractors","II","BACS","None",2020-09-23 00:00:00,"2020","07","AP88193-009","M2771","Kingston Ave 11-12A (4)","B1001","Asset Maintenance"
"GUILDFORD BOROUGH COUNCIL","Flats Communal Services","C L C Contractors Limited","982900","13/10/2020",30004409,826.04,0,"Asset Maintenance","Property Maintenance Contractors","II","BACS","None",2020-09-23 00:00:00,"2020","07","AP88193-009","M2774","Kingston Ave 19-20A (4)","B1001","Asset Maintenance"
"GUILDFORD BOROUGH COUNCIL","Flats Communal Services","C L C Contractors Limited","982900","13/10/2020",30004409,826.04,0,"Asset Maintenance","Property Maintenance Contractors","II","BACS","None",2020-09-23 00:00:00,"2020","07","AP88193-009","M2775","Kingston Ave 17-18A (4)","B1001","Asset Maintenance"
"GUILDFORD BOROUGH COUNCIL","Flats Communal Services","C L C Contractors Limited","982900","13/10/2020",30004409,826.04,0,"Asset Maintenance","Property Maintenance Contractors","II","BACS","None",2020-09-23 00:00:00,"2020","07","AP88193-009","M2776","Kingston Ave 21-22A (4)","B1001","Asset Maintenance"
"GUILDFORD BOROUGH COUNCIL","Flats Communal Services","C L C Contractors Limited","982900","13/10/2020",30004409,294.57,0,"Asset Maintenance","Property Maintenance Contractors","II","BACS","None",2020-09-23 00:00:00,"2020","07","AP88193-009","M2921","St Martins Cl 52-54 (2)","B1001","Asset Maintenance"
"GUILDFORD BOROUGH COUNCIL","Flats Communal Services","C L C Contractors Limited","982900","13/10/2020",30004409,589.4,0,"Building Expenses","Property Maintenance Contractors","II","BACS","None",2020-09-23 00:00:00,"2020","07","AP88193-009","M2947","33-35A (4) Tower Hill","B1002","Building Expenses"
"GUILDFORD BOROUGH COUNCIL","Flats Communal Services","C L C Contractors Limited","982900","13/10/2020",30004409,589.4,0,"Building Expenses","Property Maintenance Contractors","II","BACS","None",2020-09-23 00:00:00,"2020","07","AP88193-009","M2949","Tower Hill 37-39A (4)","B1002","Building Expenses"
"GUILDFORD BOROUGH COUNCIL","Responsive & Planned Maintenance","C L C Contractors Limited","982900","13/10/2020",30004409,1354.66,0,"Building Expenses","Property Maintenance Contractors","II","BACS","None",2020-09-23 00:00:00,"2020","07","AP88193-009","M5114","Repairs-Cyclical (BHS)","B1002","Building Expenses"
"GUILDFORD BOROUGH COUNCIL","Responsive & Planned Maintenance","C L C Contractors Limited","982900","13/10/2020",30004409,589.4,0,"Building Expenses","Property Maintenance Contractors","II","BACS","None",2020-09-23 00:00:00,"2020","07","AP88193-009","M5114","Repairs-Cyclical (BHS)","B1002","Building Expenses"
"GUILDFORD BOROUGH COUNCIL","Responsive & Planned Maintenance","C L C Contractors Limited","982900","13/10/2020",30004409,589.4,0,"Building Expenses","Property Maintenance Contractors","II","BACS","None",2020-09-23 00:00:00,"2020","07","AP88193-009","M5114","Repairs-Cyclical (BHS)","B1002","Building Expenses"
"GUILDFORD BOROUGH COUNCIL","Responsive & Planned Maintenance","C L C Contractors Limited","982900","13/10/2020",30004409,644.58,0,"Building Expenses","Property Maintenance Contractors","II","BACS","None",2020-09-23 00:00:00,"2020","07","AP88193-009","M5114","Repairs-Cyclical (BHS)","B1002","Building Expenses"
"GUILDFORD BOROUGH COUNCIL","Responsive & Planned Maintenance","C L C Contractors Limited","982900","13/10/2020",30004409,634.94,0,"Building Expenses","Property Maintenance Contractors","II","BACS","None",2020-09-23 00:00:00,"2020","07","AP88193-009","M5114","Repairs-Cyclical (BHS)","B1002","Building Expenses"
"GUILDFORD BOROUGH COUNCIL","Responsive & Planned Maintenance","C L C Contractors Limited","982900","13/10/2020",30004409,826.04,0,"Building Expenses","Property Maintenance Contractors","II","BACS","None",2020-09-23 00:00:00,"2020","07","AP88193-009","M5114","Repairs-Cyclical (BHS)","B1002","Building Expenses"
"GUILDFORD BOROUGH COUNCIL","Responsive & Planned Maintenance","C L C Contractors Limited","982900","13/10/2020",30004409,542.42,0,"Building Expenses","Property Maintenance Contractors","II","BACS","None",2020-09-23 00:00:00,"2020","07","AP88193-009","M5114","Repairs-Cyclical (BHS)","B1002","Building Expenses"
"GUILDFORD BOROUGH COUNCIL","Responsive & Planned Maintenance","C L C Contractors Limited","982900","13/10/2020",30004409,542.42,0,"Building Expenses","Property Maintenance Contractors","II","BACS","None",2020-09-23 00:00:00,"2020","07","AP88193-009","M5114","Repairs-Cyclical (BHS)","B1002","Building Expenses"
"GUILDFORD BOROUGH COUNCIL","Flats Communal Services","C L C Contractors Limited","982900","13/10/2020",30004409,431.14,0,"Asset Maintenance","Property Maintenance Contractors","II","BACS","None",2020-09-23 00:00:00,"2020","07","AP88193-009","M2819","Norwood Close 9-10A","B1001","Asset Maintenance"
"GUILDFORD BOROUGH COUNCIL","Flats Communal Services","C L C Contractors Limited","982900","13/10/2020",30004409,826.04,0,"Asset Maintenance","Property Maintenance Contractors","II","BACS","None",2020-09-23 00:00:00,"2020","07","AP88193-009","M2770","Kingston Avenue 7-8A","B1001","Asset Maintenance"
"GUILDFORD BOROUGH COUNCIL","Flats Communal Services","C L C Contractors Limited","982900","13/10/2020",30004409,826.04,0,"Asset Maintenance","Property Maintenance Contractors","II","BACS","None",2020-09-23 00:00:00,"2020","07","AP88193-009","M2772","Kingston Ave 13-14A (4)","B1001","Asset Maintenance"
"GUILDFORD BOROUGH COUNCIL","Flats Communal Services","C L C Contractors Limited","982900","13/10/2020",30004409,826.04,0,"Asset Maintenance","Property Maintenance Contractors","II","BACS","None",2020-09-23 00:00:00,"2020","07","AP88193-009","M2773","15-16A Kingston Avenue","B1001","Asset Maintenance"
"GUILDFORD BOROUGH COUNCIL","Flats Communal Services","C L C Contractors Limited","982900","13/10/2020",30004409,826.04,0,"Asset Maintenance","Property Maintenance Contractors","II","BACS","None",2020-09-23 00:00:00,"2020","07","AP88193-009","M2777","Kingston Avenue 23-24A (4)","B1001","Asset Maintenance"
"GUILDFORD BOROUGH COUNCIL","Flats Communal Services","C L C Contractors Limited","982900","13/10/2020",30004409,826.04,0,"Asset Maintenance","Property Maintenance Contractors","II","BACS","None",2020-09-23 00:00:00,"2020","07","AP88193-009","M2777","Kingston Avenue 23-24A (4)","B1001","Asset Maintenance"
"GUILDFORD BOROUGH COUNCIL","Flats Communal Services","C L C Contractors Limited","982900","13/10/2020",30004409,597.86,0,"Asset Maintenance","Property Maintenance Contractors","II","BACS","None",2020-09-23 00:00:00,"2020","07","AP88193-009","M2823","Norwood Rd. 28-30A (4)","B1001","Asset Maintenance"
"GUILDFORD BOROUGH COUNCIL","Flats Communal Services","C L C Contractors Limited","982900","13/10/2020",30004409,542.42,0,"Building Expenses","Property Maintenance Contractors","II","BACS","None",2020-09-23 00:00:00,"2020","07","AP88193-009","M2946","Tower Hill 26-28A (4)","B1002","Building Expenses"
"GUILDFORD BOROUGH COUNCIL","Responsive & Planned Maintenance","Paul Phelan","261400","13/10/2020",30004410,59.5,0,"Asset Maintenance","Sewerage And Drainage Service Providers","II","BACS","None",2020-07-27 00:00:00,"2020","07","82120","M5113","Repairs-Responsive (BHS)","B1001","Asset Maintenance"
"GUILDFORD BOROUGH COUNCIL","Responsive & Planned Maintenance","Paul Phelan","261400","13/10/2020",30004411,59.5,0,"Asset Maintenance","Sewerage And Drainage Service Providers","II","BACS","None",2020-07-31 00:00:00,"2020","07","82143","M5113","Repairs-Responsive (BHS)","B1001","Asset Maintenance"
"GUILDFORD BOROUGH COUNCIL","Responsive & Planned Maintenance","Paul Phelan","261400","13/10/2020",30004412,74.5,0,"Asset Maintenance","Sewerage And Drainage Service Providers","II","BACS","None",2020-07-31 00:00:00,"2020","07","82146","M5113","Repairs-Responsive (BHS)","B1001","Asset Maintenance"
"GUILDFORD BOROUGH COUNCIL","Responsive & Planned Maintenance","Paul Phelan","261400","13/10/2020",30004413,59.5,0,"Asset Maintenance","Sewerage And Drainage Service Providers","II","BACS","None",2020-07-31 00:00:00,"2020","07","82147","M5113","Repairs-Responsive (BHS)","B1001","Asset Maintenance"
"GUILDFORD BOROUGH COUNCIL","Responsive & Planned Maintenance","Paul Phelan","261400","13/10/2020",30004414,119,0,"Asset Maintenance","Sewerage And Drainage Service Providers","II","BACS","None",2020-08-05 00:00:00,"2020","07","82169","M5113","Repairs-Responsive (BHS)","B1001","Asset Maintenance"
"GUILDFORD BOROUGH COUNCIL","Responsive & Planned Maintenance","Paul Phelan","261400","13/10/2020",30004415,76,0,"Asset Maintenance","Sewerage And Drainage Service Providers","II","BACS","None",2020-08-07 00:00:00,"2020","07","82178","M5113","Repairs-Responsive (BHS)","B1001","Asset Maintenance"
"GUILDFORD BOROUGH COUNCIL","Responsive & Planned Maintenance","Paul Phelan","261400","13/10/2020",30004416,59.5,0,"Asset Maintenance","Sewerage And Drainage Service Providers","II","BACS","None",2020-08-11 00:00:00,"2020","07","82193","M5113","Repairs-Responsive (BHS)","B1001","Asset Maintenance"
"GUILDFORD BOROUGH COUNCIL","Responsive & Planned Maintenance","Paul Phelan","261400","13/10/2020",30004417,63.5,0,"Asset Maintenance","Sewerage And Drainage Service Providers","II","BACS","None",2020-08-18 00:00:00,"2020","07","82228","M5113","Repairs-Responsive (BHS)","B1001","Asset Maintenance"
"GUILDFORD BOROUGH COUNCIL","Responsive & Planned Maintenance","Paul Phelan","261400","13/10/2020",30004418,155,0,"Asset Maintenance","Sewerage And Drainage Service Providers","II","BACS","None",2020-08-20 00:00:00,"2020","07","82240","M5113","Repairs-Responsive (BHS)","B1001","Asset Maintenance"
"GUILDFORD BOROUGH COUNCIL","Responsive & Planned Maintenance","Paul Phelan","261400","13/10/2020",30004419,76,0,"Asset Maintenance","Sewerage And Drainage Service Providers","II","BACS","None",2020-08-24 00:00:00,"2020","07","82247","M5113","Repairs-Responsive (BHS)","B1001","Asset Maintenance"
"GUILDFORD BOROUGH COUNCIL","Responsive & Planned Maintenance","Paul Phelan","261400","13/10/2020",30004420,59.5,0,"Asset Maintenance","Sewerage And Drainage Service Providers","II","BACS","None",2020-08-25 00:00:00,"2020","07","82254","M5113","Repairs-Responsive (BHS)","B1001","Asset Maintenance"
"GUILDFORD BOROUGH COUNCIL","Responsive & Planned Maintenance","Paul Phelan","261400","13/10/2020",30004421,59.5,0,"Asset Maintenance","Sewerage And Drainage Service Providers","II","BACS","None",2020-08-31 00:00:00,"2020","07","82273","M5113","Repairs-Responsive (BHS)","B1001","Asset Maintenance"
"GUILDFORD BOROUGH COUNCIL","Guildford Museum","Headline Design & Print","831730","27/10/2020",30004422,558,0,"Printing, Photocopying And Reprographics External","Printing Service Providers","II","BACS","None",2020-10-02 00:00:00,"2020","07","17680","A5511","Museum","D5005","Printing, Photocopying And Reprographics External"
"GUILDFORD BOROUGH COUNCIL","Street Furniture","CTG Enterprises Ltd","795800","27/10/2020",30004423,525,0,"Services","Other Cleaning And Janitorial Service Providers","II","BACS","None",2020-10-01 00:00:00,"2020","07","GU1690GBC","B3711","Civic Amenities Administration","D6004","Services"
"GUILDFORD BOROUGH COUNCIL","Street Furniture","CTG Enterprises Ltd","795800","27/10/2020",30004424,858,0,"Services","Other Cleaning And Janitorial Service Providers","II","BACS","None",2020-10-01 00:00:00,"2020","07","GU1689GB","B3711","Civic Amenities Administration","D6004","Services"
"GUILDFORD BOROUGH COUNCIL","Inventories","Howden Joinery Limited","247800","27/10/2020",30004425,320.95,0,"Purchases","Joiners And Carpenters","II","BACS","None",2020-09-30 00:00:00,"2020","07","971/0192168","I01001","Stocks","2591","Purchases"
"GUILDFORD BOROUGH COUNCIL","Corporate Services","Penna Plc","674100","29/10/2020",30004426,4333.34,0,"Vacancy And Interview Costs","Human Resources Consultants","II","BACS","None",2020-09-30 00:00:00,"2020","07","620940","F1111","Corporate Services","A7120","Vacancy And Interview Costs"
"GUILDFORD BOROUGH COUNCIL","Council Tax","Morgan Hunt UK Limited","729420","27/10/2020",30004427,931.85,0,"Agency","Other Recruitment Agencies And Service Providers","II","BACS","None",2020-10-04 00:00:00,"2020","07","1197089","F6141","Council Tax Collectn Expenses","A5191","Agency"
"GUILDFORD BOROUGH COUNCIL","Building Maintenance","D G Property Refurbishment Ltd","713710","13/10/2020",30004428,4000,0,"Materials","Restoration Specialists","II","BACS","None",2020-10-05 00:00:00,"2020","07","68","K1515","Building Maintenance","D2003","Materials"
"GUILDFORD BOROUGH COUNCIL","Building Maintenance","D G Property Refurbishment Ltd","713710","13/10/2020",30004428,3576.24,0,"Services","Restoration Specialists","II","BACS","None",2020-10-05 00:00:00,"2020","07","68","K1515","Building Maintenance","D6004","Services"
"GUILDFORD BOROUGH COUNCIL","Countryside and Parks Services","AVS Fencing Supplies Ltd","908500","03/11/2020",30004429,49.8,0,"Materials","Builders Merchants","II","BACS","None",2020-10-07 00:00:00,"2020","07","SINV-0869108","A1820","Allotments","D2003","Materials"
"GUILDFORD BOROUGH COUNCIL","Parks Countryside Management","AVS Fencing Supplies Ltd","908500","03/11/2020",30004429,49.8,0,"Materials","Builders Merchants","II","BACS","None",2020-10-07 00:00:00,"2020","07","SINV-0869108","A1820","Allotments","D2003","Materials"
"GUILDFORD BOROUGH COUNCIL","Countryside and Parks Services","AVS Fencing Supplies Ltd","908500","03/11/2020",30004429,49.8,0,"Materials","Builders Merchants","II","BACS","None",2020-10-07 00:00:00,"2020","07","SINV-0869108","A1820","Allotments","D2003","Materials"
"GUILDFORD BOROUGH COUNCIL","Countryside and Parks Services","AVS Fencing Supplies Ltd","908500","03/11/2020",30004429,11.8,0,"Materials","Builders Merchants","II","BACS","None",2020-10-07 00:00:00,"2020","07","SINV-0869108","A1820","Allotments","D2003","Materials"
"GUILDFORD BOROUGH COUNCIL","Parks Countryside Management","AVS Fencing Supplies Ltd","908500","03/11/2020",30004429,11.8,0,"Materials","Builders Merchants","II","BACS","None",2020-10-07 00:00:00,"2020","07","SINV-0869108","A1820","Allotments","D2003","Materials"
"GUILDFORD BOROUGH COUNCIL","Countryside and Parks Services","AVS Fencing Supplies Ltd","908500","03/11/2020",30004429,11.8,0,"Materials","Builders Merchants","II","BACS","None",2020-10-07 00:00:00,"2020","07","SINV-0869108","A1820","Allotments","D2003","Materials"
"GUILDFORD BOROUGH COUNCIL","Vehicle Maintenance","Connections UK","145000","27/10/2020",30004430,279.3,0,"Repair And Maintenance Of Vehicles","Event Management Agencies","II","BACS","None",2020-09-30 00:00:00,"2020","07","3093","K5551","Fleet Workshops","C1002","Repair And Maintenance Of Vehicles"
"GUILDFORD BOROUGH COUNCIL","Corporate Services","Professional Conferences Ltd","231610","13/10/2020",30004431,85,0,"Staff Costs","Conference And Event Room Hirers","II","BACS","None",2020-08-27 00:00:00,"2020","07","308824","F1111","Corporate Services","A7100","Staff Costs"
"GUILDFORD BOROUGH COUNCIL","Vehicle Maintenance","Connections UK","145000","03/11/2020",30004432,204.4,0,"Repair And Maintenance Of Vehicles","Event Management Agencies","II","BACS","None",2020-10-07 00:00:00,"2020","07","3099","K5551","Fleet Workshops","C1002","Repair And Maintenance Of Vehicles"
"GUILDFORD BOROUGH COUNCIL","Corporate Property Management","Lambert Smith Hampton Group Limited","291600","13/10/2020",30004433,2750,0,"Consultancy","Outsourced Building Management Service Providers","II","BACS","None",2020-09-09 00:00:00,"2020","07","ARINV/00414153","G4575","Asset Management","D6001","Consultancy"
"GUILDFORD BOROUGH COUNCIL","Asset Development","Lambert Smith Hampton Group Limited","291600","13/10/2020",30004433,60,0,"Asset Development (TO BE RECODED)","Outsourced Building Management Service Providers","II","BACS","None",2020-09-09 00:00:00,"2020","07","ARINV/00414153","","Allocation Pending","8882","Asset Development (TO BE RECODED)"
"GUILDFORD BOROUGH COUNCIL","Council Tax","Morgan Hunt UK Limited","729420","27/10/2020",30004434,550.94,0,"Agency","Other Recruitment Agencies And Service Providers","II","BACS","None",2020-10-04 00:00:00,"2020","07","1197090","F6141","Council Tax Collectn Expenses","A5191","Agency"
"GUILDFORD BOROUGH COUNCIL","Major Projects","The Oyster Partnership Ltd","814220","03/11/2020",30004435,115.5,0,"Agency","Other Recruitment Agencies And Service Providers","II","BACS","None",2020-10-07 00:00:00,"2020","07","1082824","F5530","Major Projects","A5191","Agency"
"GUILDFORD BOROUGH COUNCIL","Major Projects","The Oyster Partnership Ltd","814220","03/11/2020",30004435,115.5,0,"Agency","Other Recruitment Agencies And Service Providers","II","BACS","None",2020-10-07 00:00:00,"2020","07","1082824","F5530","Major Projects","A5191","Agency"
"GUILDFORD BOROUGH COUNCIL","Major Projects","The Oyster Partnership Ltd","814220","03/11/2020",30004435,462,0,"Agency","Other Recruitment Agencies And Service Providers","II","BACS","None",2020-10-07 00:00:00,"2020","07","1082824","F5530","Major Projects","A5191","Agency"
"GUILDFORD BOROUGH COUNCIL","Engineeing and Transportation Services","The Oyster Partnership Ltd","814220","03/11/2020",30004435,462,0,"Agency","Other Recruitment Agencies And Service Providers","II","BACS","None",2020-10-07 00:00:00,"2020","07","1082824","G5538","Engineering And Transportation Services","A5191","Agency"
"GUILDFORD BOROUGH COUNCIL","Executive - Miscellaneous","The Oyster Partnership Ltd","814220","03/11/2020",30004435,231,0,"Agency Staff","Other Recruitment Agencies And Service Providers","II","BACS","None",2020-10-07 00:00:00,"2020","07","1082824","P79033","A331 Hotspots","1222","Agency Staff"
"GUILDFORD BOROUGH COUNCIL","Executive - Miscellaneous","The Oyster Partnership Ltd","814220","03/11/2020",30004435,77,0,"Agency Staff","Other Recruitment Agencies And Service Providers","II","BACS","None",2020-10-07 00:00:00,"2020","07","1082824","P79025","Guildford Park Redevelopment","1222","Agency Staff"
"GUILDFORD BOROUGH COUNCIL","Executive - Miscellaneous","The Oyster Partnership Ltd","814220","03/11/2020",30004435,308,0,"Agency Staff","Other Recruitment Agencies And Service Providers","II","BACS","None",2020-10-07 00:00:00,"2020","07","1082824","P79023","Guild Town Centre Regeneration","1222","Agency Staff"
"GUILDFORD BOROUGH COUNCIL","Executive - Miscellaneous","The Oyster Partnership Ltd","814220","03/11/2020",30004435,308,0,"Agency Staff","Other Recruitment Agencies And Service Providers","II","BACS","None",2020-10-07 00:00:00,"2020","07","1082824","P79032","SMC (West) Phase 1","1222","Agency Staff"
"GUILDFORD BOROUGH COUNCIL","Executive - Miscellaneous","The Oyster Partnership Ltd","814220","03/11/2020",30004435,308,0,"Agency Staff","Other Recruitment Agencies And Service Providers","II","BACS","None",2020-10-07 00:00:00,"2020","07","1082824","P79027","Walnut Tree Bridge Replacement","1222","Agency Staff"
"GUILDFORD BOROUGH COUNCIL","Executive - Miscellaneous","The Oyster Partnership Ltd","814220","03/11/2020",30004435,308,0,"Agency Staff","Other Recruitment Agencies And Service Providers","II","BACS","None",2020-10-07 00:00:00,"2020","07","1082824","P79037","Ash Road Bridge","1222","Agency Staff"
"GUILDFORD BOROUGH COUNCIL","Corporate Property Management","Thomas Ford & Partners","152300","22/10/2020",30004436,690,0,"Consultancy","Architects And Design Consultants","II","BACS","None",2020-09-28 00:00:00,"2020","07","20/311","G4575","Asset Management","D6001","Consultancy"
"GUILDFORD BOROUGH COUNCIL","Countryside and Parks Services","Fabilore Promasol Limited","923720","13/10/2020",30004437,259.6,0,"Asset Maintenance","General Builders","II","BACS","None",2020-08-03 00:00:00,"2020","07","10191","A1340","Chantry Wood","B1001","Asset Maintenance"
"GUILDFORD BOROUGH COUNCIL","Parks Countryside Management","Fabilore Promasol Limited","923720","13/10/2020",30004437,259.6,0,"Asset Maintenance","General Builders","II","BACS","None",2020-08-03 00:00:00,"2020","07","10191","A1340","Chantry Wood","B1001","Asset Maintenance"
"GUILDFORD BOROUGH COUNCIL","Countryside and Parks Services","Fabilore Promasol Limited","923720","13/10/2020",30004437,220,0,"Asset Maintenance","General Builders","II","BACS","None",2020-08-03 00:00:00,"2020","07","10191","A1340","Chantry Wood","B1001","Asset Maintenance"
"GUILDFORD BOROUGH COUNCIL","Parks Countryside Management","Fabilore Promasol Limited","923720","13/10/2020",30004437,220,0,"Asset Maintenance","General Builders","II","BACS","None",2020-08-03 00:00:00,"2020","07","10191","A1340","Chantry Wood","B1001","Asset Maintenance"
"GUILDFORD BOROUGH COUNCIL","Tourism & Development","The Stuart Mitchell Group","1000075","15/10/2020",30004438,1000,0,"Consultancy","","II","BACS","None",2020-09-21 00:00:00,"2020","07","400901","F5525","Economic Development","D6001","Consultancy"
"GUILDFORD BOROUGH COUNCIL","Vehicle Maintenance","Cordwallis Heathrow","934560","29/10/2020",30004439,15.3,0,"Repair And Maintenance Of Vehicles","Truck And Bus Dealers","II","BACS","None",2020-10-06 00:00:00,"2020","07","10290239","K5551","Fleet Workshops","C1002","Repair And Maintenance Of Vehicles"
"GUILDFORD BOROUGH COUNCIL","Building Maintenance","Chambers Waste Management Plc","127500","27/10/2020",30004440,30,0,"Services","Other Waste Disposal Suppliers","II","BACS","None",2020-09-30 00:00:00,"2020","07","P433197","K1515","Building Maintenance","D6004","Services"
"GUILDFORD BOROUGH COUNCIL","Leisure Play","Industrial Workwear Limited","772150","27/10/2020",30004441,39.09,0,"Clothing & Uniform","Other Clothing And Accessory Suppliers","II","BACS","None",2020-10-02 00:00:00,"2020","07","250182","A7211","Play Development","D4001","Clothing & Uniform"
"GUILDFORD BOROUGH COUNCIL","Leisure Play","Industrial Workwear Limited","772150","27/10/2020",30004441,5,0,"Postage","Other Clothing And Accessory Suppliers","II","BACS","None",2020-10-02 00:00:00,"2020","07","250182","A7211","Play Development","D5003","Postage"
"GUILDFORD BOROUGH COUNCIL","Inventories","M E Duffell Ltd","510200","15/10/2020",30004442,53.28,0,"Purchases","Keys And Locksmiths","II","BACS","None",2020-09-22 00:00:00,"2020","07","I2115527","I01001","Stocks","2591","Purchases"
"GUILDFORD BOROUGH COUNCIL","Building Maintenance","Chambers Waste Management Plc","127500","27/10/2020",30004443,899.96,0,"Services","Other Waste Disposal Suppliers","II","BACS","None",2020-09-30 00:00:00,"2020","07","P433048","K1515","Building Maintenance","D6004","Services"
"GUILDFORD BOROUGH COUNCIL","Major Projects","The Oyster Partnership Ltd","814220","03/11/2020",30004444,4400,0,"Agency","Other Recruitment Agencies And Service Providers","II","BACS","None",2020-10-07 00:00:00,"2020","07","1082828","F5530","Major Projects","A5191","Agency"
"GUILDFORD BOROUGH COUNCIL","Building Maintenance","Certsure LLP","619300","29/10/2020",30004445,36,0,"Grants And Subscriptions","Professional Associations","II","BACS","None",2020-09-09 00:00:00,"2020","07","0086887326","K1515","Building Maintenance","D9001","Grants And Subscriptions"
"GUILDFORD BOROUGH COUNCIL","Corporate Property Management","Professional Conferences Ltd","231610","13/10/2020",30004446,85,0,"Staff Costs","Conference And Event Room Hirers","II","BACS","None",2020-09-15 00:00:00,"2020","07","308889","G4575","Asset Management","A7100","Staff Costs"
"GUILDFORD BOROUGH COUNCIL","Countryside and Parks Services","Tudor (UK) Ltd T/A Tudor Environmental","950920","03/11/2020",30004447,15.28,0,"Equipment","Gardening Equipment Suppliers","II","BACS","None",2020-10-07 00:00:00,"2020","07","IN0089551","A1100","Horticulture","D2001","Equipment"
"GUILDFORD BOROUGH COUNCIL","Countryside and Parks Services","Tudor (UK) Ltd T/A Tudor Environmental","950920","03/11/2020",30004447,15.28,0,"Equipment","Gardening Equipment Suppliers","II","BACS","None",2020-10-07 00:00:00,"2020","07","IN0089551","A1100","Horticulture","D2001","Equipment"
"GUILDFORD BOROUGH COUNCIL","Countryside and Parks Services","Tudor (UK) Ltd T/A Tudor Environmental","950920","03/11/2020",30004447,38.86,0,"Equipment","Gardening Equipment Suppliers","II","BACS","None",2020-10-07 00:00:00,"2020","07","IN0089551","A1100","Horticulture","D2001","Equipment"
"GUILDFORD BOROUGH COUNCIL","Countryside and Parks Services","Tudor (UK) Ltd T/A Tudor Environmental","950920","03/11/2020",30004447,65,0,"Equipment","Gardening Equipment Suppliers","II","BACS","None",2020-10-07 00:00:00,"2020","07","IN0089551","A1100","Horticulture","D2001","Equipment"
"GUILDFORD BOROUGH COUNCIL","Countryside and Parks Services","Tudor (UK) Ltd T/A Tudor Environmental","950920","03/11/2020",30004447,97,0,"Equipment","Gardening Equipment Suppliers","II","BACS","None",2020-10-07 00:00:00,"2020","07","IN0089551","A1100","Horticulture","D2001","Equipment"
"GUILDFORD BOROUGH COUNCIL","Countryside and Parks Services","Tudor (UK) Ltd T/A Tudor Environmental","950920","03/11/2020",30004447,99.02,0,"Equipment","Gardening Equipment Suppliers","II","BACS","None",2020-10-07 00:00:00,"2020","07","IN0089551","A1100","Horticulture","D2001","Equipment"
"GUILDFORD BOROUGH COUNCIL","Countryside and Parks Services","Tudor (UK) Ltd T/A Tudor Environmental","950920","03/11/2020",30004447,83.7,0,"Equipment","Gardening Equipment Suppliers","II","BACS","None",2020-10-07 00:00:00,"2020","07","IN0089551","A1100","Horticulture","D2001","Equipment"
"GUILDFORD BOROUGH COUNCIL","Countryside and Parks Services","Tudor (UK) Ltd T/A Tudor Environmental","950920","03/11/2020",30004447,169,0,"Equipment","Gardening Equipment Suppliers","II","BACS","None",2020-10-07 00:00:00,"2020","07","IN0089551","A1100","Horticulture","D2001","Equipment"
"GUILDFORD BOROUGH COUNCIL","Countryside and Parks Services","Tudor (UK) Ltd T/A Tudor Environmental","950920","03/11/2020",30004447,65,0,"Equipment","Gardening Equipment Suppliers","II","BACS","None",2020-10-07 00:00:00,"2020","07","IN0089551","A1100","Horticulture","D2001","Equipment"
"GUILDFORD BOROUGH COUNCIL","Countryside and Parks Services","AGB Contractors Limited","766060","13/10/2020",30004448,2100,0,"Asset Maintenance","General Builders","II","BACS","None",2020-09-03 00:00:00,"2020","07","200903C","A1250","Stoke Park","B1001","Asset Maintenance"
"GUILDFORD BOROUGH COUNCIL","Countryside and Parks Services","AGB Contractors Limited","766060","13/10/2020",30004448,160,0,"Asset Maintenance","General Builders","II","BACS","None",2020-09-03 00:00:00,"2020","07","200903C","A1250","Stoke Park","B1001","Asset Maintenance"
"GUILDFORD BOROUGH COUNCIL","Countryside and Parks Services","AGB Contractors Limited","766060","13/10/2020",30004449,2730,0,"Asset Maintenance","General Builders","II","BACS","None",2020-10-06 00:00:00,"2020","07","201006","A1250","Stoke Park","B1001","Asset Maintenance"
"GUILDFORD BOROUGH COUNCIL","Countryside and Parks Services","AGB Contractors Limited","766060","13/10/2020",30004449,1225,0,"Asset Maintenance","General Builders","II","BACS","None",2020-10-06 00:00:00,"2020","07","201006","A1250","Stoke Park","B1001","Asset Maintenance"
"GUILDFORD BOROUGH COUNCIL","Engineeing and Transportation Services","The Oyster Partnership Ltd","814220","03/11/2020",30004450,1232,0,"Agency","Other Recruitment Agencies And Service Providers","II","BACS","None",2020-10-07 00:00:00,"2020","07","1082826","G5538","Engineering And Transportation Services","A5191","Agency"
"GUILDFORD BOROUGH COUNCIL","Major Projects","The Oyster Partnership Ltd","814220","03/11/2020",30004450,1232,0,"Agency","Other Recruitment Agencies And Service Providers","II","BACS","None",2020-10-07 00:00:00,"2020","07","1082826","F5530","Major Projects","A5191","Agency"
"GUILDFORD BOROUGH COUNCIL","Major Projects","The Oyster Partnership Ltd","814220","03/11/2020",30004450,308,0,"Agency","Other Recruitment Agencies And Service Providers","II","BACS","None",2020-10-07 00:00:00,"2020","07","1082826","F5530","Major Projects","A5191","Agency"
"GUILDFORD BOROUGH COUNCIL","Major Projects","The Oyster Partnership Ltd","814220","03/11/2020",30004450,308,0,"Agency","Other Recruitment Agencies And Service Providers","II","BACS","None",2020-10-07 00:00:00,"2020","07","1082826","F5530","Major Projects","A5191","Agency"
"GUILDFORD BOROUGH COUNCIL","Countryside and Parks Services","Tudor (UK) Ltd T/A Tudor Environmental","950920","03/11/2020",30004451,65,0,"Materials","Gardening Equipment Suppliers","II","BACS","None",2020-10-07 00:00:00,"2020","07","IN0089552","A1100","Horticulture","D2003","Materials"
"GUILDFORD BOROUGH COUNCIL","Countryside and Parks Services","Tudor (UK) Ltd T/A Tudor Environmental","950920","03/11/2020",30004451,37.5,0,"Materials","Gardening Equipment Suppliers","II","BACS","None",2020-10-07 00:00:00,"2020","07","IN0089552","A1100","Horticulture","D2003","Materials"
"GUILDFORD BOROUGH COUNCIL","Countryside and Parks Services","AVS Fencing Supplies Ltd","908500","03/11/2020",30004452,7.93,0,"Materials","Builders Merchants","II","BACS","None",2020-10-07 00:00:00,"2020","07","SINV-0869107","A1250","Stoke Park","D2003","Materials"
"GUILDFORD BOROUGH COUNCIL","Countryside and Parks Services","AVS Fencing Supplies Ltd","908500","03/11/2020",30004452,56.46,0,"Materials","Builders Merchants","II","BACS","None",2020-10-07 00:00:00,"2020","07","SINV-0869107","A1250","Stoke Park","D2003","Materials"
"GUILDFORD BOROUGH COUNCIL","Countryside and Parks Services","AVS Fencing Supplies Ltd","908500","03/11/2020",30004452,168.06,0,"Materials","Builders Merchants","II","BACS","None",2020-10-07 00:00:00,"2020","07","SINV-0869107","A1250","Stoke Park","D2003","Materials"
"GUILDFORD BOROUGH COUNCIL","Countryside and Parks Services","AVS Fencing Supplies Ltd","908500","03/11/2020",30004452,66.14,0,"Materials","Builders Merchants","II","BACS","None",2020-10-07 00:00:00,"2020","07","SINV-0869107","A1100","Horticulture","D2003","Materials"
"GUILDFORD BOROUGH COUNCIL","Countryside and Parks Services","AVS Fencing Supplies Ltd","908500","03/11/2020",30004452,14.64,0,"Materials","Builders Merchants","II","BACS","None",2020-10-07 00:00:00,"2020","07","SINV-0869107","A1250","Stoke Park","D2003","Materials"
"GUILDFORD BOROUGH COUNCIL","Countryside and Parks Services","AVS Fencing Supplies Ltd","908500","03/11/2020",30004452,61.68,0,"Materials","Builders Merchants","II","BACS","None",2020-10-07 00:00:00,"2020","07","SINV-0869107","A1250","Stoke Park","D2003","Materials"
"GUILDFORD BOROUGH COUNCIL","Countryside and Parks Services","AVS Fencing Supplies Ltd","908500","03/11/2020",30004452,58.92,0,"Materials","Builders Merchants","II","BACS","None",2020-10-07 00:00:00,"2020","07","SINV-0869107","A1250","Stoke Park","D2003","Materials"
"GUILDFORD BOROUGH COUNCIL","Countryside and Parks Services","AVS Fencing Supplies Ltd","908500","03/11/2020",30004452,61.8,0,"Materials","Builders Merchants","II","BACS","None",2020-10-07 00:00:00,"2020","07","SINV-0869107","A1250","Stoke Park","D2003","Materials"
"GUILDFORD BOROUGH COUNCIL","Countryside and Parks Services","AVS Fencing Supplies Ltd","908500","03/11/2020",30004452,6.93,0,"Materials","Builders Merchants","II","BACS","None",2020-10-07 00:00:00,"2020","07","SINV-0869107","A1250","Stoke Park","D2003","Materials"
"GUILDFORD BOROUGH COUNCIL","Affordable Hsg - Site Prep Etc","Carrington West Limited","950550","03/11/2020",30004453,292.5,0,"Consultants Fees","Other Recruitment Agencies And Service Providers","II","BACS","None",2020-10-07 00:00:00,"2020","07","135014","N55035","17 Wharf Lane","1221","Consultants Fees"
"GUILDFORD BOROUGH COUNCIL","New Build","Carrington West Limited","950550","03/11/2020",30004453,585,0,"Consultants Fees","Other Recruitment Agencies And Service Providers","II","BACS","None",2020-10-07 00:00:00,"2020","07","135014","N30012","Appletree Pub Site","1221","Consultants Fees"
"GUILDFORD BOROUGH COUNCIL","New Build","Carrington West Limited","950550","03/11/2020",30004453,780,0,"Consultants Fees","Other Recruitment Agencies And Service Providers","II","BACS","None",2020-10-07 00:00:00,"2020","07","135014","N30019","Ladymead/Fire Station Site","1221","Consultants Fees"
"GUILDFORD BOROUGH COUNCIL","Affordable Hsg - Site Prep Etc","Carrington West Limited","950550","03/11/2020",30004453,292.5,0,"Consultants Fees","Other Recruitment Agencies And Service Providers","II","BACS","None",2020-10-07 00:00:00,"2020","07","135014","N55024","Rapleys Field","1221","Consultants Fees"
"GUILDFORD BOROUGH COUNCIL","Civil Emergencies","Applied Resilience Limited","822600","13/10/2020",30004454,2188.75,0,"Specialist Services","Other Business Service Providers","II","BACS","None",2020-08-27 00:00:00,"2020","07","GBC71","F1511","Civil Emergencies","D6009","Specialist Services"
"GUILDFORD BOROUGH COUNCIL","Inventories","M E Duffell Ltd","510200","13/10/2020",30004455,12.87,0,"Purchases","Keys And Locksmiths","II","BACS","None",2020-09-16 00:00:00,"2020","07","I2112174","I01001","Stocks","2591","Purchases"
"GUILDFORD BOROUGH COUNCIL","Crematorium","Buxton Building Contractors Limited","789810","20/10/2020",30004456,191667.36,0,"Consultants Fees","General Builders","II","BACS","None",2020-10-08 00:00:00,"2020","07","CSI000341","P05009","Refurbish/Rebuild Crematorium","1221","Consultants Fees"
"GUILDFORD BOROUGH COUNCIL","Business Improvement","Vector Resourcing Limited","983490","29/10/2020",30004457,4500,0,"Consultancy","Third Party Supplier","II","BACS","None",2020-10-06 00:00:00,"2020","07","57682","G3531","Future Guildford","D6001","Consultancy"
"GUILDFORD BOROUGH COUNCIL","Audit Management","Vector Resourcing Limited","983490","29/10/2020",30004457,4500,0,"Consultancy","Third Party Supplier","II","BACS","None",2020-10-06 00:00:00,"2020","07","57682","G3531","Future Guildford","D6001","Consultancy"
"GUILDFORD BOROUGH COUNCIL","Executive - Miscellaneous","The Oyster Partnership Ltd","814220","03/11/2020",30004458,1392,0,"Agency Staff","Other Recruitment Agencies And Service Providers","II","BACS","None",2020-10-07 00:00:00,"2020","07","1082827","P79100","Wuv - Allotment Relocation","1222","Agency Staff"
"GUILDFORD BOROUGH COUNCIL","Property","The Oyster Partnership Ltd","814220","03/11/2020",30004458,1392,0,"Agency Staff","Other Recruitment Agencies And Service Providers","II","BACS","None",2020-10-07 00:00:00,"2020","07","1082827","P74040","Slyfield Area Regeneration Project","1222","Agency Staff"
"GUILDFORD BOROUGH COUNCIL","Property","The Oyster Partnership Ltd","814220","03/11/2020",30004458,696,0,"Agency Staff","Other Recruitment Agencies And Service Providers","II","BACS","None",2020-10-07 00:00:00,"2020","07","1082827","P74040","Slyfield Area Regeneration Project","1222","Agency Staff"
"GUILDFORD BOROUGH COUNCIL","Business Improvement","Gravitas Recruitment Group","1000035","15/10/2020",30004459,11020,0,"Agency","","II","BACS","None",2020-09-22 00:00:00,"2020","07","INV161971","G3531","Future Guildford","A5191","Agency"
"GUILDFORD BOROUGH COUNCIL","Audit Management","Gravitas Recruitment Group","1000035","15/10/2020",30004459,11020,0,"Agency","","II","BACS","None",2020-09-22 00:00:00,"2020","07","INV161971","G3531","Future Guildford","A5191","Agency"
"GUILDFORD BOROUGH COUNCIL","Affordable Housing","Vivid Resourcing Limited","856800","03/11/2020",30004460,1926,0,"Agency","Other Recruitment Agencies And Service Providers","II","BACS","None",2020-10-07 00:00:00,"2020","07","51087","C4111","Affordable Housing Development","A5191","Agency"
"GUILDFORD BOROUGH COUNCIL","Inventories","M E Duffell Ltd","510200","13/10/2020",30004461,4.34,0,"Purchases","Keys And Locksmiths","II","BACS","None",2020-09-18 00:00:00,"2020","07","I2113807","I01001","Stocks","2591","Purchases"
"GUILDFORD BOROUGH COUNCIL","Corporate Property Management","David Kingston Chartered Surveyors","970280","03/11/2020",30004462,850,0,"Valuers Fees","Surveyors And Inspectors","II","BACS","None",2020-10-08 00:00:00,"2020","07","081020","G4575","Asset Management","D6002","Valuers Fees"
"GUILDFORD BOROUGH COUNCIL","Major Projects","The Oyster Partnership Ltd","814220","03/11/2020",30004464,1044,0,"Agency","Other Recruitment Agencies And Service Providers","II","BACS","None",2020-10-07 00:00:00,"2020","07","1082825","F5530","Major Projects","A5191","Agency"
"GUILDFORD BOROUGH COUNCIL","Major Projects","The Oyster Partnership Ltd","814220","03/11/2020",30004464,1856,0,"Agency","Other Recruitment Agencies And Service Providers","II","BACS","None",2020-10-07 00:00:00,"2020","07","1082825","F5530","Major Projects","A5191","Agency"
"GUILDFORD BOROUGH COUNCIL","Day Services","Matthew Algie & Company Limited","989610","29/10/2020",30004465,151.2,0,"Catering","","II","BACS","None",2020-10-06 00:00:00,"2020","07","0003026759","C8100","Community Hubs","D3001","Catering"
"GUILDFORD BOROUGH COUNCIL","Day Services","Matthew Algie & Company Limited","989610","13/10/2020",30004466,151.2,0,"Catering","","II","BACS","None",2020-09-11 00:00:00,"2020","07","0003019951","C8100","Community Hubs","D3001","Catering"
"GUILDFORD BOROUGH COUNCIL","Renovations","Powerguards Inc Ramping Systems Ltd (CIS)","345400","13/10/2020",30004467,763.6,0,"Contractor Payments","Fixed Disability Equipment Suppliers","II","BACS","None",2020-04-09 00:00:00,"2020","07","16600","N40282","Disabled adaptations 2020-21","1233","Contractor Payments"
"GUILDFORD BOROUGH COUNCIL","Renovations","Powerguards Inc Ramping Systems Ltd (CIS)","345400","13/10/2020",30004467,66.4,0,"Contractor Payments","Fixed Disability Equipment Suppliers","II","BACS","None",2020-04-09 00:00:00,"2020","07","16600","N40282","Disabled adaptations 2020-21","1233","Contractor Payments"
"GUILDFORD BOROUGH COUNCIL","Responsive & Planned Maintenance","Guildford Fencing Co (CIS)","788901","13/10/2020",30004468,441,0,"Asset Maintenance","","II","BACS","None",2020-07-30 00:00:00,"2020","07","13681","M5113","Repairs-Responsive (BHS)","B1001","Asset Maintenance"
"GUILDFORD BOROUGH COUNCIL","Responsive & Planned Maintenance","Guildford Fencing Co (CIS)","788901","13/10/2020",30004468,220,0,"Asset Maintenance","","II","BACS","None",2020-07-30 00:00:00,"2020","07","13681","M5113","Repairs-Responsive (BHS)","B1001","Asset Maintenance"
"GUILDFORD BOROUGH COUNCIL","Responsive & Planned Maintenance","Guildford Fencing Co (CIS)","788901","13/10/2020",30004469,791,0,"Asset Maintenance","","II","BACS","None",2020-03-08 00:00:00,"2020","07","13690","M5113","Repairs-Responsive (BHS)","B1001","Asset Maintenance"
"GUILDFORD BOROUGH COUNCIL","Responsive & Planned Maintenance","Guildford Fencing Co (CIS)","788901","13/10/2020",30004469,660,0,"Asset Maintenance","","II","BACS","None",2020-03-08 00:00:00,"2020","07","13690","M5113","Repairs-Responsive (BHS)","B1001","Asset Maintenance"
"GUILDFORD BOROUGH COUNCIL","Responsive & Planned Maintenance","Guildford Fencing Co (CIS)","788901","13/10/2020",30004470,541,0,"Asset Maintenance","","II","BACS","None",2020-05-08 00:00:00,"2020","07","13694","M5113","Repairs-Responsive (BHS)","B1001","Asset Maintenance"
"GUILDFORD BOROUGH COUNCIL","Responsive & Planned Maintenance","Guildford Fencing Co (CIS)","788901","13/10/2020",30004470,541,0,"Asset Maintenance","","II","BACS","None",2020-05-08 00:00:00,"2020","07","13694","M5113","Repairs-Responsive (BHS)","B1001","Asset Maintenance"
"GUILDFORD BOROUGH COUNCIL","Responsive & Planned Maintenance","Guildford Fencing Co (CIS)","788901","13/10/2020",30004471,735,0,"Asset Maintenance","","II","BACS","None",2020-10-08 00:00:00,"2020","07","13716","M5113","Repairs-Responsive (BHS)","B1001","Asset Maintenance"
"GUILDFORD BOROUGH COUNCIL","Responsive & Planned Maintenance","Guildford Fencing Co (CIS)","788901","13/10/2020",30004471,440,0,"Asset Maintenance","","II","BACS","None",2020-10-08 00:00:00,"2020","07","13716","M5113","Repairs-Responsive (BHS)","B1001","Asset Maintenance"
"GUILDFORD BOROUGH COUNCIL","Responsive & Planned Maintenance","J T S Civil Engineers Ltd","648550","13/10/2020",30004472,550,0,"Asset Maintenance","Sewerage And Drainage Service Providers","II","BACS","None",2020-09-08 00:00:00,"2020","07","155308","M5113","Repairs-Responsive (BHS)","B1001","Asset Maintenance"
"GUILDFORD BOROUGH COUNCIL","Responsive & Planned Maintenance","J T S Civil Engineers Ltd","648550","13/10/2020",30004473,1250,0,"Asset Maintenance","Sewerage And Drainage Service Providers","II","BACS","None",2020-10-06 00:00:00,"2020","07","155310","M5113","Repairs-Responsive (BHS)","B1001","Asset Maintenance"
"GUILDFORD BOROUGH COUNCIL","Responsive & Planned Maintenance","J T S Civil Engineers Ltd","648550","13/10/2020",30004473,500,0,"Asset Maintenance","Sewerage And Drainage Service Providers","II","BACS","None",2020-10-06 00:00:00,"2020","07","155310","M5113","Repairs-Responsive (BHS)","B1001","Asset Maintenance"
"GUILDFORD BOROUGH COUNCIL","Responsive & Planned Maintenance","J T S Civil Engineers Ltd","648550","13/10/2020",30004474,250,0,"Asset Maintenance","Sewerage And Drainage Service Providers","II","BACS","None",2020-08-19 00:00:00,"2020","07","155345","M5113","Repairs-Responsive (BHS)","B1001","Asset Maintenance"
"GUILDFORD BOROUGH COUNCIL","Responsive & Planned Maintenance","J T S Civil Engineers Ltd","648550","13/10/2020",30004474,1250,0,"Asset Maintenance","Sewerage And Drainage Service Providers","II","BACS","None",2020-08-19 00:00:00,"2020","07","155345","M5113","Repairs-Responsive (BHS)","B1001","Asset Maintenance"
"GUILDFORD BOROUGH COUNCIL","Responsive & Planned Maintenance","J T S Civil Engineers Ltd","648550","13/10/2020",30004475,550,0,"Asset Maintenance","Sewerage And Drainage Service Providers","II","BACS","None",2020-08-19 00:00:00,"2020","07","155347","M5113","Repairs-Responsive (BHS)","B1001","Asset Maintenance"
"GUILDFORD BOROUGH COUNCIL","Flats Communal Services","J T S Civil Engineers Ltd","648550","13/10/2020",30004476,375,0,"Asset Maintenance","Sewerage And Drainage Service Providers","II","BACS","None",2020-08-21 00:00:00,"2020","07","155349","M2655","Carfax Ave 58-64A (8)","B1001","Asset Maintenance"
"GUILDFORD BOROUGH COUNCIL","Flats Communal Services","J T S Civil Engineers Ltd","648550","13/10/2020",30004476,1500,0,"Asset Maintenance","Sewerage And Drainage Service Providers","II","BACS","None",2020-08-21 00:00:00,"2020","07","155349","M2655","Carfax Ave 58-64A (8)","B1001","Asset Maintenance"
"GUILDFORD BOROUGH COUNCIL","Heating","TSG Building Services Plc","692680","13/10/2020",30004477,2994.23,0,"Contractor Payments","General Builders","II","BACS","None",2020-07-31 00:00:00,"2020","07","0421-0479","N44072","Boiler Upgrades 2020-21","1233","Contractor Payments"
"GUILDFORD BOROUGH COUNCIL","Heating","TSG Building Services Plc","692680","13/10/2020",30004478,2127.43,0,"Contractor Payments","General Builders","II","BACS","None",2020-07-31 00:00:00,"2020","07","0421-0480","N44072","Boiler Upgrades 2020-21","1233","Contractor Payments"
"GUILDFORD BOROUGH COUNCIL","Heating","TSG Building Services Plc","692680","13/10/2020",30004479,2400.06,0,"Contractor Payments","General Builders","II","BACS","None",2020-07-31 00:00:00,"2020","07","0421-0481","N44072","Boiler Upgrades 2020-21","1233","Contractor Payments"
"GUILDFORD BOROUGH COUNCIL","Heating","TSG Building Services Plc","692680","13/10/2020",30004480,3421.14,0,"Contractor Payments","General Builders","II","BACS","None",2020-07-31 00:00:00,"2020","07","0421-0482","N44072","Boiler Upgrades 2020-21","1233","Contractor Payments"
"GUILDFORD BOROUGH COUNCIL","Heating","TSG Building Services Plc","692680","13/10/2020",30004481,2037.23,0,"Contractor Payments","General Builders","II","BACS","None",2020-07-31 00:00:00,"2020","07","0421-0483","N44072","Boiler Upgrades 2020-21","1233","Contractor Payments"
